{"text_format":"1","workbook":"xlsx","n_sheets":16,"sheets":["Инструкция","Титульный","Ставка 1.","Ставка 2. (ВЛ)","Ставка 3. (КЛ)","Ставка 4.1.-4.3.","Ставка 4.4.-4.6.","Ставка 5. (ТП без РТП)","Ставка 6. (РТП)","Ставка 7. (ТП>35)","Ставка 8. (ПУ)","Названия ТСО+Ист. фин. тех.лист","Приложение","Наименования ставок","Teh_Sheet","1.1Назв. объ. эл. сетевого хоз."],"not_rendered":{"charts":0,"images":4,"macros":1,"external_links":1,"defined_names":90,"comments":0,"pivot_tables":0},"unopened":[],"bounds":{"document_bytes":16777216,"sheet_cells":100000,"rows_first":2000,"rows_last":500,"rows_between":2000,"halvings":0,"cell_chars":16384,"cell_head_chars":4096},"cells_cut":0,"cells_raw":0,"read":"whole","date_system":"1900"}

{"sheet":"Инструкция","index":0,"n_rows":0,"n_cols":0,"rows_kept":0,"cut":false,"hidden":false,"merged":[]}

{"sheet":"Титульный","index":1,"n_rows":18,"n_cols":6,"rows_kept":18,"cut":false,"hidden":false,"merged":[[15,1,15,2],[3,1,4,3],[7,1,7,2],[17,1,17,2],[11,1,11,2],[13,1,13,2],[9,1,9,2]]}
[]
[null,null,null,"Версия 1.0"]
[null,null,null,null,null,2019]
[null,{"$f":"\"Информация для расчета ставок платы за технологическое присоединение к электрическим сетям на \" & D10 & \" год\n(фактические данные предоставляются за \" & D10-2 & \" г.)\"","v":"Информация для расчета ставок платы за технологическое присоединение к электрическим сетям на 2025 год\n(фактические данные предоставляются за 2023 г.)"},null,null,null,2020]
[null,null,null,null,null,2021]
[null,null,null,null,null,2022]
[]
[null,"Наименование организации",null,"ООО \"Сургутские городские электрические сети\""]
[]
[null,"Период регулирования",null,2025]
[]
[null,"Ответственный за заполнение формы",null,"С1,С2,С3,С4.1-4.3,С4.4-4.6,С5,С6,С7,С8-Ведущий инженер Ходин В.И., Приложение-Начальник отдела Ваньшина Р.А."]
[]
[null,"Телефон исполнителя",null,"8 (3462) 52-46-50"]
[]
[null,"Электонная почта",null,"khodin_VI@surgutges.ru"]
[]
[null,"Дата заполнения",null,"15.08.2024г."]

{"sheet":"Ставка 1.","index":2,"n_rows":76,"n_cols":8,"rows_kept":76,"cut":false,"hidden":false,"merged":[[0,1,2,7],[4,1,5,1],[4,2,5,2],[4,3,4,5],[4,7,5,7],[4,6,5,6]]}
[null,{"$f":"\"Расходы на выполнение мероприятий по технологическому присоединению, \nпредусмотренным подпунктами 'а' и 'в' пункта 16 Методических указаний, за \"& Титульный!D10-2 & \" гг.\"","v":"Расходы на выполнение мероприятий по технологическому присоединению, \nпредусмотренным подпунктами 'а' и 'в' пункта 16 Методических указаний, за 2023 гг."}]
[]
[]
[]
[null,"N п/п","Наименование мероприятий","Информация для расчета \nстандартизированной тарифной ставки С1",null,null,"Год","Расходы на одно присоединение (руб. на одно ТП),\n(без НДС)"]
[null,null,null,"Расходы по каждому мероприятию (руб.),\n(без НДС)","Количество технологических присоединений (шт.)","Объем максимальной мощности \n(кВт)"]
[null,1,2,3,4,5,6,7]
[null,null,null,null,{"$f":"Титульный!D10-4","v":2021}]
[null,1,"Подготовка и выдача сетевой организацией технических условий Заявителю, в том числе:",{"$f":"SUM(D10:D18)","v":0},{"$f":"SUM(E10:E18)","v":0},{"$f":"SUM(F10:F18)","v":0},{"$f":"Титульный!$D$10-4","v":2021},{"$f":"IFERROR(D9/E9,\"Заполните все столбцы\")","v":"Заполните все столбцы"}]
[null," 1.1","п.12(1). Юридические лице или индивидуальные предприниматели в целях технологического присоединения по второй или третьей категории надежности энергопринимающих устройств, максимальная мощность которых составляет до 150 кВт включительно, в случае если технологическое присоединение энергопринимающих устройств таких заявителей осуществляется на уровне напряжения 0,4 кВ и ниже",null,null,null,{"$f":"Титульный!$D$10-4","v":2021},{"$f":"IFERROR(D10/E10,\"Заполните все столбцы\")","v":"Заполните все столбцы"}]
[null," 1.2","п.13(2). Юридические лица или индивидуальные предприниматели в целях технологического присоединения объектов микрогенерации к объектам электросетевого хозяйства с уровнем напряжения до 1000 В, в случае если технологическое присоединение энергопринимающих устройств таких заявителей осуществляется на уровне напряжения 0,4 кВ и ниже",null,null,null,{"$f":"Титульный!$D$10-4","v":2021},"Заполните все столбцы"]
[null," 1.3","п.13(3). Юридические лица или индивидуальные предприниматели в целях одновременного технологического присоединения к объектам электросетевого хозяйства с уровнем напряжения до 1000 В энергопринимающих устройств, максимальная мощность которых составляет до 150 кВт включительно (с учетом ранее присоединенных в данной точке присоединения энергопринимающих устройств), электроснабжение которых предусматривается по одному источнику, и объектов микрогенерации, в случае если технологическое присоединение энергопринимающих устройств таких заявителей осуществляется на уровне напряжения 0,4 кВ и ниже ",null,null,null,{"$f":"Титульный!$D$10-4","v":2021},"Заполните все столбцы"]
[null," 1.4","п.13(4). Физические лица в целях технологического присоединения объекта микрогенерации к объектам электросетевого хозяйства с уровнем напряжения до 1000 В, в случае если технологическое присоединение энергопринимающих устройств таких заявителей осуществляется на уровне напряжения 0,4 кВ и ниже",null,null,null,{"$f":"Титульный!$D$10-4","v":2021},"Заполните все столбцы"]
[null," 1.5","п.13(5). Физические лица в целях одновременного технологического присоединения к объектам электросетевого хозяйства с уровнем напряжения до 1000 В энергопринимающих устройств, максимальная мощность которых составляет до 150 кВт включительно (с учетом ранее присоединенных в данной точке присоединения энергопринимающих устройств), которые используются для бытовых и иных нужд, не связанных с осуществлением предпринимательской деятельности, и электроснабжение которых предусматривается по одному источнику, и объектов микрогенерации, в случае если технологическое присоединение энергопринимающих устройств таких заявителей осуществляется на уровне напряжения 0,4 кВ и ниже",null,null,null,{"$f":"Титульный!$D$10-4","v":2021},"Заполните все столбцы"]
[null," 1.6","п.14. Физические лица в целях технологического присоединения энергопринимающих устройств, максимальная мощность которых составляет до 15 кВт включительно (с учетом ранее присоединенных в данной точке присоединения энергопринимающих устройств), которые используются для бытовых и иных нужд, не связанных с осуществлением предпринимательской деятельности, и электроснабжение которых предусматривается по одному источнику, в случае если технологическое присоединение энергопринимающих устройств таких заявителей осуществляется на уровне напряжения 0,4 кВ и ниже",null,null,null,{"$f":"Титульный!$D$10-4","v":2021},"Заполните все столбцы"]
[null," 1.7","Заявители, не относящиеся к вышеуказннаыми категориям  свыше 15 кВт до 150 кВт",null,null,null,{"$f":"Титульный!$D$10-4","v":2021},{"$f":"IFERROR(D16/E16,\"Заполните все столбцы\")","v":"Заполните все столбцы"}]
[null," 1.8","Заявители, не относящиеся к вышеуказннаыми категориям  свыше 150 кВт до 670 кВт",null,null,null,{"$f":"Титульный!$D$10-4","v":2021},{"$f":"IFERROR(D17/E17,\"Заполните все столбцы\")","v":"Заполните все столбцы"}]
[null," 1.9","Заявители, не относящиеся к вышеуказннаыми категориям  свыше 670 кВт",null,null,null,{"$f":"Титульный!$D$10-4","v":2021},"Заполните все столбцы"]
[null,2,"Проверка сетевой организацией выполнения технических условий Заявителем",{"$f":"D20+D27","v":0},{"$f":"E20+E27","v":0},{"$f":"F20+F27","v":0},{"$f":"Титульный!$D$10-4","v":2021},"Заполните все столбцы"]
[null,"2.1","Выдача сетевой организацией уведомления об обеспечении сетевой организацией возможности присоединения к электрическим сетям Заявителям, указанным в абзаце шестом пункта 24 Методических указаний по определению размера платы за технологическое присоединение к электрическим сетям\n",{"$f":"SUM(D21:D26)","v":0},{"$f":"SUM(E21:E26)","v":0},{"$f":"SUM(F21:F26)","v":0},{"$f":"Титульный!$D$10-4","v":2021},"Заполните все столбцы"]
[null,"2.1.1","п.12(1). Юридические лице или индивидуальные предприниматели в целях технологического присоединения по второй или третьей категории надежности энергопринимающих устройств, максимальная мощность которых составляет до 150 кВт включительно, в случае если технологическое присоединение энергопринимающих устройств таких заявителей осуществляется на уровне напряжения 0,4 кВ и ниже",null,null,null,{"$f":"Титульный!$D$10-4","v":2021},{"$f":"IFERROR(D21/E21,\"Заполните все столбцы\")","v":"Заполните все столбцы"}]
[null,"2.1.2","п.13(2). Юридические лица или индивидуальные предприниматели в целях технологического присоединения объектов микрогенерации к объектам электросетевого хозяйства с уровнем напряжения до 1000 В, в случае если технологическое присоединение энергопринимающих устройств таких заявителей осуществляется на уровне напряжения 0,4 кВ и ниже",null,null,null,{"$f":"Титульный!$D$10-4","v":2021},{"$f":"IFERROR(D22/E22,\"Заполните все столбцы\")","v":"Заполните все столбцы"}]
[null,"2.1.3","п.13(3). Юридические лица или индивидуальные предприниматели в целях одновременного технологического присоединения к объектам электросетевого хозяйства с уровнем напряжения до 1000 В энергопринимающих устройств, максимальная мощность которых составляет до 150 кВт включительно (с учетом ранее присоединенных в данной точке присоединения энергопринимающих устройств), электроснабжение которых предусматривается по одному источнику, и объектов микрогенерации, в случае если технологическое присоединение энергопринимающих устройств таких заявителей осуществляется на уровне напряжения 0,4 кВ и ниже ",null,null,null,{"$f":"Титульный!$D$10-4","v":2021},{"$f":"IFERROR(D23/E23,\"Заполните все столбцы\")","v":"Заполните все столбцы"}]
[null,"2.1.4","п.13(4). Физические лица в целях технологического присоединения объекта микрогенерации к объектам электросетевого хозяйства с уровнем напряжения до 1000 В, в случае если технологическое присоединение энергопринимающих устройств таких заявителей осуществляется на уровне напряжения 0,4 кВ и ниже",null,null,null,{"$f":"Титульный!$D$10-4","v":2021},{"$f":"IFERROR(D24/E24,\"Заполните все столбцы\")","v":"Заполните все столбцы"}]
[null,"2.1.5","п.13(5). Физические лица в целях одновременного технологического присоединения к объектам электросетевого хозяйства с уровнем напряжения до 1000 В энергопринимающих устройств, максимальная мощность которых составляет до 150 кВт включительно (с учетом ранее присоединенных в данной точке присоединения энергопринимающих устройств), которые используются для бытовых и иных нужд, не связанных с осуществлением предпринимательской деятельности, и электроснабжение которых предусматривается по одному источнику, и объектов микрогенерации, в случае если технологическое присоединение энергопринимающих устройств таких заявителей осуществляется на уровне напряжения 0,4 кВ и ниже",null,null,null,{"$f":"Титульный!$D$10-4","v":2021},{"$f":"IFERROR(D25/E25,\"Заполните все столбцы\")","v":"Заполните все столбцы"}]
[null,"2.1.6","п.14. Физические лица в целях технологического присоединения энергопринимающих устройств, максимальная мощность которых составляет до 15 кВт включительно (с учетом ранее присоединенных в данной точке присоединения энергопринимающих устройств), которые используются для бытовых и иных нужд, не связанных с осуществлением предпринимательской деятельности, и электроснабжение которых предусматривается по одному источнику, в случае если технологическое присоединение энергопринимающих устройств таких заявителей осуществляется на уровне напряжения 0,4 кВ и ниже",null,null,null,{"$f":"Титульный!$D$10-4","v":2021},"Заполните все столбцы"]
[null,"2.2","Проверка сетевой организацией выполнения технических условий Заявителями, указанными в абзаце седьмом пункта 24 Методических указаний по определению размера платы за технологическое присоединение к электрическим сетям\n",{"$f":"SUM(D28:D30)","v":0},{"$f":"SUM(E28:E30)","v":0},{"$f":"SUM(F28:F30)","v":0},{"$f":"Титульный!$D$10-4","v":2021},"Заполните все столбцы"]
[null,"2.2.1","Заявители, не относящиеся к вышеуказннаыми категориям  свыше 15 кВт до 150 кВт",null,null,null,{"$f":"Титульный!$D$10-4","v":2021},{"$f":"IFERROR(D28/E28,\"Заполните все столбцы\")","v":"Заполните все столбцы"}]
[null,"2.2.2","Заявители, не относящиеся к вышеуказннаыми категориям  свыше 150 кВт до 670 кВт",null,null,null,{"$f":"Титульный!$D$10-4","v":2021},{"$f":"IFERROR(D29/E29,\"Заполните все столбцы\")","v":"Заполните все столбцы"}]
[null,"2.2.3","Заявители, не относящиеся к вышеуказннаыми категориям  свыше 670 кВт",null,null,null,{"$f":"Титульный!$D$10-4","v":2021},"Заполните все столбцы"]
[null,null,null,null,{"$f":"Титульный!D10-3","v":2022}]
[null,1,"Подготовка и выдача сетевой организацией технических условий Заявителю, в том числе:",{"$f":"SUM(D33:D41)","v":0},{"$f":"SUM(E33:E41)","v":0},{"$f":"SUM(F33:F41)","v":0},{"$f":"Титульный!$D$10-3","v":2022},{"$f":"IFERROR(D32/E32,\"Заполните все столбцы\")","v":"Заполните все столбцы"}]
[null," 1.1","п.12(1). Юридические лице или индивидуальные предприниматели в целях технологического присоединения по второй или третьей категории надежности энергопринимающих устройств, максимальная мощность которых составляет до 150 кВт включительно, в случае если технологическое присоединение энергопринимающих устройств таких заявителей осуществляется на уровне напряжения 0,4 кВ и ниже",null,null,null,{"$f":"Титульный!$D$10-3","v":2022},{"$f":"IFERROR(D33/E33,\"Заполните все столбцы\")","v":"Заполните все столбцы"}]
[null," 1.2","п.13(2). Юридические лица или индивидуальные предприниматели в целях технологического присоединения объектов микрогенерации к объектам электросетевого хозяйства с уровнем напряжения до 1000 В, в случае если технологическое присоединение энергопринимающих устройств таких заявителей осуществляется на уровне напряжения 0,4 кВ и ниже",null,null,null,{"$f":"Титульный!$D$10-3","v":2022},"Заполните все столбцы"]
[null," 1.3","п.13(3). Юридические лица или индивидуальные предприниматели в целях одновременного технологического присоединения к объектам электросетевого хозяйства с уровнем напряжения до 1000 В энергопринимающих устройств, максимальная мощность которых составляет до 150 кВт включительно (с учетом ранее присоединенных в данной точке присоединения энергопринимающих устройств), электроснабжение которых предусматривается по одному источнику, и объектов микрогенерации, в случае если технологическое присоединение энергопринимающих устройств таких заявителей осуществляется на уровне напряжения 0,4 кВ и ниже ",null,null,null,{"$f":"Титульный!$D$10-3","v":2022},"Заполните все столбцы"]
[null," 1.4","п.13(4). Физические лица в целях технологического присоединения объекта микрогенерации к объектам электросетевого хозяйства с уровнем напряжения до 1000 В, в случае если технологическое присоединение энергопринимающих устройств таких заявителей осуществляется на уровне напряжения 0,4 кВ и ниже",null,null,null,{"$f":"Титульный!$D$10-3","v":2022},"Заполните все столбцы"]
[null," 1.5","п.13(5). Физические лица в целях одновременного технологического присоединения к объектам электросетевого хозяйства с уровнем напряжения до 1000 В энергопринимающих устройств, максимальная мощность которых составляет до 150 кВт включительно (с учетом ранее присоединенных в данной точке присоединения энергопринимающих устройств), которые используются для бытовых и иных нужд, не связанных с осуществлением предпринимательской деятельности, и электроснабжение которых предусматривается по одному источнику, и объектов микрогенерации, в случае если технологическое присоединение энергопринимающих устройств таких заявителей осуществляется на уровне напряжения 0,4 кВ и ниже",null,null,null,{"$f":"Титульный!$D$10-3","v":2022},"Заполните все столбцы"]
[null," 1.6","п.14. Физические лица в целях технологического присоединения энергопринимающих устройств, максимальная мощность которых составляет до 15 кВт включительно (с учетом ранее присоединенных в данной точке присоединения энергопринимающих устройств), которые используются для бытовых и иных нужд, не связанных с осуществлением предпринимательской деятельности, и электроснабжение которых предусматривается по одному источнику, в случае если технологическое присоединение энергопринимающих устройств таких заявителей осуществляется на уровне напряжения 0,4 кВ и ниже",null,null,null,{"$f":"Титульный!$D$10-3","v":2022},"Заполните все столбцы"]
[null," 1.7","Заявители, не относящиеся к вышеуказннаыми категориям  свыше 15 кВт до 150 кВт",null,null,null,{"$f":"Титульный!$D$10-3","v":2022},"Заполните все столбцы"]
[null," 1.8","Заявители, не относящиеся к вышеуказннаыми категориям  свыше 150 кВт до 670 кВт",null,null,null,{"$f":"Титульный!$D$10-3","v":2022},"Заполните все столбцы"]
[null," 1.9","Заявители, не относящиеся к вышеуказннаыми категориям  свыше 670 кВт",null,null,null,{"$f":"Титульный!$D$10-3","v":2022},"Заполните все столбцы"]
[null,2,"Проверка сетевой организацией выполнения технических условий Заявителем",{"$f":"D43+D50","v":0},{"$f":"E43+E50","v":0},{"$f":"F43+F50","v":0},{"$f":"Титульный!$D$10-3","v":2022},"Заполните все столбцы"]
[null,"2.1","Выдача сетевой организацией уведомления об обеспечении сетевой организацией возможности присоединения к электрическим сетям Заявителям, указанным в абзаце шестом пункта 24 Методических указаний по определению размера платы за технологическое присоединение к электрическим сетям\n",{"$f":"SUM(D44:D49)","v":0},{"$f":"SUM(E44:E49)","v":0},{"$f":"SUM(F44:F49)","v":0},{"$f":"Титульный!$D$10-3","v":2022},"Заполните все столбцы"]
[null,"2.1.1","п.12(1). Юридические лице или индивидуальные предприниматели в целях технологического присоединения по второй или третьей категории надежности энергопринимающих устройств, максимальная мощность которых составляет до 150 кВт включительно, в случае если технологическое присоединение энергопринимающих устройств таких заявителей осуществляется на уровне напряжения 0,4 кВ и ниже",null,null,null,{"$f":"Титульный!$D$10-3","v":2022},"Заполните все столбцы"]
[null,"2.1.2","п.13(2). Юридические лица или индивидуальные предприниматели в целях технологического присоединения объектов микрогенерации к объектам электросетевого хозяйства с уровнем напряжения до 1000 В, в случае если технологическое присоединение энергопринимающих устройств таких заявителей осуществляется на уровне напряжения 0,4 кВ и ниже",null,null,null,{"$f":"Титульный!$D$10-3","v":2022},"Заполните все столбцы"]
[null,"2.1.3","п.13(3). Юридические лица или индивидуальные предприниматели в целях одновременного технологического присоединения к объектам электросетевого хозяйства с уровнем напряжения до 1000 В энергопринимающих устройств, максимальная мощность которых составляет до 150 кВт включительно (с учетом ранее присоединенных в данной точке присоединения энергопринимающих устройств), электроснабжение которых предусматривается по одному источнику, и объектов микрогенерации, в случае если технологическое присоединение энергопринимающих устройств таких заявителей осуществляется на уровне напряжения 0,4 кВ и ниже ",null,null,null,{"$f":"Титульный!$D$10-3","v":2022},"Заполните все столбцы"]
[null,"2.1.4","п.13(4). Физические лица в целях технологического присоединения объекта микрогенерации к объектам электросетевого хозяйства с уровнем напряжения до 1000 В, в случае если технологическое присоединение энергопринимающих устройств таких заявителей осуществляется на уровне напряжения 0,4 кВ и ниже",null,null,null,{"$f":"Титульный!$D$10-3","v":2022},"Заполните все столбцы"]
[null,"2.1.5","п.13(5). Физические лица в целях одновременного технологического присоединения к объектам электросетевого хозяйства с уровнем напряжения до 1000 В энергопринимающих устройств, максимальная мощность которых составляет до 150 кВт включительно (с учетом ранее присоединенных в данной точке присоединения энергопринимающих устройств), которые используются для бытовых и иных нужд, не связанных с осуществлением предпринимательской деятельности, и электроснабжение которых предусматривается по одному источнику, и объектов микрогенерации, в случае если технологическое присоединение энергопринимающих устройств таких заявителей осуществляется на уровне напряжения 0,4 кВ и ниже",null,null,null,{"$f":"Титульный!$D$10-3","v":2022},"Заполните все столбцы"]
[null,"2.1.6","п.14. Физические лица в целях технологического присоединения энергопринимающих устройств, максимальная мощность которых составляет до 15 кВт включительно (с учетом ранее присоединенных в данной точке присоединения энергопринимающих устройств), которые используются для бытовых и иных нужд, не связанных с осуществлением предпринимательской деятельности, и электроснабжение которых предусматривается по одному источнику, в случае если технологическое присоединение энергопринимающих устройств таких заявителей осуществляется на уровне напряжения 0,4 кВ и ниже",null,null,null,{"$f":"Титульный!$D$10-3","v":2022},"Заполните все столбцы"]
[null,"2.2","Проверка сетевой организацией выполнения технических условий Заявителями, указанными в абзаце седьмом пункта 24 Методических указаний по определению размера платы за технологическое присоединение к электрическим сетям\n",{"$f":"SUM(D51:D53)","v":0},{"$f":"SUM(E51:E53)","v":0},{"$f":"SUM(F51:F53)","v":0},{"$f":"Титульный!$D$10-3","v":2022},"Заполните все столбцы"]
[null,"2.2.1","Заявители, не относящиеся к вышеуказннаыми категориям  свыше 15 кВт до 150 кВт",null,null,null,{"$f":"Титульный!$D$10-3","v":2022},"Заполните все столбцы"]
[null,"2.2.2","Заявители, не относящиеся к вышеуказннаыми категориям  свыше 150 кВт до 670 кВт",null,null,null,{"$f":"Титульный!$D$10-3","v":2022},"Заполните все столбцы"]
[null,"2.2.3","Заявители, не относящиеся к вышеуказннаыми категориям  свыше 670 кВт",null,null,null,{"$f":"Титульный!$D$10-3","v":2022},"Заполните все столбцы"]
[null,null,null,null,{"$f":"Титульный!D10-2","v":2023}]
[null,1,"Подготовка и выдача сетевой организацией технических условий Заявителю, в том числе:",{"$f":"SUM(D56:D64)","v":2764918.03},{"$f":"SUM(E56:E64)","v":60},{"$f":"SUM(F56:F64)","v":30836.1},{"$f":"Титульный!$D$10-2","v":2023},{"$f":"IFERROR(D55/E55,\"Заполните все столбцы\")","v":46081.967166666662}]
[null," 1.1","п.12(1). Юридические лице или индивидуальные предприниматели в целях технологического присоединения по второй или третьей категории надежности энергопринимающих устройств, максимальная мощность которых составляет до 150 кВт включительно, в случае если технологическое присоединение энергопринимающих устройств таких заявителей осуществляется на уровне напряжения 0,4 кВ и ниже",1305017.46,38,3086.42,{"$f":"Титульный!$D$10-2","v":2023},{"$f":"IFERROR(D56/E56,\"Заполните все столбцы\")","v":34342.564736842105}]
[null," 1.2","п.13(2). Юридические лица или индивидуальные предприниматели в целях технологического присоединения объектов микрогенерации к объектам электросетевого хозяйства с уровнем напряжения до 1000 В, в случае если технологическое присоединение энергопринимающих устройств таких заявителей осуществляется на уровне напряжения 0,4 кВ и ниже",null,null,null,{"$f":"Титульный!$D$10-2","v":2023},"Заполните все столбцы"]
[null," 1.3","п.13(3). Юридические лица или индивидуальные предприниматели в целях одновременного технологического присоединения к объектам электросетевого хозяйства с уровнем напряжения до 1000 В энергопринимающих устройств, максимальная мощность которых составляет до 150 кВт включительно (с учетом ранее присоединенных в данной точке присоединения энергопринимающих устройств), электроснабжение которых предусматривается по одному источнику, и объектов микрогенерации, в случае если технологическое присоединение энергопринимающих устройств таких заявителей осуществляется на уровне напряжения 0,4 кВ и ниже ",null,null,null,{"$f":"Титульный!$D$10-2","v":2023},"Заполните все столбцы"]
[null," 1.4","п.13(4). Физические лица в целях технологического присоединения объекта микрогенерации к объектам электросетевого хозяйства с уровнем напряжения до 1000 В, в случае если технологическое присоединение энергопринимающих устройств таких заявителей осуществляется на уровне напряжения 0,4 кВ и ниже",null,null,null,{"$f":"Титульный!$D$10-2","v":2023},"Заполните все столбцы"]
[null," 1.5","п.13(5). Физические лица в целях одновременного технологического присоединения к объектам электросетевого хозяйства с уровнем напряжения до 1000 В энергопринимающих устройств, максимальная мощность которых составляет до 150 кВт включительно (с учетом ранее присоединенных в данной точке присоединения энергопринимающих устройств), которые используются для бытовых и иных нужд, не связанных с осуществлением предпринимательской деятельности, и электроснабжение которых предусматривается по одному источнику, и объектов микрогенерации, в случае если технологическое присоединение энергопринимающих устройств таких заявителей осуществляется на уровне напряжения 0,4 кВ и ниже",null,null,null,{"$f":"Титульный!$D$10-2","v":2023},"Заполните все столбцы"]
[null," 1.6","п.14. Физические лица в целях технологического присоединения энергопринимающих устройств, максимальная мощность которых составляет до 15 кВт включительно (с учетом ранее присоединенных в данной точке присоединения энергопринимающих устройств), которые используются для бытовых и иных нужд, не связанных с осуществлением предпринимательской деятельности, и электроснабжение которых предусматривается по одному источнику, в случае если технологическое присоединение энергопринимающих устройств таких заявителей осуществляется на уровне напряжения 0,4 кВ и ниже",null,null,null,{"$f":"Титульный!$D$10-2","v":2023},"Заполните все столбцы"]
[null," 1.7","Заявители, не относящиеся к вышеуказннаыми категориям  свыше 15 кВт до 150 кВт",304512.67,7,354,{"$f":"Титульный!$D$10-2","v":2023},43501.81]
[null," 1.8","Заявители, не относящиеся к вышеуказннаыми категориям  свыше 150 кВт до 670 кВт",371045.9,12,3310.68,{"$f":"Титульный!$D$10-2","v":2023},30920.491666666669]
[null," 1.9","Заявители, не относящиеся к вышеуказннаыми категориям  свыше 670 кВт",784342,3,24085,{"$f":"Титульный!$D$10-2","v":2023},261447.33333333334]
[null,2,"Проверка сетевой организацией выполнения технических условий Заявителем",{"$f":"D66+D73","v":911921.75},{"$f":"E66+E73","v":25},{"$f":"F66+F73","v":5676.35},{"$f":"Титульный!$D$10-2","v":2023},36476.870000000003]
[null,"2.1","Выдача сетевой организацией уведомления об обеспечении сетевой организацией возможности присоединения к электрическим сетям Заявителям, указанным в абзаце шестом пункта 24 Методических указаний по определению размера платы за технологическое присоединение к электрическим сетям\n",{"$f":"SUM(D67:D72)","v":244556},{"$f":"SUM(E67:E72)","v":6},{"$f":"SUM(F67:F72)","v":491},{"$f":"Титульный!$D$10-2","v":2023},40759.333333333336]
[null,"2.1.1","п.12(1). Юридические лице или индивидуальные предприниматели в целях технологического присоединения по второй или третьей категории надежности энергопринимающих устройств, максимальная мощность которых составляет до 150 кВт включительно, в случае если технологическое присоединение энергопринимающих устройств таких заявителей осуществляется на уровне напряжения 0,4 кВ и ниже",244556,6,491,{"$f":"Титульный!$D$10-2","v":2023},40759.333333333336]
[null,"2.1.2","п.13(2). Юридические лица или индивидуальные предприниматели в целях технологического присоединения объектов микрогенерации к объектам электросетевого хозяйства с уровнем напряжения до 1000 В, в случае если технологическое присоединение энергопринимающих устройств таких заявителей осуществляется на уровне напряжения 0,4 кВ и ниже",null,null,null,{"$f":"Титульный!$D$10-2","v":2023},"Заполните все столбцы"]
[null,"2.1.3","п.13(3). Юридические лица или индивидуальные предприниматели в целях одновременного технологического присоединения к объектам электросетевого хозяйства с уровнем напряжения до 1000 В энергопринимающих устройств, максимальная мощность которых составляет до 150 кВт включительно (с учетом ранее присоединенных в данной точке присоединения энергопринимающих устройств), электроснабжение которых предусматривается по одному источнику, и объектов микрогенерации, в случае если технологическое присоединение энергопринимающих устройств таких заявителей осуществляется на уровне напряжения 0,4 кВ и ниже ",null,null,null,{"$f":"Титульный!$D$10-2","v":2023},"Заполните все столбцы"]
[null,"2.1.4","п.13(4). Физические лица в целях технологического присоединения объекта микрогенерации к объектам электросетевого хозяйства с уровнем напряжения до 1000 В, в случае если технологическое присоединение энергопринимающих устройств таких заявителей осуществляется на уровне напряжения 0,4 кВ и ниже",null,null,null,{"$f":"Титульный!$D$10-2","v":2023},"Заполните все столбцы"]
[null,"2.1.5","п.13(5). Физические лица в целях одновременного технологического присоединения к объектам электросетевого хозяйства с уровнем напряжения до 1000 В энергопринимающих устройств, максимальная мощность которых составляет до 150 кВт включительно (с учетом ранее присоединенных в данной точке присоединения энергопринимающих устройств), которые используются для бытовых и иных нужд, не связанных с осуществлением предпринимательской деятельности, и электроснабжение которых предусматривается по одному источнику, и объектов микрогенерации, в случае если технологическое присоединение энергопринимающих устройств таких заявителей осуществляется на уровне напряжения 0,4 кВ и ниже",null,null,null,{"$f":"Титульный!$D$10-2","v":2023},"Заполните все столбцы"]
[null,"2.1.6","п.14. Физические лица в целях технологического присоединения энергопринимающих устройств, максимальная мощность которых составляет до 15 кВт включительно (с учетом ранее присоединенных в данной точке присоединения энергопринимающих устройств), которые используются для бытовых и иных нужд, не связанных с осуществлением предпринимательской деятельности, и электроснабжение которых предусматривается по одному источнику, в случае если технологическое присоединение энергопринимающих устройств таких заявителей осуществляется на уровне напряжения 0,4 кВ и ниже",null,null,null,{"$f":"Титульный!$D$10-2","v":2023},"Заполните все столбцы"]
[null,"2.2","Проверка сетевой организацией выполнения технических условий Заявителями, указанными в абзаце седьмом пункта 24 Методических указаний по определению размера платы за технологическое присоединение к электрическим сетям\n",{"$f":"SUM(D74:D76)","v":667365.75},{"$f":"SUM(E74:E76)","v":19},{"$f":"SUM(F74:F76)","v":5185.3500000000004},{"$f":"Титульный!$D$10-2","v":2023},35124.51315789474]
[null,"2.2.1","Заявители, не относящиеся к вышеуказннаыми категориям  свыше 15 кВт до 150 кВт",372907.67,11,440,{"$f":"Титульный!$D$10-2","v":2023},33900.697272727273]
[null,"2.2.2","Заявители, не относящиеся к вышеуказннаыми категориям  свыше 150 кВт до 670 кВт",118349.28,5,1101.1500000000001,{"$f":"Титульный!$D$10-2","v":2023},23669.856]
[null,"2.2.3","Заявители, не относящиеся к вышеуказннаыми категориям  свыше 670 кВт",176108.79999999999,3,3644.2,{"$f":"Титульный!$D$10-2","v":2023},58702.933333333327]

{"sheet":"Ставка 2. (ВЛ)","index":3,"n_rows":17,"n_cols":20,"rows_kept":17,"cut":false,"hidden":false,"merged":[[1,2,3,19],[5,2,5,19]]}
[]
[null,null,"Расходы на строительство введенных в эксплуатацию объектов электросетевого хозяйства для целей технологического присоединения и для целей реализации иных мероприятий инвестиционной программы территориальной сетевой организации"]
[]
[]
[]
[null,null,"ДЛЯ НАСЕЛЕННЫХ ПУНКТОВ ВСЕХ ТЕРРИТОРИЙ"]
[]
[null,null,"N п/п","Технический код ставки","Обозначение ставки","Наименование ставки","Объект электросетевого хозяйства","Территория","Опоры","Изоляция","Материал провода","Сечение","Количество цепей","Напряжение","Год ввода объекта","Протяженность линий электропередачи, км","Общие расходы на строительство объекта, руб. \n(без НДС)","Расходы на строительство единицы ВЛ, руб./км","Наименование папки","Источник финансирования"]
[null,null,1,{"$f":"C$9+1","v":2},3,4,5,6,7,{"$f":"I$9+1","v":8},{"$f":"J$9+1","v":9},10,11,12,13,14,{"$f":"P$9+1","v":15},{"$f":"Q$9+1","v":16},{"$f":"R$9+1","v":17},{"$f":"S$9+1","v":18}]
[null,null,"2.",null,null,null,null,null,null,null,null,"Строительство воздушных линий "]
[null," X ",{"$f":"ROW($C11)-12","v":-1},{"$f":"IF(AND(I11=\"2) Металлические\",OR(N11=\"3) 27,5 - 60 кВ\",N11=\"4) 110 кВ и выше\")),\"Заполните все столбцы\",IF(AND(I11=\"2.1) Металлические, за исключением многогранных\",OR(N11=\"1) 0,4 кВ и ниже\",N11=\"2) 1 - 20  кВ\")),\"Заполните все столбцы\",IF(AND(I11=\"2.2) Металлические многогранные\",OR(N11=\"1) 0,4 кВ и ниже\",N11=\"2) 1 - 20  кВ\")),\"Заполните все столбцы\",IF(AND(OR(I11=\"2.1) Металлические, за исключением многогранных\"),OR(N11=\"3) 27,5 - 60 кВ\",N11=\"4) 110 кВ и выше\")),IF(OR($I11=\"\",$J11=\"\",$K11=\"\",$L11=\"\",$M11=\"\",$N11=\"\"),\"Заполните все столбцы\",\"2.\"&LEFT($I11,1)&\".\"&LEFT($J11,1)&\".\"&LEFT($K11,1)&\".\"&LEFT($L11,1)&\".\"&LEFT($M11,1)&\".\"&\"1\"),IF(AND(OR(I11=\"2.2) Металлические многогранные\"),OR(N11=\"3) 27,5 - 60 кВ\",N11=\"4) 110 кВ и выше\")),IF(OR($I11=\"\",$J11=\"\",$K11=\"\",$L11=\"\",$M11=\"\",$N11=\"\"),\"Заполните все столбцы\",\"2.\"&LEFT($I11,1)&\".\"&LEFT($J11,1)&\".\"&LEFT($K11,1)&\".\"&LEFT($L11,1)&\".\"&LEFT($M11,1)&\".\"&\"2\"),IF(OR($I11=\"\",$J11=\"\",$K11=\"\",$L11=\"\",$M11=\"\",$N11=\"\"),\"Заполните все столбцы\",\"2.\"&LEFT($I11,1)&\".\"&LEFT($J11,1)&\".\"&LEFT($K11,1)&\".\"&LEFT($L11,1)&\".\"&LEFT($M11,1)))))))","v":"Заполните все столбцы"},{"$f":"IF(D11=\"Заполните все столбцы\",\"Заполните все столбцы\",IFERROR(\"С \"&(MID($D11,1,LEN($D11)))&\",\"&(RIGHT($N11,LEN($N11)-2)),\"Заполните все столбцы\"))","v":"Заполните все столбцы"},{"$f":"IFERROR(LOWER(\"воздушные линии на \"&VLOOKUP($I11,'1.1Назв. объ. эл. сетевого хоз.'!$A$2:$B$24,2,0)&\" \"&VLOOKUP($J11,'1.1Назв. объ. эл. сетевого хоз.'!$A$2:$B$24,2,0)&\" \"&VLOOKUP($K11,'1.1Назв. объ. эл. сетевого хоз.'!$A$2:$B$24,2,0)&\" проводом \"&\"сечением \"&VLOOKUP($L11,'1.1Назв. объ. эл. сетевого хоз.'!$A$2:$B$24,2,0)&\" \"&VLOOKUP($M11,'1.1Назв. объ. эл. сетевого хоз.'!$A$2:$B$24,2,0)),\"Заполните все столбцы\")","v":"Заполните все столбцы"},"Название объекта",null,null,null,null,null,null,null,{"$f":"Титульный!$D$10-2","v":2023},null,null,{"$f":"IF(OR($Q11=\"\",$P11=\"\"),\"Заполните все столбцы\",IF(AND(IF(AND(Q11<>0,P11<>0),Q11/P11,0)>=1000000,IF(AND(Q11<>0,P11<>0),Q11/P11,0)<=20000000),IF(AND(Q11<>0,P11<>0),Q11/P11,0),\"Значение расходов вне возможного диапазона\"))","v":"Заполните все столбцы"}]
[null,"TAG",null,null,null,null,"Добавить строки"]
[null,null,{"$f":"ROW($C13)-12","v":1},{"$f":"IF(AND(I13=\"2) Металлические\",OR(N13=\"3) 27,5 - 60 кВ\",N13=\"4) 110 кВ и выше\")),\"Заполните все столбцы\",IF(AND(I13=\"2.1) Металлические, за исключением многогранных\",OR(N13=\"1) 0,4 кВ и ниже\",N13=\"2) 1 - 20  кВ\")),\"Заполните все столбцы\",IF(AND(I13=\"2.2) Металлические многогранные\",OR(N13=\"1) 0,4 кВ и ниже\",N13=\"2) 1 - 20  кВ\")),\"Заполните все столбцы\",IF(AND(OR(I13=\"2.1) Металлические, за исключением многогранных\"),OR(N13=\"3) 27,5 - 60 кВ\",N13=\"4) 110 кВ и выше\")),IF(OR($I13=\"\",$J13=\"\",$K13=\"\",$L13=\"\",$M13=\"\",$N13=\"\"),\"Заполните все столбцы\",\"2.\"&LEFT($I13,1)&\".\"&LEFT($J13,1)&\".\"&LEFT($K13,1)&\".\"&LEFT($L13,1)&\".\"&LEFT($M13,1)&\".\"&\"1\"),IF(AND(OR(I13=\"2.2) Металлические многогранные\"),OR(N13=\"3) 27,5 - 60 кВ\",N13=\"4) 110 кВ и выше\")),IF(OR($I13=\"\",$J13=\"\",$K13=\"\",$L13=\"\",$M13=\"\",$N13=\"\"),\"Заполните все столбцы\",\"2.\"&LEFT($I13,1)&\".\"&LEFT($J13,1)&\".\"&LEFT($K13,1)&\".\"&LEFT($L13,1)&\".\"&LEFT($M13,1)&\".\"&\"2\"),IF(OR($I13=\"\",$J13=\"\",$K13=\"\",$L13=\"\",$M13=\"\",$N13=\"\"),\"Заполните все столбцы\",\"2.\"&LEFT($I13,1)&\".\"&LEFT($J13,1)&\".\"&LEFT($K13,1)&\".\"&LEFT($L13,1)&\".\"&LEFT($M13,1)))))))","v":"Заполните все столбцы"},{"$f":"IF(D13=\"Заполните все столбцы\",\"Заполните все столбцы\",IFERROR(\"С \"&(MID($D13,1,LEN($D13)))&\",\"&(RIGHT($N13,LEN($N13)-2)),\"Заполните все столбцы\"))","v":"Заполните все столбцы"},{"$f":"IFERROR(LOWER(\"воздушные линии на \"&VLOOKUP($I13,'1.1Назв. объ. эл. сетевого хоз.'!$A$2:$B$24,2,0)&\" \"&VLOOKUP($J13,'1.1Назв. объ. эл. сетевого хоз.'!$A$2:$B$24,2,0)&\" \"&VLOOKUP($K13,'1.1Назв. объ. эл. сетевого хоз.'!$A$2:$B$24,2,0)&\" проводом \"&\"сечением \"&VLOOKUP($L13,'1.1Назв. объ. эл. сетевого хоз.'!$A$2:$B$24,2,0)&\" \"&VLOOKUP($M13,'1.1Назв. объ. эл. сетевого хоз.'!$A$2:$B$24,2,0)),\"Заполните все столбцы\")","v":"Заполните все столбцы"},"Название объекта",null,null,null,null,null,null,null,{"$f":"Титульный!$D$10-2","v":2023},null,null,{"$f":"IF(OR($Q13=\"\",$P13=\"\"),\"Заполните все столбцы\",IF(AND(IF(AND(Q13<>0,P13<>0),Q13/P13,0)>=1000000,IF(AND(Q13<>0,P13<>0),Q13/P13,0)<=20000000),IF(AND(Q13<>0,P13<>0),Q13/P13,0),\"Значение расходов вне возможного диапазона\"))","v":"Заполните все столбцы"}]
[null,null,2,{"$f":"IF(AND(I14=\"2) Металлические\",OR(N14=\"3) 27,5 - 60 кВ\",N14=\"4) 110 кВ и выше\")),\"Заполните все столбцы\",IF(AND(I14=\"2.1) Металлические, за исключением многогранных\",OR(N14=\"1) 0,4 кВ и ниже\",N14=\"2) 1 - 20  кВ\")),\"Заполните все столбцы\",IF(AND(I14=\"2.2) Металлические многогранные\",OR(N14=\"1) 0,4 кВ и ниже\",N14=\"2) 1 - 20  кВ\")),\"Заполните все столбцы\",IF(AND(OR(I14=\"2.1) Металлические, за исключением многогранных\"),OR(N14=\"3) 27,5 - 60 кВ\",N14=\"4) 110 кВ и выше\")),IF(OR($I14=\"\",$J14=\"\",$K14=\"\",$L14=\"\",$M14=\"\",$N14=\"\"),\"Заполните все столбцы\",\"2.\"&LEFT($I14,1)&\".\"&LEFT($J14,1)&\".\"&LEFT($K14,1)&\".\"&LEFT($L14,1)&\".\"&LEFT($M14,1)&\".\"&\"1\"),IF(AND(OR(I14=\"2.2) Металлические многогранные\"),OR(N14=\"3) 27,5 - 60 кВ\",N14=\"4) 110 кВ и выше\")),IF(OR($I14=\"\",$J14=\"\",$K14=\"\",$L14=\"\",$M14=\"\",$N14=\"\"),\"Заполните все столбцы\",\"2.\"&LEFT($I14,1)&\".\"&LEFT($J14,1)&\".\"&LEFT($K14,1)&\".\"&LEFT($L14,1)&\".\"&LEFT($M14,1)&\".\"&\"2\"),IF(OR($I14=\"\",$J14=\"\",$K14=\"\",$L14=\"\",$M14=\"\",$N14=\"\"),\"Заполните все столбцы\",\"2.\"&LEFT($I14,1)&\".\"&LEFT($J14,1)&\".\"&LEFT($K14,1)&\".\"&LEFT($L14,1)&\".\"&LEFT($M14,1)))))))","v":"Заполните все столбцы"},{"$f":"IF(D14=\"Заполните все столбцы\",\"Заполните все столбцы\",IFERROR(\"С \"&(MID($D14,1,LEN($D14)))&\",\"&(RIGHT($N14,LEN($N14)-2)),\"Заполните все столбцы\"))","v":"Заполните все столбцы"},{"$f":"IFERROR(LOWER(\"воздушные линии на \"&VLOOKUP($I14,'1.1Назв. объ. эл. сетевого хоз.'!$A$2:$B$24,2,0)&\" \"&VLOOKUP($J14,'1.1Назв. объ. эл. сетевого хоз.'!$A$2:$B$24,2,0)&\" \"&VLOOKUP($K14,'1.1Назв. объ. эл. сетевого хоз.'!$A$2:$B$24,2,0)&\" проводом \"&\"сечением \"&VLOOKUP($L14,'1.1Назв. объ. эл. сетевого хоз.'!$A$2:$B$24,2,0)&\" \"&VLOOKUP($M14,'1.1Назв. объ. эл. сетевого хоз.'!$A$2:$B$24,2,0)),\"Заполните все столбцы\")","v":"Заполните все столбцы"},"Название объекта",null,null,null,null,null,null,null,{"$f":"Титульный!$D$10-2","v":2023},null,null,{"$f":"IF(OR($Q14=\"\",$P14=\"\"),\"Заполните все столбцы\",IF(AND(IF(AND(Q14<>0,P14<>0),Q14/P14,0)>=1000000,IF(AND(Q14<>0,P14<>0),Q14/P14,0)<=20000000),IF(AND(Q14<>0,P14<>0),Q14/P14,0),\"Значение расходов вне возможного диапазона\"))","v":"Заполните все столбцы"}]
[null,null,3,{"$f":"IF(AND(I15=\"2) Металлические\",OR(N15=\"3) 27,5 - 60 кВ\",N15=\"4) 110 кВ и выше\")),\"Заполните все столбцы\",IF(AND(I15=\"2.1) Металлические, за исключением многогранных\",OR(N15=\"1) 0,4 кВ и ниже\",N15=\"2) 1 - 20  кВ\")),\"Заполните все столбцы\",IF(AND(I15=\"2.2) Металлические многогранные\",OR(N15=\"1) 0,4 кВ и ниже\",N15=\"2) 1 - 20  кВ\")),\"Заполните все столбцы\",IF(AND(OR(I15=\"2.1) Металлические, за исключением многогранных\"),OR(N15=\"3) 27,5 - 60 кВ\",N15=\"4) 110 кВ и выше\")),IF(OR($I15=\"\",$J15=\"\",$K15=\"\",$L15=\"\",$M15=\"\",$N15=\"\"),\"Заполните все столбцы\",\"2.\"&LEFT($I15,1)&\".\"&LEFT($J15,1)&\".\"&LEFT($K15,1)&\".\"&LEFT($L15,1)&\".\"&LEFT($M15,1)&\".\"&\"1\"),IF(AND(OR(I15=\"2.2) Металлические многогранные\"),OR(N15=\"3) 27,5 - 60 кВ\",N15=\"4) 110 кВ и выше\")),IF(OR($I15=\"\",$J15=\"\",$K15=\"\",$L15=\"\",$M15=\"\",$N15=\"\"),\"Заполните все столбцы\",\"2.\"&LEFT($I15,1)&\".\"&LEFT($J15,1)&\".\"&LEFT($K15,1)&\".\"&LEFT($L15,1)&\".\"&LEFT($M15,1)&\".\"&\"2\"),IF(OR($I15=\"\",$J15=\"\",$K15=\"\",$L15=\"\",$M15=\"\",$N15=\"\"),\"Заполните все столбцы\",\"2.\"&LEFT($I15,1)&\".\"&LEFT($J15,1)&\".\"&LEFT($K15,1)&\".\"&LEFT($L15,1)&\".\"&LEFT($M15,1)))))))","v":"Заполните все столбцы"},{"$f":"IF(D15=\"Заполните все столбцы\",\"Заполните все столбцы\",IFERROR(\"С \"&(MID($D15,1,LEN($D15)))&\",\"&(RIGHT($N15,LEN($N15)-2)),\"Заполните все столбцы\"))","v":"Заполните все столбцы"},{"$f":"IFERROR(LOWER(\"воздушные линии на \"&VLOOKUP($I15,'1.1Назв. объ. эл. сетевого хоз.'!$A$2:$B$24,2,0)&\" \"&VLOOKUP($J15,'1.1Назв. объ. эл. сетевого хоз.'!$A$2:$B$24,2,0)&\" \"&VLOOKUP($K15,'1.1Назв. объ. эл. сетевого хоз.'!$A$2:$B$24,2,0)&\" проводом \"&\"сечением \"&VLOOKUP($L15,'1.1Назв. объ. эл. сетевого хоз.'!$A$2:$B$24,2,0)&\" \"&VLOOKUP($M15,'1.1Назв. объ. эл. сетевого хоз.'!$A$2:$B$24,2,0)),\"Заполните все столбцы\")","v":"Заполните все столбцы"},"Название объекта",null,null,null,null,null,null,null,{"$f":"Титульный!$D$10-2","v":2023},null,null,{"$f":"IF(OR($Q15=\"\",$P15=\"\"),\"Заполните все столбцы\",IF(AND(IF(AND(Q15<>0,P15<>0),Q15/P15,0)>=1000000,IF(AND(Q15<>0,P15<>0),Q15/P15,0)<=20000000),IF(AND(Q15<>0,P15<>0),Q15/P15,0),\"Значение расходов вне возможного диапазона\"))","v":"Заполните все столбцы"}]
[null,null,4,{"$f":"IF(AND(I16=\"2) Металлические\",OR(N16=\"3) 27,5 - 60 кВ\",N16=\"4) 110 кВ и выше\")),\"Заполните все столбцы\",IF(AND(I16=\"2.1) Металлические, за исключением многогранных\",OR(N16=\"1) 0,4 кВ и ниже\",N16=\"2) 1 - 20  кВ\")),\"Заполните все столбцы\",IF(AND(I16=\"2.2) Металлические многогранные\",OR(N16=\"1) 0,4 кВ и ниже\",N16=\"2) 1 - 20  кВ\")),\"Заполните все столбцы\",IF(AND(OR(I16=\"2.1) Металлические, за исключением многогранных\"),OR(N16=\"3) 27,5 - 60 кВ\",N16=\"4) 110 кВ и выше\")),IF(OR($I16=\"\",$J16=\"\",$K16=\"\",$L16=\"\",$M16=\"\",$N16=\"\"),\"Заполните все столбцы\",\"2.\"&LEFT($I16,1)&\".\"&LEFT($J16,1)&\".\"&LEFT($K16,1)&\".\"&LEFT($L16,1)&\".\"&LEFT($M16,1)&\".\"&\"1\"),IF(AND(OR(I16=\"2.2) Металлические многогранные\"),OR(N16=\"3) 27,5 - 60 кВ\",N16=\"4) 110 кВ и выше\")),IF(OR($I16=\"\",$J16=\"\",$K16=\"\",$L16=\"\",$M16=\"\",$N16=\"\"),\"Заполните все столбцы\",\"2.\"&LEFT($I16,1)&\".\"&LEFT($J16,1)&\".\"&LEFT($K16,1)&\".\"&LEFT($L16,1)&\".\"&LEFT($M16,1)&\".\"&\"2\"),IF(OR($I16=\"\",$J16=\"\",$K16=\"\",$L16=\"\",$M16=\"\",$N16=\"\"),\"Заполните все столбцы\",\"2.\"&LEFT($I16,1)&\".\"&LEFT($J16,1)&\".\"&LEFT($K16,1)&\".\"&LEFT($L16,1)&\".\"&LEFT($M16,1)))))))","v":"Заполните все столбцы"},{"$f":"IF(D16=\"Заполните все столбцы\",\"Заполните все столбцы\",IFERROR(\"С \"&(MID($D16,1,LEN($D16)))&\",\"&(RIGHT($N16,LEN($N16)-2)),\"Заполните все столбцы\"))","v":"Заполните все столбцы"},{"$f":"IFERROR(LOWER(\"воздушные линии на \"&VLOOKUP($I16,'1.1Назв. объ. эл. сетевого хоз.'!$A$2:$B$24,2,0)&\" \"&VLOOKUP($J16,'1.1Назв. объ. эл. сетевого хоз.'!$A$2:$B$24,2,0)&\" \"&VLOOKUP($K16,'1.1Назв. объ. эл. сетевого хоз.'!$A$2:$B$24,2,0)&\" проводом \"&\"сечением \"&VLOOKUP($L16,'1.1Назв. объ. эл. сетевого хоз.'!$A$2:$B$24,2,0)&\" \"&VLOOKUP($M16,'1.1Назв. объ. эл. сетевого хоз.'!$A$2:$B$24,2,0)),\"Заполните все столбцы\")","v":"Заполните все столбцы"},"Название объекта",null,null,null,null,null,null,null,{"$f":"Титульный!$D$10-2","v":2023},null,null,{"$f":"IF(OR($Q16=\"\",$P16=\"\"),\"Заполните все столбцы\",IF(AND(IF(AND(Q16<>0,P16<>0),Q16/P16,0)>=1000000,IF(AND(Q16<>0,P16<>0),Q16/P16,0)<=20000000),IF(AND(Q16<>0,P16<>0),Q16/P16,0),\"Значение расходов вне возможного диапазона\"))","v":"Заполните все столбцы"}]
[null,"TAG",null,null,null,null,"Добавить строки"]

{"sheet":"Ставка 3. (КЛ)","index":4,"n_rows":42,"n_cols":20,"rows_kept":42,"cut":false,"hidden":false,"merged":[[1,2,3,19],[5,2,5,19]]}
[]
[null,null,"Расходы на строительство введенных в эксплуатацию объектов электросетевого хозяйства для целей технологического присоединения и для целей реализации иных мероприятий инвестиционной программы территориальной сетевой организации"]
[]
[]
[]
[null,null,"ДЛЯ НАСЕЛЕННЫХ ПУНКТОВ ВСЕХ ТЕРРИТОРИЙ"]
[]
[null,null,"N п/п","Технический код ставки","Обозначение ставки","Наименование ставки","Объект электросетевого хозяйства","Территория","Способ прокладки","Вид жилы","Изоляция","Сечение","Количество кабелей","Напряжение","Год ввода объекта","Протяженность линий электропередачи, км","Общие расходы на строительство объекта, руб. \n(без НДС)","Расходы на строительство единицы КЛ, руб./км","Наименование папки","Источник финансирования"]
[null,null,1,{"$f":"C$9+1","v":2},{"$f":"D$9+1","v":3},4,5,6,7,8,9,10,11,12,13,14,{"$f":"P$9+1","v":15},{"$f":"Q$9+1","v":16},{"$f":"R$9+1","v":17},{"$f":"S$9+1","v":18}]
[null,null,"3.",null,null,null,null,null,null,null,null,"Строительство кабельных линий "]
[null," X ",{"$f":"ROW($C11)-12","v":-1},{"$f":"IF(OR($I11=\"\",$J11=\"\",$K11=\"\",$L11=\"\",$M11=\"\",$N11=\"\",$O11=\"\"),\"Заполните все столбцы\",\"3.\"&LEFT($I11,1)&\".\"&LEFT($J11,1)&\".\"&LEFT($K11,1)&\".\"&LEFT($L11,1)&\".\"&LEFT($M11,1))","v":"Заполните все столбцы"},{"$f":"IFERROR(\"С \"&(MID($D11,1,LEN($D11)))&\",\"&(RIGHT($N11,LEN($N11)-2)),\"Заполните все столбцы\")","v":"Заполните все столбцы"},{"$f":"IFERROR(LOWER(\"кабельные линии\"&IF($I11=\"6) метод горизонтального наклонного бурения\",VLOOKUP($I11,'1.1Назв. объ. эл. сетевого хоз.'!$D$2:$E$34,2,0)&\" \"&VLOOKUP($J11,'1.1Назв. объ. эл. сетевого хоз.'!$D$2:$E$34,2,0)&\" c \"&VLOOKUP($K11,'1.1Назв. объ. эл. сетевого хоз.'!$D$2:$E$34,2,0)&\" изоляцией \"&\"сечением провода \"&VLOOKUP($L11,'1.1Назв. объ. эл. сетевого хоз.'!$D$2:$E$34,2,0)&\" \"&IF($M11=\"5) более четырех\",\"с количеством \"&IF($I11=\"6) метод горизонтального наклонного бурения\",VLOOKUP($M11,'1.1Назв. объ. эл. сетевого хоз.'!$D$2:$F$34,3,0),VLOOKUP($M11,'1.1Назв. объ. эл. сетевого хоз.'!$D$2:$E$34,2,0)),IF($I11=\"6) метод горизонтального наклонного бурения\",VLOOKUP($M11,'1.1Назв. объ. эл. сетевого хоз.'!$D$2:$F$34,3,0),VLOOKUP($M11,'1.1Назв. объ. эл. сетевого хоз.'!$D$2:$E$34,2,0))),VLOOKUP($I11,'1.1Назв. объ. эл. сетевого хоз.'!$D$2:$E$34,2,0)&\" \"&VLOOKUP($J11,'1.1Назв. объ. эл. сетевого хоз.'!$D$2:$E$34,2,0)&\" c \"&VLOOKUP($K11,'1.1Назв. объ. эл. сетевого хоз.'!$D$2:$E$34,2,0)&\" изоляцией \"&\"сечением провода \"&VLOOKUP($L11,'1.1Назв. объ. эл. сетевого хоз.'!$D$2:$E$34,2,0)&\" \"&IF($M11=\"5) более четырех\",\"с количеством \"&IF($I11=\"6) метод горизонтального наклонного бурения\",VLOOKUP($M11,'1.1Назв. объ. эл. сетевого хоз.'!$D$2:$F$34,3,0),VLOOKUP($M11,'1.1Назв. объ. эл. сетевого хоз.'!$D$2:$E$34,2,0)),IF($I11=\"6) метод горизонтального наклонного бурения\",VLOOKUP($M11,'1.1Назв. объ. эл. сетевого хоз.'!$D$2:$F$34,3,0),VLOOKUP($M11,'1.1Назв. объ. эл. сетевого хоз.'!$D$2:$E$34,2,0)))&\" \"&VLOOKUP($I11,'1.1Назв. объ. эл. сетевого хоз.'!$D$2:$F$34,3,0))),\"Заполните все столбцы\")","v":"Заполните все столбцы"},"Название объекта",null,null,null,null,null,null,null,{"$f":"Титульный!$D$10-2","v":2023},null,null,{"$f":"IF(OR($Q11=\"\",$P11=\"\"),\"Заполните все столбцы\",IF(AND(IF(AND(Q11<>0,P11<>0),Q11/P11,0)>=1000000,IF(AND(Q11<>0,P11<>0),Q11/P11,0)<=50000000),IF(AND(Q11<>0,P11<>0),Q11/P11,0),\"Значение расходов вне возможного диапазона\"))","v":"Заполните все столбцы"}]
[null,"TAG",null,null,null,null,"Добавить строки"]
[null,null,{"$f":"ROW($C13)-12","v":1},{"$f":"IF(OR($I13=\"\",$J13=\"\",$K13=\"\",$L13=\"\",$M13=\"\",$N13=\"\",$O13=\"\"),\"Заполните все столбцы\",\"3.\"&LEFT($I13,1)&\".\"&LEFT($J13,1)&\".\"&LEFT($K13,1)&\".\"&LEFT($L13,1)&\".\"&LEFT($M13,1))","v":"3.1.1.2.4.2"},{"$f":"IFERROR(\"С \"&(MID($D13,1,LEN($D13)))&\",\"&(RIGHT($N13,LEN($N13)-2)),\"Заполните все столбцы\")","v":"С 3.1.1.2.4.2, 1 - 10  кВ"},{"$f":"IFERROR(LOWER(\"кабельные линии\"&IF($I13=\"6) метод горизонтального наклонного бурения\",VLOOKUP($I13,'1.1Назв. объ. эл. сетевого хоз.'!$D$2:$E$34,2,0)&\" \"&VLOOKUP($J13,'1.1Назв. объ. эл. сетевого хоз.'!$D$2:$E$34,2,0)&\" c \"&VLOOKUP($K13,'1.1Назв. объ. эл. сетевого хоз.'!$D$2:$E$34,2,0)&\" изоляцией \"&\"сечением провода \"&VLOOKUP($L13,'1.1Назв. объ. эл. сетевого хоз.'!$D$2:$E$34,2,0)&\" \"&IF($M13=\"5) более четырех\",\"с количеством \"&IF($I13=\"6) метод горизонтального наклонного бурения\",VLOOKUP($M13,'1.1Назв. объ. эл. сетевого хоз.'!$D$2:$F$34,3,0),VLOOKUP($M13,'1.1Назв. объ. эл. сетевого хоз.'!$D$2:$E$34,2,0)),IF($I13=\"6) метод горизонтального наклонного бурения\",VLOOKUP($M13,'1.1Назв. объ. эл. сетевого хоз.'!$D$2:$F$34,3,0),VLOOKUP($M13,'1.1Назв. объ. эл. сетевого хоз.'!$D$2:$E$34,2,0))),VLOOKUP($I13,'1.1Назв. объ. эл. сетевого хоз.'!$D$2:$E$34,2,0)&\" \"&VLOOKUP($J13,'1.1Назв. объ. эл. сетевого хоз.'!$D$2:$E$34,2,0)&\" c \"&VLOOKUP($K13,'1.1Назв. объ. эл. сетевого хоз.'!$D$2:$E$34,2,0)&\" изоляцией \"&\"сечением провода \"&VLOOKUP($L13,'1.1Назв. объ. эл. сетевого хоз.'!$D$2:$E$34,2,0)&\" \"&IF($M13=\"5) более четырех\",\"с количеством \"&IF($I13=\"6) метод горизонтального наклонного бурения\",VLOOKUP($M13,'1.1Назв. объ. эл. сетевого хоз.'!$D$2:$F$34,3,0),VLOOKUP($M13,'1.1Назв. объ. эл. сетевого хоз.'!$D$2:$E$34,2,0)),IF($I13=\"6) метод горизонтального наклонного бурения\",VLOOKUP($M13,'1.1Назв. объ. эл. сетевого хоз.'!$D$2:$F$34,3,0),VLOOKUP($M13,'1.1Назв. объ. эл. сетевого хоз.'!$D$2:$E$34,2,0)))&\" \"&VLOOKUP($I13,'1.1Назв. объ. эл. сетевого хоз.'!$D$2:$F$34,3,0))),\"Заполните все столбцы\")","v":"кабельные линии в траншеях одножильные c бумажной изоляцией сечением провода от 200 до 250 квадратных мм включительно с двумя кабелями в траншее"},"Строительство КЛ-10 кВ от РП(ТП) - 2х1000 кВА Станция скорой медицинской помощи до ТП-2х1000 кВА мкр. 31А Станция переливания крови","I ) Город","1) траншея","1) одножильный","2) бумажная","4) от 200 до 250 квадратных мм включительно","2) два","2) 1 - 10  кВ",{"$f":"Титульный!$D$10-2","v":2023},0.42,1818791,{"$f":"IF(OR($Q13=\"\",$P13=\"\"),\"Заполните все столбцы\",IF(AND(IF(AND(Q13<>0,P13<>0),Q13/P13,0)>=1000000,IF(AND(Q13<>0,P13<>0),Q13/P13,0)<=50000000),IF(AND(Q13<>0,P13<>0),Q13/P13,0),\"Значение расходов вне возможного диапазона\"))","v":4330454.7619047621},15,"Инвестиционная программа"]
[null,null,2,"3.1.1.2.4.2","С 3.1.1.2.4.2, 1 - 10  кВ",{"$f":"IFERROR(LOWER(\"кабельные линии\"&IF($I14=\"6) метод горизонтального наклонного бурения\",VLOOKUP($I14,'1.1Назв. объ. эл. сетевого хоз.'!$D$2:$E$34,2,0)&\" \"&VLOOKUP($J14,'1.1Назв. объ. эл. сетевого хоз.'!$D$2:$E$34,2,0)&\" c \"&VLOOKUP($K14,'1.1Назв. объ. эл. сетевого хоз.'!$D$2:$E$34,2,0)&\" изоляцией \"&\"сечением провода \"&VLOOKUP($L14,'1.1Назв. объ. эл. сетевого хоз.'!$D$2:$E$34,2,0)&\" \"&IF($M14=\"5) более четырех\",\"с количеством \"&IF($I14=\"6) метод горизонтального наклонного бурения\",VLOOKUP($M14,'1.1Назв. объ. эл. сетевого хоз.'!$D$2:$F$34,3,0),VLOOKUP($M14,'1.1Назв. объ. эл. сетевого хоз.'!$D$2:$E$34,2,0)),IF($I14=\"6) метод горизонтального наклонного бурения\",VLOOKUP($M14,'1.1Назв. объ. эл. сетевого хоз.'!$D$2:$F$34,3,0),VLOOKUP($M14,'1.1Назв. объ. эл. сетевого хоз.'!$D$2:$E$34,2,0))),VLOOKUP($I14,'1.1Назв. объ. эл. сетевого хоз.'!$D$2:$E$34,2,0)&\" \"&VLOOKUP($J14,'1.1Назв. объ. эл. сетевого хоз.'!$D$2:$E$34,2,0)&\" c \"&VLOOKUP($K14,'1.1Назв. объ. эл. сетевого хоз.'!$D$2:$E$34,2,0)&\" изоляцией \"&\"сечением провода \"&VLOOKUP($L14,'1.1Назв. объ. эл. сетевого хоз.'!$D$2:$E$34,2,0)&\" \"&IF($M14=\"5) более четырех\",\"с количеством \"&IF($I14=\"6) метод горизонтального наклонного бурения\",VLOOKUP($M14,'1.1Назв. объ. эл. сетевого хоз.'!$D$2:$F$34,3,0),VLOOKUP($M14,'1.1Назв. объ. эл. сетевого хоз.'!$D$2:$E$34,2,0)),IF($I14=\"6) метод горизонтального наклонного бурения\",VLOOKUP($M14,'1.1Назв. объ. эл. сетевого хоз.'!$D$2:$F$34,3,0),VLOOKUP($M14,'1.1Назв. объ. эл. сетевого хоз.'!$D$2:$E$34,2,0)))&\" \"&VLOOKUP($I14,'1.1Назв. объ. эл. сетевого хоз.'!$D$2:$F$34,3,0))),\"Заполните все столбцы\")","v":"кабельные линии в траншеях одножильные c бумажной изоляцией сечением провода от 200 до 250 квадратных мм включительно с двумя кабелями в траншее"},"Строительство КЛ-6 кВ от КТПН 1-630 кВА СТ №38 \"Берендей\" до КТПН 2-1000 кВА СТ №38 \"Берендей\"","I ) Город","1) траншея","1) одножильный","2) бумажная","4) от 200 до 250 квадратных мм включительно","2) два","2) 1 - 10  кВ",{"$f":"Титульный!$D$10-2","v":2023},0.59599999999999997,2723975.87,4570429.312080537,16,"Инвестиционная программа"]
[null,null,3,"3.1.1.1.3.4","С 3.1.1.1.3.4, 0,4 кВ и ниже",{"$f":"IFERROR(LOWER(\"кабельные линии\"&IF($I15=\"6) метод горизонтального наклонного бурения\",VLOOKUP($I15,'1.1Назв. объ. эл. сетевого хоз.'!$D$2:$E$34,2,0)&\" \"&VLOOKUP($J15,'1.1Назв. объ. эл. сетевого хоз.'!$D$2:$E$34,2,0)&\" c \"&VLOOKUP($K15,'1.1Назв. объ. эл. сетевого хоз.'!$D$2:$E$34,2,0)&\" изоляцией \"&\"сечением провода \"&VLOOKUP($L15,'1.1Назв. объ. эл. сетевого хоз.'!$D$2:$E$34,2,0)&\" \"&IF($M15=\"5) более четырех\",\"с количеством \"&IF($I15=\"6) метод горизонтального наклонного бурения\",VLOOKUP($M15,'1.1Назв. объ. эл. сетевого хоз.'!$D$2:$F$34,3,0),VLOOKUP($M15,'1.1Назв. объ. эл. сетевого хоз.'!$D$2:$E$34,2,0)),IF($I15=\"6) метод горизонтального наклонного бурения\",VLOOKUP($M15,'1.1Назв. объ. эл. сетевого хоз.'!$D$2:$F$34,3,0),VLOOKUP($M15,'1.1Назв. объ. эл. сетевого хоз.'!$D$2:$E$34,2,0))),VLOOKUP($I15,'1.1Назв. объ. эл. сетевого хоз.'!$D$2:$E$34,2,0)&\" \"&VLOOKUP($J15,'1.1Назв. объ. эл. сетевого хоз.'!$D$2:$E$34,2,0)&\" c \"&VLOOKUP($K15,'1.1Назв. объ. эл. сетевого хоз.'!$D$2:$E$34,2,0)&\" изоляцией \"&\"сечением провода \"&VLOOKUP($L15,'1.1Назв. объ. эл. сетевого хоз.'!$D$2:$E$34,2,0)&\" \"&IF($M15=\"5) более четырех\",\"с количеством \"&IF($I15=\"6) метод горизонтального наклонного бурения\",VLOOKUP($M15,'1.1Назв. объ. эл. сетевого хоз.'!$D$2:$F$34,3,0),VLOOKUP($M15,'1.1Назв. объ. эл. сетевого хоз.'!$D$2:$E$34,2,0)),IF($I15=\"6) метод горизонтального наклонного бурения\",VLOOKUP($M15,'1.1Назв. объ. эл. сетевого хоз.'!$D$2:$F$34,3,0),VLOOKUP($M15,'1.1Назв. объ. эл. сетевого хоз.'!$D$2:$E$34,2,0)))&\" \"&VLOOKUP($I15,'1.1Назв. объ. эл. сетевого хоз.'!$D$2:$F$34,3,0))),\"Заполните все столбцы\")","v":"кабельные линии в траншеях одножильные c резиновой или пластмассовой изоляцией сечением провода от 100 до 200 квадратных мм включительно с четырьмя кабелями в траншее"},"Строительство КЛ-0,4 кВ ТП-4 2х1600 кВА мкр. Марьина гора до ж/д №20 ВРУ-1","I ) Город","1) траншея","1) одножильный","1) резиновая или пластмассовая","3) от 100 до 200 квадратных мм включительно","4) четыре","1) 0,4 кВ и ниже",{"$f":"Титульный!$D$10-2","v":2023},3.6,848087.45,"Значение расходов вне возможного диапазона",17,"Инвестиционная программа"]
[null,null,4,"3.1.1.1.3.2","С 3.1.1.1.3.2, 0,4 кВ и ниже",{"$f":"IFERROR(LOWER(\"кабельные линии\"&IF($I16=\"6) метод горизонтального наклонного бурения\",VLOOKUP($I16,'1.1Назв. объ. эл. сетевого хоз.'!$D$2:$E$34,2,0)&\" \"&VLOOKUP($J16,'1.1Назв. объ. эл. сетевого хоз.'!$D$2:$E$34,2,0)&\" c \"&VLOOKUP($K16,'1.1Назв. объ. эл. сетевого хоз.'!$D$2:$E$34,2,0)&\" изоляцией \"&\"сечением провода \"&VLOOKUP($L16,'1.1Назв. объ. эл. сетевого хоз.'!$D$2:$E$34,2,0)&\" \"&IF($M16=\"5) более четырех\",\"с количеством \"&IF($I16=\"6) метод горизонтального наклонного бурения\",VLOOKUP($M16,'1.1Назв. объ. эл. сетевого хоз.'!$D$2:$F$34,3,0),VLOOKUP($M16,'1.1Назв. объ. эл. сетевого хоз.'!$D$2:$E$34,2,0)),IF($I16=\"6) метод горизонтального наклонного бурения\",VLOOKUP($M16,'1.1Назв. объ. эл. сетевого хоз.'!$D$2:$F$34,3,0),VLOOKUP($M16,'1.1Назв. объ. эл. сетевого хоз.'!$D$2:$E$34,2,0))),VLOOKUP($I16,'1.1Назв. объ. эл. сетевого хоз.'!$D$2:$E$34,2,0)&\" \"&VLOOKUP($J16,'1.1Назв. объ. эл. сетевого хоз.'!$D$2:$E$34,2,0)&\" c \"&VLOOKUP($K16,'1.1Назв. объ. эл. сетевого хоз.'!$D$2:$E$34,2,0)&\" изоляцией \"&\"сечением провода \"&VLOOKUP($L16,'1.1Назв. объ. эл. сетевого хоз.'!$D$2:$E$34,2,0)&\" \"&IF($M16=\"5) более четырех\",\"с количеством \"&IF($I16=\"6) метод горизонтального наклонного бурения\",VLOOKUP($M16,'1.1Назв. объ. эл. сетевого хоз.'!$D$2:$F$34,3,0),VLOOKUP($M16,'1.1Назв. объ. эл. сетевого хоз.'!$D$2:$E$34,2,0)),IF($I16=\"6) метод горизонтального наклонного бурения\",VLOOKUP($M16,'1.1Назв. объ. эл. сетевого хоз.'!$D$2:$F$34,3,0),VLOOKUP($M16,'1.1Назв. объ. эл. сетевого хоз.'!$D$2:$E$34,2,0)))&\" \"&VLOOKUP($I16,'1.1Назв. объ. эл. сетевого хоз.'!$D$2:$F$34,3,0))),\"Заполните все столбцы\")","v":"кабельные линии в траншеях одножильные c резиновой или пластмассовой изоляцией сечением провода от 100 до 200 квадратных мм включительно с двумя кабелями в траншее"},"Строительство КЛ-0,4 кВ ТП-4 2х1600 кВА мкр. Марьина гора до ж/д №20 ВРУ-2","I ) Город","1) траншея","1) одножильный","1) резиновая или пластмассовая","3) от 100 до 200 квадратных мм включительно","2) два","1) 0,4 кВ и ниже",{"$f":"Титульный!$D$10-2","v":2023},0.18,368991.02,2049950.1111111112,17,"Инвестиционная программа"]
[null," X ",5,"3.1.1.1.3.4",{"$f":"IFERROR(\"С \"&(MID($D17,1,LEN($D17)))&\",\"&(RIGHT($N17,LEN($N17)-2)),\"Заполните все столбцы\")","v":"С 3.1.1.1.3.4, 0,4 кВ и ниже"},{"$f":"IFERROR(LOWER(\"кабельные линии\"&IF($I17=\"6) метод горизонтального наклонного бурения\",VLOOKUP($I17,'1.1Назв. объ. эл. сетевого хоз.'!$D$2:$E$34,2,0)&\" \"&VLOOKUP($J17,'1.1Назв. объ. эл. сетевого хоз.'!$D$2:$E$34,2,0)&\" c \"&VLOOKUP($K17,'1.1Назв. объ. эл. сетевого хоз.'!$D$2:$E$34,2,0)&\" изоляцией \"&\"сечением провода \"&VLOOKUP($L17,'1.1Назв. объ. эл. сетевого хоз.'!$D$2:$E$34,2,0)&\" \"&IF($M17=\"5) более четырех\",\"с количеством \"&IF($I17=\"6) метод горизонтального наклонного бурения\",VLOOKUP($M17,'1.1Назв. объ. эл. сетевого хоз.'!$D$2:$F$34,3,0),VLOOKUP($M17,'1.1Назв. объ. эл. сетевого хоз.'!$D$2:$E$34,2,0)),IF($I17=\"6) метод горизонтального наклонного бурения\",VLOOKUP($M17,'1.1Назв. объ. эл. сетевого хоз.'!$D$2:$F$34,3,0),VLOOKUP($M17,'1.1Назв. объ. эл. сетевого хоз.'!$D$2:$E$34,2,0))),VLOOKUP($I17,'1.1Назв. объ. эл. сетевого хоз.'!$D$2:$E$34,2,0)&\" \"&VLOOKUP($J17,'1.1Назв. объ. эл. сетевого хоз.'!$D$2:$E$34,2,0)&\" c \"&VLOOKUP($K17,'1.1Назв. объ. эл. сетевого хоз.'!$D$2:$E$34,2,0)&\" изоляцией \"&\"сечением провода \"&VLOOKUP($L17,'1.1Назв. объ. эл. сетевого хоз.'!$D$2:$E$34,2,0)&\" \"&IF($M17=\"5) более четырех\",\"с количеством \"&IF($I17=\"6) метод горизонтального наклонного бурения\",VLOOKUP($M17,'1.1Назв. объ. эл. сетевого хоз.'!$D$2:$F$34,3,0),VLOOKUP($M17,'1.1Назв. объ. эл. сетевого хоз.'!$D$2:$E$34,2,0)),IF($I17=\"6) метод горизонтального наклонного бурения\",VLOOKUP($M17,'1.1Назв. объ. эл. сетевого хоз.'!$D$2:$F$34,3,0),VLOOKUP($M17,'1.1Назв. объ. эл. сетевого хоз.'!$D$2:$E$34,2,0)))&\" \"&VLOOKUP($I17,'1.1Назв. объ. эл. сетевого хоз.'!$D$2:$F$34,3,0))),\"Заполните все столбцы\")","v":"кабельные линии в траншеях одножильные c резиновой или пластмассовой изоляцией сечением провода от 100 до 200 квадратных мм включительно с четырьмя кабелями в траншее"},"Строительство КЛ-0,4 кВ ТП-3 2х2500 кВА мкр. Марьина гора до ж/д №21 ВРУ-1","I ) Город","1) траншея","1) одножильный","1) резиновая или пластмассовая","3) от 100 до 200 квадратных мм включительно","4) четыре","1) 0,4 кВ и ниже",{"$f":"Титульный!$D$10-2","v":2023},3.36,686285.21,"Значение расходов вне возможного диапазона",18,"Инвестиционная программа"]
[null," X ",6,"3.1.1.1.3.2","С 3.1.1.1.3.2, 0,4 кВ и ниже",{"$f":"IFERROR(LOWER(\"кабельные линии\"&IF($I18=\"6) метод горизонтального наклонного бурения\",VLOOKUP($I18,'1.1Назв. объ. эл. сетевого хоз.'!$D$2:$E$34,2,0)&\" \"&VLOOKUP($J18,'1.1Назв. объ. эл. сетевого хоз.'!$D$2:$E$34,2,0)&\" c \"&VLOOKUP($K18,'1.1Назв. объ. эл. сетевого хоз.'!$D$2:$E$34,2,0)&\" изоляцией \"&\"сечением провода \"&VLOOKUP($L18,'1.1Назв. объ. эл. сетевого хоз.'!$D$2:$E$34,2,0)&\" \"&IF($M18=\"5) более четырех\",\"с количеством \"&IF($I18=\"6) метод горизонтального наклонного бурения\",VLOOKUP($M18,'1.1Назв. объ. эл. сетевого хоз.'!$D$2:$F$34,3,0),VLOOKUP($M18,'1.1Назв. объ. эл. сетевого хоз.'!$D$2:$E$34,2,0)),IF($I18=\"6) метод горизонтального наклонного бурения\",VLOOKUP($M18,'1.1Назв. объ. эл. сетевого хоз.'!$D$2:$F$34,3,0),VLOOKUP($M18,'1.1Назв. объ. эл. сетевого хоз.'!$D$2:$E$34,2,0))),VLOOKUP($I18,'1.1Назв. объ. эл. сетевого хоз.'!$D$2:$E$34,2,0)&\" \"&VLOOKUP($J18,'1.1Назв. объ. эл. сетевого хоз.'!$D$2:$E$34,2,0)&\" c \"&VLOOKUP($K18,'1.1Назв. объ. эл. сетевого хоз.'!$D$2:$E$34,2,0)&\" изоляцией \"&\"сечением провода \"&VLOOKUP($L18,'1.1Назв. объ. эл. сетевого хоз.'!$D$2:$E$34,2,0)&\" \"&IF($M18=\"5) более четырех\",\"с количеством \"&IF($I18=\"6) метод горизонтального наклонного бурения\",VLOOKUP($M18,'1.1Назв. объ. эл. сетевого хоз.'!$D$2:$F$34,3,0),VLOOKUP($M18,'1.1Назв. объ. эл. сетевого хоз.'!$D$2:$E$34,2,0)),IF($I18=\"6) метод горизонтального наклонного бурения\",VLOOKUP($M18,'1.1Назв. объ. эл. сетевого хоз.'!$D$2:$F$34,3,0),VLOOKUP($M18,'1.1Назв. объ. эл. сетевого хоз.'!$D$2:$E$34,2,0)))&\" \"&VLOOKUP($I18,'1.1Назв. объ. эл. сетевого хоз.'!$D$2:$F$34,3,0))),\"Заполните все столбцы\")","v":"кабельные линии в траншеях одножильные c резиновой или пластмассовой изоляцией сечением провода от 100 до 200 квадратных мм включительно с двумя кабелями в траншее"},"Строительство КЛ-0,4 кВ ТП-3 2х2500 кВА мкр. Марьина гора до ж/д №21 ВРУ-2","I ) Город","1) траншея","1) одножильный","1) резиновая или пластмассовая","3) от 100 до 200 квадратных мм включительно","2) два","1) 0,4 кВ и ниже",{"$f":"Титульный!$D$10-2","v":2023},0.16800000000000001,278459.95,1657499.7023809524,18,"Инвестиционная программа"]
[null," X ",7,"3.1.1.1.3.4","С 3.1.1.1.3.4, 0,4 кВ и ниже",{"$f":"IFERROR(LOWER(\"кабельные линии\"&IF($I19=\"6) метод горизонтального наклонного бурения\",VLOOKUP($I19,'1.1Назв. объ. эл. сетевого хоз.'!$D$2:$E$34,2,0)&\" \"&VLOOKUP($J19,'1.1Назв. объ. эл. сетевого хоз.'!$D$2:$E$34,2,0)&\" c \"&VLOOKUP($K19,'1.1Назв. объ. эл. сетевого хоз.'!$D$2:$E$34,2,0)&\" изоляцией \"&\"сечением провода \"&VLOOKUP($L19,'1.1Назв. объ. эл. сетевого хоз.'!$D$2:$E$34,2,0)&\" \"&IF($M19=\"5) более четырех\",\"с количеством \"&IF($I19=\"6) метод горизонтального наклонного бурения\",VLOOKUP($M19,'1.1Назв. объ. эл. сетевого хоз.'!$D$2:$F$34,3,0),VLOOKUP($M19,'1.1Назв. объ. эл. сетевого хоз.'!$D$2:$E$34,2,0)),IF($I19=\"6) метод горизонтального наклонного бурения\",VLOOKUP($M19,'1.1Назв. объ. эл. сетевого хоз.'!$D$2:$F$34,3,0),VLOOKUP($M19,'1.1Назв. объ. эл. сетевого хоз.'!$D$2:$E$34,2,0))),VLOOKUP($I19,'1.1Назв. объ. эл. сетевого хоз.'!$D$2:$E$34,2,0)&\" \"&VLOOKUP($J19,'1.1Назв. объ. эл. сетевого хоз.'!$D$2:$E$34,2,0)&\" c \"&VLOOKUP($K19,'1.1Назв. объ. эл. сетевого хоз.'!$D$2:$E$34,2,0)&\" изоляцией \"&\"сечением провода \"&VLOOKUP($L19,'1.1Назв. объ. эл. сетевого хоз.'!$D$2:$E$34,2,0)&\" \"&IF($M19=\"5) более четырех\",\"с количеством \"&IF($I19=\"6) метод горизонтального наклонного бурения\",VLOOKUP($M19,'1.1Назв. объ. эл. сетевого хоз.'!$D$2:$F$34,3,0),VLOOKUP($M19,'1.1Назв. объ. эл. сетевого хоз.'!$D$2:$E$34,2,0)),IF($I19=\"6) метод горизонтального наклонного бурения\",VLOOKUP($M19,'1.1Назв. объ. эл. сетевого хоз.'!$D$2:$F$34,3,0),VLOOKUP($M19,'1.1Назв. объ. эл. сетевого хоз.'!$D$2:$E$34,2,0)))&\" \"&VLOOKUP($I19,'1.1Назв. объ. эл. сетевого хоз.'!$D$2:$F$34,3,0))),\"Заполните все столбцы\")","v":"кабельные линии в траншеях одножильные c резиновой или пластмассовой изоляцией сечением провода от 100 до 200 квадратных мм включительно с четырьмя кабелями в траншее"},"Строительство КЛ-0,4 кВ ТП-3 2х2500 кВА мкр. Марьина гора до ж/д №21 ВРУ-3","I ) Город","1) траншея","1) одножильный","1) резиновая или пластмассовая","3) от 100 до 200 квадратных мм включительно","4) четыре","1) 0,4 кВ и ниже",{"$f":"Титульный!$D$10-2","v":2023},0.33600000000000002,536060.13,1595417.0535714284,18,"Инвестиционная программа"]
[null," X ",8,"3.1.1.2.4.4","С 3.1.1.2.4.4, 1 - 10  кВ",{"$f":"IFERROR(LOWER(\"кабельные линии\"&IF($I20=\"6) метод горизонтального наклонного бурения\",VLOOKUP($I20,'1.1Назв. объ. эл. сетевого хоз.'!$D$2:$E$34,2,0)&\" \"&VLOOKUP($J20,'1.1Назв. объ. эл. сетевого хоз.'!$D$2:$E$34,2,0)&\" c \"&VLOOKUP($K20,'1.1Назв. объ. эл. сетевого хоз.'!$D$2:$E$34,2,0)&\" изоляцией \"&\"сечением провода \"&VLOOKUP($L20,'1.1Назв. объ. эл. сетевого хоз.'!$D$2:$E$34,2,0)&\" \"&IF($M20=\"5) более четырех\",\"с количеством \"&IF($I20=\"6) метод горизонтального наклонного бурения\",VLOOKUP($M20,'1.1Назв. объ. эл. сетевого хоз.'!$D$2:$F$34,3,0),VLOOKUP($M20,'1.1Назв. объ. эл. сетевого хоз.'!$D$2:$E$34,2,0)),IF($I20=\"6) метод горизонтального наклонного бурения\",VLOOKUP($M20,'1.1Назв. объ. эл. сетевого хоз.'!$D$2:$F$34,3,0),VLOOKUP($M20,'1.1Назв. объ. эл. сетевого хоз.'!$D$2:$E$34,2,0))),VLOOKUP($I20,'1.1Назв. объ. эл. сетевого хоз.'!$D$2:$E$34,2,0)&\" \"&VLOOKUP($J20,'1.1Назв. объ. эл. сетевого хоз.'!$D$2:$E$34,2,0)&\" c \"&VLOOKUP($K20,'1.1Назв. объ. эл. сетевого хоз.'!$D$2:$E$34,2,0)&\" изоляцией \"&\"сечением провода \"&VLOOKUP($L20,'1.1Назв. объ. эл. сетевого хоз.'!$D$2:$E$34,2,0)&\" \"&IF($M20=\"5) более четырех\",\"с количеством \"&IF($I20=\"6) метод горизонтального наклонного бурения\",VLOOKUP($M20,'1.1Назв. объ. эл. сетевого хоз.'!$D$2:$F$34,3,0),VLOOKUP($M20,'1.1Назв. объ. эл. сетевого хоз.'!$D$2:$E$34,2,0)),IF($I20=\"6) метод горизонтального наклонного бурения\",VLOOKUP($M20,'1.1Назв. объ. эл. сетевого хоз.'!$D$2:$F$34,3,0),VLOOKUP($M20,'1.1Назв. объ. эл. сетевого хоз.'!$D$2:$E$34,2,0)))&\" \"&VLOOKUP($I20,'1.1Назв. объ. эл. сетевого хоз.'!$D$2:$F$34,3,0))),\"Заполните все столбцы\")","v":"кабельные линии в траншеях одножильные c бумажной изоляцией сечением провода от 200 до 250 квадратных мм включительно с четырьмя кабелями в траншее"},"Строительство КЛ-10 кВ от ТП-2х1000 кВА мкр. 48 до оп 23 ВЛ-10 кВ ПС-12 до РП-133 ЭСК-24","I ) Город","1) траншея","1) одножильный","2) бумажная","4) от 200 до 250 квадратных мм включительно","4) четыре","2) 1 - 10  кВ",{"$f":"Титульный!$D$10-2","v":2023},1.74,7952751.9100000001,4570547.0747126434,"19, 19.1","Инвестиционная программа"]
[null," X ",9,"3.1.1.2.4.2","С 3.1.1.2.4.2, 1 - 10  кВ",{"$f":"IFERROR(LOWER(\"кабельные линии\"&IF($I21=\"6) метод горизонтального наклонного бурения\",VLOOKUP($I21,'1.1Назв. объ. эл. сетевого хоз.'!$D$2:$E$34,2,0)&\" \"&VLOOKUP($J21,'1.1Назв. объ. эл. сетевого хоз.'!$D$2:$E$34,2,0)&\" c \"&VLOOKUP($K21,'1.1Назв. объ. эл. сетевого хоз.'!$D$2:$E$34,2,0)&\" изоляцией \"&\"сечением провода \"&VLOOKUP($L21,'1.1Назв. объ. эл. сетевого хоз.'!$D$2:$E$34,2,0)&\" \"&IF($M21=\"5) более четырех\",\"с количеством \"&IF($I21=\"6) метод горизонтального наклонного бурения\",VLOOKUP($M21,'1.1Назв. объ. эл. сетевого хоз.'!$D$2:$F$34,3,0),VLOOKUP($M21,'1.1Назв. объ. эл. сетевого хоз.'!$D$2:$E$34,2,0)),IF($I21=\"6) метод горизонтального наклонного бурения\",VLOOKUP($M21,'1.1Назв. объ. эл. сетевого хоз.'!$D$2:$F$34,3,0),VLOOKUP($M21,'1.1Назв. объ. эл. сетевого хоз.'!$D$2:$E$34,2,0))),VLOOKUP($I21,'1.1Назв. объ. эл. сетевого хоз.'!$D$2:$E$34,2,0)&\" \"&VLOOKUP($J21,'1.1Назв. объ. эл. сетевого хоз.'!$D$2:$E$34,2,0)&\" c \"&VLOOKUP($K21,'1.1Назв. объ. эл. сетевого хоз.'!$D$2:$E$34,2,0)&\" изоляцией \"&\"сечением провода \"&VLOOKUP($L21,'1.1Назв. объ. эл. сетевого хоз.'!$D$2:$E$34,2,0)&\" \"&IF($M21=\"5) более четырех\",\"с количеством \"&IF($I21=\"6) метод горизонтального наклонного бурения\",VLOOKUP($M21,'1.1Назв. объ. эл. сетевого хоз.'!$D$2:$F$34,3,0),VLOOKUP($M21,'1.1Назв. объ. эл. сетевого хоз.'!$D$2:$E$34,2,0)),IF($I21=\"6) метод горизонтального наклонного бурения\",VLOOKUP($M21,'1.1Назв. объ. эл. сетевого хоз.'!$D$2:$F$34,3,0),VLOOKUP($M21,'1.1Назв. объ. эл. сетевого хоз.'!$D$2:$E$34,2,0)))&\" \"&VLOOKUP($I21,'1.1Назв. объ. эл. сетевого хоз.'!$D$2:$F$34,3,0))),\"Заполните все столбцы\")","v":"кабельные линии в траншеях одножильные c бумажной изоляцией сечением провода от 200 до 250 квадратных мм включительно с двумя кабелями в траншее"},"Строительство КЛ-10 кВ от РП-155 до ТП-2х2500 кВА (стр. 55) мкр. 30","I ) Город","1) траншея","1) одножильный","2) бумажная","4) от 200 до 250 квадратных мм включительно","2) два","2) 1 - 10  кВ",{"$f":"Титульный!$D$10-2","v":2023},0.68400000000000005,5266660.01,7699795.3362573087,20,"Инвестиционная программа"]
[null," X ",10,"3.1.1.1.1.2","С 3.1.1.1.1.2, 0,4 кВ и ниже",{"$f":"IFERROR(LOWER(\"кабельные линии\"&IF($I22=\"6) метод горизонтального наклонного бурения\",VLOOKUP($I22,'1.1Назв. объ. эл. сетевого хоз.'!$D$2:$E$34,2,0)&\" \"&VLOOKUP($J22,'1.1Назв. объ. эл. сетевого хоз.'!$D$2:$E$34,2,0)&\" c \"&VLOOKUP($K22,'1.1Назв. объ. эл. сетевого хоз.'!$D$2:$E$34,2,0)&\" изоляцией \"&\"сечением провода \"&VLOOKUP($L22,'1.1Назв. объ. эл. сетевого хоз.'!$D$2:$E$34,2,0)&\" \"&IF($M22=\"5) более четырех\",\"с количеством \"&IF($I22=\"6) метод горизонтального наклонного бурения\",VLOOKUP($M22,'1.1Назв. объ. эл. сетевого хоз.'!$D$2:$F$34,3,0),VLOOKUP($M22,'1.1Назв. объ. эл. сетевого хоз.'!$D$2:$E$34,2,0)),IF($I22=\"6) метод горизонтального наклонного бурения\",VLOOKUP($M22,'1.1Назв. объ. эл. сетевого хоз.'!$D$2:$F$34,3,0),VLOOKUP($M22,'1.1Назв. объ. эл. сетевого хоз.'!$D$2:$E$34,2,0))),VLOOKUP($I22,'1.1Назв. объ. эл. сетевого хоз.'!$D$2:$E$34,2,0)&\" \"&VLOOKUP($J22,'1.1Назв. объ. эл. сетевого хоз.'!$D$2:$E$34,2,0)&\" c \"&VLOOKUP($K22,'1.1Назв. объ. эл. сетевого хоз.'!$D$2:$E$34,2,0)&\" изоляцией \"&\"сечением провода \"&VLOOKUP($L22,'1.1Назв. объ. эл. сетевого хоз.'!$D$2:$E$34,2,0)&\" \"&IF($M22=\"5) более четырех\",\"с количеством \"&IF($I22=\"6) метод горизонтального наклонного бурения\",VLOOKUP($M22,'1.1Назв. объ. эл. сетевого хоз.'!$D$2:$F$34,3,0),VLOOKUP($M22,'1.1Назв. объ. эл. сетевого хоз.'!$D$2:$E$34,2,0)),IF($I22=\"6) метод горизонтального наклонного бурения\",VLOOKUP($M22,'1.1Назв. объ. эл. сетевого хоз.'!$D$2:$F$34,3,0),VLOOKUP($M22,'1.1Назв. объ. эл. сетевого хоз.'!$D$2:$E$34,2,0)))&\" \"&VLOOKUP($I22,'1.1Назв. объ. эл. сетевого хоз.'!$D$2:$F$34,3,0))),\"Заполните все столбцы\")","v":"кабельные линии в траншеях одножильные c резиновой или пластмассовой изоляцией сечением провода до 50 квадратных мм включительно с двумя кабелями в траншее"},"Строительство КЛ-0,4 кВ от ТП-265 до нежилого помещения ОАО \"Сургутбытсервис\"","I ) Город","1) траншея","1) одножильный","1) резиновая или пластмассовая","1) до 50 квадратных мм включительно","2) два","1) 0,4 кВ и ниже",{"$f":"Титульный!$D$10-2","v":2023},0.35199999999999998,2887683,8203644.8863636367,21,"Инвестиционная программа"]
[null," X ",11,"3.1.1.1.1.1","С 3.1.1.1.1.1, 0,4 кВ и ниже",{"$f":"IFERROR(LOWER(\"кабельные линии\"&IF($I23=\"6) метод горизонтального наклонного бурения\",VLOOKUP($I23,'1.1Назв. объ. эл. сетевого хоз.'!$D$2:$E$34,2,0)&\" \"&VLOOKUP($J23,'1.1Назв. объ. эл. сетевого хоз.'!$D$2:$E$34,2,0)&\" c \"&VLOOKUP($K23,'1.1Назв. объ. эл. сетевого хоз.'!$D$2:$E$34,2,0)&\" изоляцией \"&\"сечением провода \"&VLOOKUP($L23,'1.1Назв. объ. эл. сетевого хоз.'!$D$2:$E$34,2,0)&\" \"&IF($M23=\"5) более четырех\",\"с количеством \"&IF($I23=\"6) метод горизонтального наклонного бурения\",VLOOKUP($M23,'1.1Назв. объ. эл. сетевого хоз.'!$D$2:$F$34,3,0),VLOOKUP($M23,'1.1Назв. объ. эл. сетевого хоз.'!$D$2:$E$34,2,0)),IF($I23=\"6) метод горизонтального наклонного бурения\",VLOOKUP($M23,'1.1Назв. объ. эл. сетевого хоз.'!$D$2:$F$34,3,0),VLOOKUP($M23,'1.1Назв. объ. эл. сетевого хоз.'!$D$2:$E$34,2,0))),VLOOKUP($I23,'1.1Назв. объ. эл. сетевого хоз.'!$D$2:$E$34,2,0)&\" \"&VLOOKUP($J23,'1.1Назв. объ. эл. сетевого хоз.'!$D$2:$E$34,2,0)&\" c \"&VLOOKUP($K23,'1.1Назв. объ. эл. сетевого хоз.'!$D$2:$E$34,2,0)&\" изоляцией \"&\"сечением провода \"&VLOOKUP($L23,'1.1Назв. объ. эл. сетевого хоз.'!$D$2:$E$34,2,0)&\" \"&IF($M23=\"5) более четырех\",\"с количеством \"&IF($I23=\"6) метод горизонтального наклонного бурения\",VLOOKUP($M23,'1.1Назв. объ. эл. сетевого хоз.'!$D$2:$F$34,3,0),VLOOKUP($M23,'1.1Назв. объ. эл. сетевого хоз.'!$D$2:$E$34,2,0)),IF($I23=\"6) метод горизонтального наклонного бурения\",VLOOKUP($M23,'1.1Назв. объ. эл. сетевого хоз.'!$D$2:$F$34,3,0),VLOOKUP($M23,'1.1Назв. объ. эл. сетевого хоз.'!$D$2:$E$34,2,0)))&\" \"&VLOOKUP($I23,'1.1Назв. объ. эл. сетевого хоз.'!$D$2:$F$34,3,0))),\"Заполните все столбцы\")","v":"кабельные линии в траншеях одножильные c резиновой или пластмассовой изоляцией сечением провода до 50 квадратных мм включительно с одним кабелем в траншее"},"Строительство КЛ-0,4 кВ от ТП-265 до потребительского гаражного кооператива \"Газон\"","I ) Город","1) траншея","1) одножильный","1) резиновая или пластмассовая","1) до 50 квадратных мм включительно","1) один","1) 0,4 кВ и ниже",{"$f":"Титульный!$D$10-2","v":2023},0.69,137012.28,"Значение расходов вне возможного диапазона",21,"Инвестиционная программа"]
[null," X ",12,"3.1.1.1.1.1","С 3.1.1.1.1.1, 0,4 кВ и ниже",{"$f":"IFERROR(LOWER(\"кабельные линии\"&IF($I24=\"6) метод горизонтального наклонного бурения\",VLOOKUP($I24,'1.1Назв. объ. эл. сетевого хоз.'!$D$2:$E$34,2,0)&\" \"&VLOOKUP($J24,'1.1Назв. объ. эл. сетевого хоз.'!$D$2:$E$34,2,0)&\" c \"&VLOOKUP($K24,'1.1Назв. объ. эл. сетевого хоз.'!$D$2:$E$34,2,0)&\" изоляцией \"&\"сечением провода \"&VLOOKUP($L24,'1.1Назв. объ. эл. сетевого хоз.'!$D$2:$E$34,2,0)&\" \"&IF($M24=\"5) более четырех\",\"с количеством \"&IF($I24=\"6) метод горизонтального наклонного бурения\",VLOOKUP($M24,'1.1Назв. объ. эл. сетевого хоз.'!$D$2:$F$34,3,0),VLOOKUP($M24,'1.1Назв. объ. эл. сетевого хоз.'!$D$2:$E$34,2,0)),IF($I24=\"6) метод горизонтального наклонного бурения\",VLOOKUP($M24,'1.1Назв. объ. эл. сетевого хоз.'!$D$2:$F$34,3,0),VLOOKUP($M24,'1.1Назв. объ. эл. сетевого хоз.'!$D$2:$E$34,2,0))),VLOOKUP($I24,'1.1Назв. объ. эл. сетевого хоз.'!$D$2:$E$34,2,0)&\" \"&VLOOKUP($J24,'1.1Назв. объ. эл. сетевого хоз.'!$D$2:$E$34,2,0)&\" c \"&VLOOKUP($K24,'1.1Назв. объ. эл. сетевого хоз.'!$D$2:$E$34,2,0)&\" изоляцией \"&\"сечением провода \"&VLOOKUP($L24,'1.1Назв. объ. эл. сетевого хоз.'!$D$2:$E$34,2,0)&\" \"&IF($M24=\"5) более четырех\",\"с количеством \"&IF($I24=\"6) метод горизонтального наклонного бурения\",VLOOKUP($M24,'1.1Назв. объ. эл. сетевого хоз.'!$D$2:$F$34,3,0),VLOOKUP($M24,'1.1Назв. объ. эл. сетевого хоз.'!$D$2:$E$34,2,0)),IF($I24=\"6) метод горизонтального наклонного бурения\",VLOOKUP($M24,'1.1Назв. объ. эл. сетевого хоз.'!$D$2:$F$34,3,0),VLOOKUP($M24,'1.1Назв. объ. эл. сетевого хоз.'!$D$2:$E$34,2,0)))&\" \"&VLOOKUP($I24,'1.1Назв. объ. эл. сетевого хоз.'!$D$2:$F$34,3,0))),\"Заполните все столбцы\")","v":"кабельные линии в траншеях одножильные c резиновой или пластмассовой изоляцией сечением провода до 50 квадратных мм включительно с одним кабелем в траншее"},"Строительство КЛ-0,4 кВ от ВРУ Майская 14 до остановочного комплекса","I ) Город","1) траншея","1) одножильный","1) резиновая или пластмассовая","1) до 50 квадратных мм включительно","1) один","1) 0,4 кВ и ниже",{"$f":"Титульный!$D$10-2","v":2023},0.85,238756,"Значение расходов вне возможного диапазона",22,"Инвестиционная программа"]
[null," X ",13,"3.1.1.1.3.2","С 3.1.1.1.3.2, 0,4 кВ и ниже",{"$f":"IFERROR(LOWER(\"кабельные линии\"&IF($I25=\"6) метод горизонтального наклонного бурения\",VLOOKUP($I25,'1.1Назв. объ. эл. сетевого хоз.'!$D$2:$E$34,2,0)&\" \"&VLOOKUP($J25,'1.1Назв. объ. эл. сетевого хоз.'!$D$2:$E$34,2,0)&\" c \"&VLOOKUP($K25,'1.1Назв. объ. эл. сетевого хоз.'!$D$2:$E$34,2,0)&\" изоляцией \"&\"сечением провода \"&VLOOKUP($L25,'1.1Назв. объ. эл. сетевого хоз.'!$D$2:$E$34,2,0)&\" \"&IF($M25=\"5) более четырех\",\"с количеством \"&IF($I25=\"6) метод горизонтального наклонного бурения\",VLOOKUP($M25,'1.1Назв. объ. эл. сетевого хоз.'!$D$2:$F$34,3,0),VLOOKUP($M25,'1.1Назв. объ. эл. сетевого хоз.'!$D$2:$E$34,2,0)),IF($I25=\"6) метод горизонтального наклонного бурения\",VLOOKUP($M25,'1.1Назв. объ. эл. сетевого хоз.'!$D$2:$F$34,3,0),VLOOKUP($M25,'1.1Назв. объ. эл. сетевого хоз.'!$D$2:$E$34,2,0))),VLOOKUP($I25,'1.1Назв. объ. эл. сетевого хоз.'!$D$2:$E$34,2,0)&\" \"&VLOOKUP($J25,'1.1Назв. объ. эл. сетевого хоз.'!$D$2:$E$34,2,0)&\" c \"&VLOOKUP($K25,'1.1Назв. объ. эл. сетевого хоз.'!$D$2:$E$34,2,0)&\" изоляцией \"&\"сечением провода \"&VLOOKUP($L25,'1.1Назв. объ. эл. сетевого хоз.'!$D$2:$E$34,2,0)&\" \"&IF($M25=\"5) более четырех\",\"с количеством \"&IF($I25=\"6) метод горизонтального наклонного бурения\",VLOOKUP($M25,'1.1Назв. объ. эл. сетевого хоз.'!$D$2:$F$34,3,0),VLOOKUP($M25,'1.1Назв. объ. эл. сетевого хоз.'!$D$2:$E$34,2,0)),IF($I25=\"6) метод горизонтального наклонного бурения\",VLOOKUP($M25,'1.1Назв. объ. эл. сетевого хоз.'!$D$2:$F$34,3,0),VLOOKUP($M25,'1.1Назв. объ. эл. сетевого хоз.'!$D$2:$E$34,2,0)))&\" \"&VLOOKUP($I25,'1.1Назв. объ. эл. сетевого хоз.'!$D$2:$F$34,3,0))),\"Заполните все столбцы\")","v":"кабельные линии в траншеях одножильные c резиновой или пластмассовой изоляцией сечением провода от 100 до 200 квадратных мм включительно с двумя кабелями в траншее"},"Строительство КЛ-0,4 кВ ТП-267 ул. Майская 6/2","I ) Город","1) траншея","1) одножильный","1) резиновая или пластмассовая","3) от 100 до 200 квадратных мм включительно","2) два","1) 0,4 кВ и ниже",{"$f":"Титульный!$D$10-2","v":2023},0.77,5165376,6708280.519480519,22,"Инвестиционная программа"]
[null," X ",14,"3.1.1.1.3.2","С 3.1.1.1.3.2, 0,4 кВ и ниже",{"$f":"IFERROR(LOWER(\"кабельные линии\"&IF($I26=\"6) метод горизонтального наклонного бурения\",VLOOKUP($I26,'1.1Назв. объ. эл. сетевого хоз.'!$D$2:$E$34,2,0)&\" \"&VLOOKUP($J26,'1.1Назв. объ. эл. сетевого хоз.'!$D$2:$E$34,2,0)&\" c \"&VLOOKUP($K26,'1.1Назв. объ. эл. сетевого хоз.'!$D$2:$E$34,2,0)&\" изоляцией \"&\"сечением провода \"&VLOOKUP($L26,'1.1Назв. объ. эл. сетевого хоз.'!$D$2:$E$34,2,0)&\" \"&IF($M26=\"5) более четырех\",\"с количеством \"&IF($I26=\"6) метод горизонтального наклонного бурения\",VLOOKUP($M26,'1.1Назв. объ. эл. сетевого хоз.'!$D$2:$F$34,3,0),VLOOKUP($M26,'1.1Назв. объ. эл. сетевого хоз.'!$D$2:$E$34,2,0)),IF($I26=\"6) метод горизонтального наклонного бурения\",VLOOKUP($M26,'1.1Назв. объ. эл. сетевого хоз.'!$D$2:$F$34,3,0),VLOOKUP($M26,'1.1Назв. объ. эл. сетевого хоз.'!$D$2:$E$34,2,0))),VLOOKUP($I26,'1.1Назв. объ. эл. сетевого хоз.'!$D$2:$E$34,2,0)&\" \"&VLOOKUP($J26,'1.1Назв. объ. эл. сетевого хоз.'!$D$2:$E$34,2,0)&\" c \"&VLOOKUP($K26,'1.1Назв. объ. эл. сетевого хоз.'!$D$2:$E$34,2,0)&\" изоляцией \"&\"сечением провода \"&VLOOKUP($L26,'1.1Назв. объ. эл. сетевого хоз.'!$D$2:$E$34,2,0)&\" \"&IF($M26=\"5) более четырех\",\"с количеством \"&IF($I26=\"6) метод горизонтального наклонного бурения\",VLOOKUP($M26,'1.1Назв. объ. эл. сетевого хоз.'!$D$2:$F$34,3,0),VLOOKUP($M26,'1.1Назв. объ. эл. сетевого хоз.'!$D$2:$E$34,2,0)),IF($I26=\"6) метод горизонтального наклонного бурения\",VLOOKUP($M26,'1.1Назв. объ. эл. сетевого хоз.'!$D$2:$F$34,3,0),VLOOKUP($M26,'1.1Назв. объ. эл. сетевого хоз.'!$D$2:$E$34,2,0)))&\" \"&VLOOKUP($I26,'1.1Назв. объ. эл. сетевого хоз.'!$D$2:$F$34,3,0))),\"Заполните все столбцы\")","v":"кабельные линии в траншеях одножильные c резиновой или пластмассовой изоляцией сечением провода от 100 до 200 квадратных мм включительно с двумя кабелями в траншее"},"Строительство КЛ-0,4 кВ от ТП-333 до д/с \"Крепыш\"","I ) Город","1) траншея","1) одножильный","1) резиновая или пластмассовая","3) от 100 до 200 квадратных мм включительно","2) два","1) 0,4 кВ и ниже",{"$f":"Титульный!$D$10-2","v":2023},0.442,1707402.64,3862901.9004524886,22,"Инвестиционная программа"]
[null," X ",15,"3.1.1.1.4.4","С 3.1.1.1.4.4, 0,4 кВ и ниже",{"$f":"IFERROR(LOWER(\"кабельные линии\"&IF($I27=\"6) метод горизонтального наклонного бурения\",VLOOKUP($I27,'1.1Назв. объ. эл. сетевого хоз.'!$D$2:$E$34,2,0)&\" \"&VLOOKUP($J27,'1.1Назв. объ. эл. сетевого хоз.'!$D$2:$E$34,2,0)&\" c \"&VLOOKUP($K27,'1.1Назв. объ. эл. сетевого хоз.'!$D$2:$E$34,2,0)&\" изоляцией \"&\"сечением провода \"&VLOOKUP($L27,'1.1Назв. объ. эл. сетевого хоз.'!$D$2:$E$34,2,0)&\" \"&IF($M27=\"5) более четырех\",\"с количеством \"&IF($I27=\"6) метод горизонтального наклонного бурения\",VLOOKUP($M27,'1.1Назв. объ. эл. сетевого хоз.'!$D$2:$F$34,3,0),VLOOKUP($M27,'1.1Назв. объ. эл. сетевого хоз.'!$D$2:$E$34,2,0)),IF($I27=\"6) метод горизонтального наклонного бурения\",VLOOKUP($M27,'1.1Назв. объ. эл. сетевого хоз.'!$D$2:$F$34,3,0),VLOOKUP($M27,'1.1Назв. объ. эл. сетевого хоз.'!$D$2:$E$34,2,0))),VLOOKUP($I27,'1.1Назв. объ. эл. сетевого хоз.'!$D$2:$E$34,2,0)&\" \"&VLOOKUP($J27,'1.1Назв. объ. эл. сетевого хоз.'!$D$2:$E$34,2,0)&\" c \"&VLOOKUP($K27,'1.1Назв. объ. эл. сетевого хоз.'!$D$2:$E$34,2,0)&\" изоляцией \"&\"сечением провода \"&VLOOKUP($L27,'1.1Назв. объ. эл. сетевого хоз.'!$D$2:$E$34,2,0)&\" \"&IF($M27=\"5) более четырех\",\"с количеством \"&IF($I27=\"6) метод горизонтального наклонного бурения\",VLOOKUP($M27,'1.1Назв. объ. эл. сетевого хоз.'!$D$2:$F$34,3,0),VLOOKUP($M27,'1.1Назв. объ. эл. сетевого хоз.'!$D$2:$E$34,2,0)),IF($I27=\"6) метод горизонтального наклонного бурения\",VLOOKUP($M27,'1.1Назв. объ. эл. сетевого хоз.'!$D$2:$F$34,3,0),VLOOKUP($M27,'1.1Назв. объ. эл. сетевого хоз.'!$D$2:$E$34,2,0)))&\" \"&VLOOKUP($I27,'1.1Назв. объ. эл. сетевого хоз.'!$D$2:$F$34,3,0))),\"Заполните все столбцы\")","v":"кабельные линии в траншеях одножильные c резиновой или пластмассовой изоляцией сечением провода от 200 до 250 квадратных мм включительно с четырьмя кабелями в траншее"},"Строительство КЛ-0,4 кВ от ТП-265 до Бизнес центр","I ) Город","1) траншея","1) одножильный","1) резиновая или пластмассовая","4) от 200 до 250 квадратных мм включительно","4) четыре","1) 0,4 кВ и ниже",{"$f":"Титульный!$D$10-2","v":2023},1.1479999999999999,10905257,9499352.7874564473,23,"Инвестиционная программа"]
[null," X ",16,"3.1.1.1.3.2","С 3.1.1.1.3.2, 0,4 кВ и ниже",{"$f":"IFERROR(LOWER(\"кабельные линии\"&IF($I28=\"6) метод горизонтального наклонного бурения\",VLOOKUP($I28,'1.1Назв. объ. эл. сетевого хоз.'!$D$2:$E$34,2,0)&\" \"&VLOOKUP($J28,'1.1Назв. объ. эл. сетевого хоз.'!$D$2:$E$34,2,0)&\" c \"&VLOOKUP($K28,'1.1Назв. объ. эл. сетевого хоз.'!$D$2:$E$34,2,0)&\" изоляцией \"&\"сечением провода \"&VLOOKUP($L28,'1.1Назв. объ. эл. сетевого хоз.'!$D$2:$E$34,2,0)&\" \"&IF($M28=\"5) более четырех\",\"с количеством \"&IF($I28=\"6) метод горизонтального наклонного бурения\",VLOOKUP($M28,'1.1Назв. объ. эл. сетевого хоз.'!$D$2:$F$34,3,0),VLOOKUP($M28,'1.1Назв. объ. эл. сетевого хоз.'!$D$2:$E$34,2,0)),IF($I28=\"6) метод горизонтального наклонного бурения\",VLOOKUP($M28,'1.1Назв. объ. эл. сетевого хоз.'!$D$2:$F$34,3,0),VLOOKUP($M28,'1.1Назв. объ. эл. сетевого хоз.'!$D$2:$E$34,2,0))),VLOOKUP($I28,'1.1Назв. объ. эл. сетевого хоз.'!$D$2:$E$34,2,0)&\" \"&VLOOKUP($J28,'1.1Назв. объ. эл. сетевого хоз.'!$D$2:$E$34,2,0)&\" c \"&VLOOKUP($K28,'1.1Назв. объ. эл. сетевого хоз.'!$D$2:$E$34,2,0)&\" изоляцией \"&\"сечением провода \"&VLOOKUP($L28,'1.1Назв. объ. эл. сетевого хоз.'!$D$2:$E$34,2,0)&\" \"&IF($M28=\"5) более четырех\",\"с количеством \"&IF($I28=\"6) метод горизонтального наклонного бурения\",VLOOKUP($M28,'1.1Назв. объ. эл. сетевого хоз.'!$D$2:$F$34,3,0),VLOOKUP($M28,'1.1Назв. объ. эл. сетевого хоз.'!$D$2:$E$34,2,0)),IF($I28=\"6) метод горизонтального наклонного бурения\",VLOOKUP($M28,'1.1Назв. объ. эл. сетевого хоз.'!$D$2:$F$34,3,0),VLOOKUP($M28,'1.1Назв. объ. эл. сетевого хоз.'!$D$2:$E$34,2,0)))&\" \"&VLOOKUP($I28,'1.1Назв. объ. эл. сетевого хоз.'!$D$2:$F$34,3,0))),\"Заполните все столбцы\")","v":"кабельные линии в траншеях одножильные c резиновой или пластмассовой изоляцией сечением провода от 100 до 200 квадратных мм включительно с двумя кабелями в траншее"},"Строительство КЛ-0,4 кВ ТП-276 - Бахилова, 3","I ) Город","1) траншея","1) одножильный","1) резиновая или пластмассовая","3) от 100 до 200 квадратных мм включительно","2) два","1) 0,4 кВ и ниже",{"$f":"Титульный!$D$10-2","v":2023},1.68,423122,"Значение расходов вне возможного диапазона",24,"Инвестиционная программа"]
[null," X ",17,"3.1.1.1.3.2","С 3.1.1.1.3.2, 0,4 кВ и ниже",{"$f":"IFERROR(LOWER(\"кабельные линии\"&IF($I29=\"6) метод горизонтального наклонного бурения\",VLOOKUP($I29,'1.1Назв. объ. эл. сетевого хоз.'!$D$2:$E$34,2,0)&\" \"&VLOOKUP($J29,'1.1Назв. объ. эл. сетевого хоз.'!$D$2:$E$34,2,0)&\" c \"&VLOOKUP($K29,'1.1Назв. объ. эл. сетевого хоз.'!$D$2:$E$34,2,0)&\" изоляцией \"&\"сечением провода \"&VLOOKUP($L29,'1.1Назв. объ. эл. сетевого хоз.'!$D$2:$E$34,2,0)&\" \"&IF($M29=\"5) более четырех\",\"с количеством \"&IF($I29=\"6) метод горизонтального наклонного бурения\",VLOOKUP($M29,'1.1Назв. объ. эл. сетевого хоз.'!$D$2:$F$34,3,0),VLOOKUP($M29,'1.1Назв. объ. эл. сетевого хоз.'!$D$2:$E$34,2,0)),IF($I29=\"6) метод горизонтального наклонного бурения\",VLOOKUP($M29,'1.1Назв. объ. эл. сетевого хоз.'!$D$2:$F$34,3,0),VLOOKUP($M29,'1.1Назв. объ. эл. сетевого хоз.'!$D$2:$E$34,2,0))),VLOOKUP($I29,'1.1Назв. объ. эл. сетевого хоз.'!$D$2:$E$34,2,0)&\" \"&VLOOKUP($J29,'1.1Назв. объ. эл. сетевого хоз.'!$D$2:$E$34,2,0)&\" c \"&VLOOKUP($K29,'1.1Назв. объ. эл. сетевого хоз.'!$D$2:$E$34,2,0)&\" изоляцией \"&\"сечением провода \"&VLOOKUP($L29,'1.1Назв. объ. эл. сетевого хоз.'!$D$2:$E$34,2,0)&\" \"&IF($M29=\"5) более четырех\",\"с количеством \"&IF($I29=\"6) метод горизонтального наклонного бурения\",VLOOKUP($M29,'1.1Назв. объ. эл. сетевого хоз.'!$D$2:$F$34,3,0),VLOOKUP($M29,'1.1Назв. объ. эл. сетевого хоз.'!$D$2:$E$34,2,0)),IF($I29=\"6) метод горизонтального наклонного бурения\",VLOOKUP($M29,'1.1Назв. объ. эл. сетевого хоз.'!$D$2:$F$34,3,0),VLOOKUP($M29,'1.1Назв. объ. эл. сетевого хоз.'!$D$2:$E$34,2,0)))&\" \"&VLOOKUP($I29,'1.1Назв. объ. эл. сетевого хоз.'!$D$2:$F$34,3,0))),\"Заполните все столбцы\")","v":"кабельные линии в траншеях одножильные c резиновой или пластмассовой изоляцией сечением провода от 100 до 200 квадратных мм включительно с двумя кабелями в траншее"},"Строительство КЛ-0,4 кВ ТП-243 - ж/д Дзержинского, 10","I ) Город","1) траншея","1) одножильный","1) резиновая или пластмассовая","3) от 100 до 200 квадратных мм включительно","2) два","1) 0,4 кВ и ниже",{"$f":"Титульный!$D$10-2","v":2023},0.49399999999999999,1846988,3738842.1052631577,24,"Инвестиционная программа"]
[null," X ",18,"3.1.1.1.3.2","С 3.1.1.1.3.2, 0,4 кВ и ниже",{"$f":"IFERROR(LOWER(\"кабельные линии\"&IF($I30=\"6) метод горизонтального наклонного бурения\",VLOOKUP($I30,'1.1Назв. объ. эл. сетевого хоз.'!$D$2:$E$34,2,0)&\" \"&VLOOKUP($J30,'1.1Назв. объ. эл. сетевого хоз.'!$D$2:$E$34,2,0)&\" c \"&VLOOKUP($K30,'1.1Назв. объ. эл. сетевого хоз.'!$D$2:$E$34,2,0)&\" изоляцией \"&\"сечением провода \"&VLOOKUP($L30,'1.1Назв. объ. эл. сетевого хоз.'!$D$2:$E$34,2,0)&\" \"&IF($M30=\"5) более четырех\",\"с количеством \"&IF($I30=\"6) метод горизонтального наклонного бурения\",VLOOKUP($M30,'1.1Назв. объ. эл. сетевого хоз.'!$D$2:$F$34,3,0),VLOOKUP($M30,'1.1Назв. объ. эл. сетевого хоз.'!$D$2:$E$34,2,0)),IF($I30=\"6) метод горизонтального наклонного бурения\",VLOOKUP($M30,'1.1Назв. объ. эл. сетевого хоз.'!$D$2:$F$34,3,0),VLOOKUP($M30,'1.1Назв. объ. эл. сетевого хоз.'!$D$2:$E$34,2,0))),VLOOKUP($I30,'1.1Назв. объ. эл. сетевого хоз.'!$D$2:$E$34,2,0)&\" \"&VLOOKUP($J30,'1.1Назв. объ. эл. сетевого хоз.'!$D$2:$E$34,2,0)&\" c \"&VLOOKUP($K30,'1.1Назв. объ. эл. сетевого хоз.'!$D$2:$E$34,2,0)&\" изоляцией \"&\"сечением провода \"&VLOOKUP($L30,'1.1Назв. объ. эл. сетевого хоз.'!$D$2:$E$34,2,0)&\" \"&IF($M30=\"5) более четырех\",\"с количеством \"&IF($I30=\"6) метод горизонтального наклонного бурения\",VLOOKUP($M30,'1.1Назв. объ. эл. сетевого хоз.'!$D$2:$F$34,3,0),VLOOKUP($M30,'1.1Назв. объ. эл. сетевого хоз.'!$D$2:$E$34,2,0)),IF($I30=\"6) метод горизонтального наклонного бурения\",VLOOKUP($M30,'1.1Назв. объ. эл. сетевого хоз.'!$D$2:$F$34,3,0),VLOOKUP($M30,'1.1Назв. объ. эл. сетевого хоз.'!$D$2:$E$34,2,0)))&\" \"&VLOOKUP($I30,'1.1Назв. объ. эл. сетевого хоз.'!$D$2:$F$34,3,0))),\"Заполните все столбцы\")","v":"кабельные линии в траншеях одножильные c резиновой или пластмассовой изоляцией сечением провода от 100 до 200 квадратных мм включительно с двумя кабелями в траншее"},"Строительство КЛ-0,4 кВ ТП-243 - ж/д Дзержинского, 12","I ) Город","1) траншея","1) одножильный","1) резиновая или пластмассовая","3) от 100 до 200 квадратных мм включительно","2) два","1) 0,4 кВ и ниже",{"$f":"Титульный!$D$10-2","v":2023},0.27,995859.1,3688367.0370370368,24,"Инвестиционная программа"]
[null," X ",19,"3.1.1.2.2.2","С 3.1.1.2.2.2, 1 - 10  кВ",{"$f":"IFERROR(LOWER(\"кабельные линии\"&IF($I31=\"6) метод горизонтального наклонного бурения\",VLOOKUP($I31,'1.1Назв. объ. эл. сетевого хоз.'!$D$2:$E$34,2,0)&\" \"&VLOOKUP($J31,'1.1Назв. объ. эл. сетевого хоз.'!$D$2:$E$34,2,0)&\" c \"&VLOOKUP($K31,'1.1Назв. объ. эл. сетевого хоз.'!$D$2:$E$34,2,0)&\" изоляцией \"&\"сечением провода \"&VLOOKUP($L31,'1.1Назв. объ. эл. сетевого хоз.'!$D$2:$E$34,2,0)&\" \"&IF($M31=\"5) более четырех\",\"с количеством \"&IF($I31=\"6) метод горизонтального наклонного бурения\",VLOOKUP($M31,'1.1Назв. объ. эл. сетевого хоз.'!$D$2:$F$34,3,0),VLOOKUP($M31,'1.1Назв. объ. эл. сетевого хоз.'!$D$2:$E$34,2,0)),IF($I31=\"6) метод горизонтального наклонного бурения\",VLOOKUP($M31,'1.1Назв. объ. эл. сетевого хоз.'!$D$2:$F$34,3,0),VLOOKUP($M31,'1.1Назв. объ. эл. сетевого хоз.'!$D$2:$E$34,2,0))),VLOOKUP($I31,'1.1Назв. объ. эл. сетевого хоз.'!$D$2:$E$34,2,0)&\" \"&VLOOKUP($J31,'1.1Назв. объ. эл. сетевого хоз.'!$D$2:$E$34,2,0)&\" c \"&VLOOKUP($K31,'1.1Назв. объ. эл. сетевого хоз.'!$D$2:$E$34,2,0)&\" изоляцией \"&\"сечением провода \"&VLOOKUP($L31,'1.1Назв. объ. эл. сетевого хоз.'!$D$2:$E$34,2,0)&\" \"&IF($M31=\"5) более четырех\",\"с количеством \"&IF($I31=\"6) метод горизонтального наклонного бурения\",VLOOKUP($M31,'1.1Назв. объ. эл. сетевого хоз.'!$D$2:$F$34,3,0),VLOOKUP($M31,'1.1Назв. объ. эл. сетевого хоз.'!$D$2:$E$34,2,0)),IF($I31=\"6) метод горизонтального наклонного бурения\",VLOOKUP($M31,'1.1Назв. объ. эл. сетевого хоз.'!$D$2:$F$34,3,0),VLOOKUP($M31,'1.1Назв. объ. эл. сетевого хоз.'!$D$2:$E$34,2,0)))&\" \"&VLOOKUP($I31,'1.1Назв. объ. эл. сетевого хоз.'!$D$2:$F$34,3,0))),\"Заполните все столбцы\")","v":"кабельные линии в траншеях одножильные c бумажной изоляцией сечением провода  от 50 до 100 квадратных мм включительно с двумя кабелями в траншее"},"Строительство КЛ-6 кВ от опоры №27 ВЛ-6кВ фидер 68-08 до КТПН-772","I ) Город","1) траншея","1) одножильный","2) бумажная","2)  от 50 до 100 квадратных мм включительно","2) два","2) 1 - 10  кВ",{"$f":"Титульный!$D$10-2","v":2023},0.23400000000000001,787985,3367457.2649572645,25,"Инвестиционная программа"]
[null," X ",20,"3.1.1.2.3.2","С 3.1.1.2.3.2, 1 - 10  кВ",{"$f":"IFERROR(LOWER(\"кабельные линии\"&IF($I32=\"6) метод горизонтального наклонного бурения\",VLOOKUP($I32,'1.1Назв. объ. эл. сетевого хоз.'!$D$2:$E$34,2,0)&\" \"&VLOOKUP($J32,'1.1Назв. объ. эл. сетевого хоз.'!$D$2:$E$34,2,0)&\" c \"&VLOOKUP($K32,'1.1Назв. объ. эл. сетевого хоз.'!$D$2:$E$34,2,0)&\" изоляцией \"&\"сечением провода \"&VLOOKUP($L32,'1.1Назв. объ. эл. сетевого хоз.'!$D$2:$E$34,2,0)&\" \"&IF($M32=\"5) более четырех\",\"с количеством \"&IF($I32=\"6) метод горизонтального наклонного бурения\",VLOOKUP($M32,'1.1Назв. объ. эл. сетевого хоз.'!$D$2:$F$34,3,0),VLOOKUP($M32,'1.1Назв. объ. эл. сетевого хоз.'!$D$2:$E$34,2,0)),IF($I32=\"6) метод горизонтального наклонного бурения\",VLOOKUP($M32,'1.1Назв. объ. эл. сетевого хоз.'!$D$2:$F$34,3,0),VLOOKUP($M32,'1.1Назв. объ. эл. сетевого хоз.'!$D$2:$E$34,2,0))),VLOOKUP($I32,'1.1Назв. объ. эл. сетевого хоз.'!$D$2:$E$34,2,0)&\" \"&VLOOKUP($J32,'1.1Назв. объ. эл. сетевого хоз.'!$D$2:$E$34,2,0)&\" c \"&VLOOKUP($K32,'1.1Назв. объ. эл. сетевого хоз.'!$D$2:$E$34,2,0)&\" изоляцией \"&\"сечением провода \"&VLOOKUP($L32,'1.1Назв. объ. эл. сетевого хоз.'!$D$2:$E$34,2,0)&\" \"&IF($M32=\"5) более четырех\",\"с количеством \"&IF($I32=\"6) метод горизонтального наклонного бурения\",VLOOKUP($M32,'1.1Назв. объ. эл. сетевого хоз.'!$D$2:$F$34,3,0),VLOOKUP($M32,'1.1Назв. объ. эл. сетевого хоз.'!$D$2:$E$34,2,0)),IF($I32=\"6) метод горизонтального наклонного бурения\",VLOOKUP($M32,'1.1Назв. объ. эл. сетевого хоз.'!$D$2:$F$34,3,0),VLOOKUP($M32,'1.1Назв. объ. эл. сетевого хоз.'!$D$2:$E$34,2,0)))&\" \"&VLOOKUP($I32,'1.1Назв. объ. эл. сетевого хоз.'!$D$2:$F$34,3,0))),\"Заполните все столбцы\")","v":"кабельные линии в траншеях одножильные c бумажной изоляцией сечением провода от 100 до 200 квадратных мм включительно с двумя кабелями в траншее"},"Строительство КЛ-6 кВ от КТПН №1-630 кВА СТСН \"Север-1\" до КТПН №1 400 кВА СПК \"Север\"","I ) Город","1) траншея","1) одножильный","2) бумажная","3) от 100 до 200 квадратных мм включительно","2) два","2) 1 - 10  кВ",{"$f":"Титульный!$D$10-2","v":2023},1.0840000000000001,6824672,6295822.8782287817,26,"Инвестиционная программа"]
[null," X ",21,"3.1.1.2.3.2","С 3.1.1.2.3.2, 1 - 10  кВ",{"$f":"IFERROR(LOWER(\"кабельные линии\"&IF($I33=\"6) метод горизонтального наклонного бурения\",VLOOKUP($I33,'1.1Назв. объ. эл. сетевого хоз.'!$D$2:$E$34,2,0)&\" \"&VLOOKUP($J33,'1.1Назв. объ. эл. сетевого хоз.'!$D$2:$E$34,2,0)&\" c \"&VLOOKUP($K33,'1.1Назв. объ. эл. сетевого хоз.'!$D$2:$E$34,2,0)&\" изоляцией \"&\"сечением провода \"&VLOOKUP($L33,'1.1Назв. объ. эл. сетевого хоз.'!$D$2:$E$34,2,0)&\" \"&IF($M33=\"5) более четырех\",\"с количеством \"&IF($I33=\"6) метод горизонтального наклонного бурения\",VLOOKUP($M33,'1.1Назв. объ. эл. сетевого хоз.'!$D$2:$F$34,3,0),VLOOKUP($M33,'1.1Назв. объ. эл. сетевого хоз.'!$D$2:$E$34,2,0)),IF($I33=\"6) метод горизонтального наклонного бурения\",VLOOKUP($M33,'1.1Назв. объ. эл. сетевого хоз.'!$D$2:$F$34,3,0),VLOOKUP($M33,'1.1Назв. объ. эл. сетевого хоз.'!$D$2:$E$34,2,0))),VLOOKUP($I33,'1.1Назв. объ. эл. сетевого хоз.'!$D$2:$E$34,2,0)&\" \"&VLOOKUP($J33,'1.1Назв. объ. эл. сетевого хоз.'!$D$2:$E$34,2,0)&\" c \"&VLOOKUP($K33,'1.1Назв. объ. эл. сетевого хоз.'!$D$2:$E$34,2,0)&\" изоляцией \"&\"сечением провода \"&VLOOKUP($L33,'1.1Назв. объ. эл. сетевого хоз.'!$D$2:$E$34,2,0)&\" \"&IF($M33=\"5) более четырех\",\"с количеством \"&IF($I33=\"6) метод горизонтального наклонного бурения\",VLOOKUP($M33,'1.1Назв. объ. эл. сетевого хоз.'!$D$2:$F$34,3,0),VLOOKUP($M33,'1.1Назв. объ. эл. сетевого хоз.'!$D$2:$E$34,2,0)),IF($I33=\"6) метод горизонтального наклонного бурения\",VLOOKUP($M33,'1.1Назв. объ. эл. сетевого хоз.'!$D$2:$F$34,3,0),VLOOKUP($M33,'1.1Назв. объ. эл. сетевого хоз.'!$D$2:$E$34,2,0)))&\" \"&VLOOKUP($I33,'1.1Назв. объ. эл. сетевого хоз.'!$D$2:$F$34,3,0))),\"Заполните все столбцы\")","v":"кабельные линии в траншеях одножильные c бумажной изоляцией сечением провода от 100 до 200 квадратных мм включительно с двумя кабелями в траншее"},"Строительство КЛ-6 кВ от КТПН №1-400 кВА СПК \"Север\" до КТПН №2 1000 кВА СПК \"Север\"","I ) Город","1) траншея","1) одножильный","2) бумажная","3) от 100 до 200 квадратных мм включительно","2) два","2) 1 - 10  кВ",{"$f":"Титульный!$D$10-2","v":2023},0.8,4407785,5509731.25,26,"Инвестиционная программа"]
[null," X ",22,"3.1.1.2.4.2","С 3.1.1.2.4.2, 1 - 10  кВ",{"$f":"IFERROR(LOWER(\"кабельные линии\"&IF($I34=\"6) метод горизонтального наклонного бурения\",VLOOKUP($I34,'1.1Назв. объ. эл. сетевого хоз.'!$D$2:$E$34,2,0)&\" \"&VLOOKUP($J34,'1.1Назв. объ. эл. сетевого хоз.'!$D$2:$E$34,2,0)&\" c \"&VLOOKUP($K34,'1.1Назв. объ. эл. сетевого хоз.'!$D$2:$E$34,2,0)&\" изоляцией \"&\"сечением провода \"&VLOOKUP($L34,'1.1Назв. объ. эл. сетевого хоз.'!$D$2:$E$34,2,0)&\" \"&IF($M34=\"5) более четырех\",\"с количеством \"&IF($I34=\"6) метод горизонтального наклонного бурения\",VLOOKUP($M34,'1.1Назв. объ. эл. сетевого хоз.'!$D$2:$F$34,3,0),VLOOKUP($M34,'1.1Назв. объ. эл. сетевого хоз.'!$D$2:$E$34,2,0)),IF($I34=\"6) метод горизонтального наклонного бурения\",VLOOKUP($M34,'1.1Назв. объ. эл. сетевого хоз.'!$D$2:$F$34,3,0),VLOOKUP($M34,'1.1Назв. объ. эл. сетевого хоз.'!$D$2:$E$34,2,0))),VLOOKUP($I34,'1.1Назв. объ. эл. сетевого хоз.'!$D$2:$E$34,2,0)&\" \"&VLOOKUP($J34,'1.1Назв. объ. эл. сетевого хоз.'!$D$2:$E$34,2,0)&\" c \"&VLOOKUP($K34,'1.1Назв. объ. эл. сетевого хоз.'!$D$2:$E$34,2,0)&\" изоляцией \"&\"сечением провода \"&VLOOKUP($L34,'1.1Назв. объ. эл. сетевого хоз.'!$D$2:$E$34,2,0)&\" \"&IF($M34=\"5) более четырех\",\"с количеством \"&IF($I34=\"6) метод горизонтального наклонного бурения\",VLOOKUP($M34,'1.1Назв. объ. эл. сетевого хоз.'!$D$2:$F$34,3,0),VLOOKUP($M34,'1.1Назв. объ. эл. сетевого хоз.'!$D$2:$E$34,2,0)),IF($I34=\"6) метод горизонтального наклонного бурения\",VLOOKUP($M34,'1.1Назв. объ. эл. сетевого хоз.'!$D$2:$F$34,3,0),VLOOKUP($M34,'1.1Назв. объ. эл. сетевого хоз.'!$D$2:$E$34,2,0)))&\" \"&VLOOKUP($I34,'1.1Назв. объ. эл. сетевого хоз.'!$D$2:$F$34,3,0))),\"Заполните все столбцы\")","v":"кабельные линии в траншеях одножильные c бумажной изоляцией сечением провода от 200 до 250 квадратных мм включительно с двумя кабелями в траншее"},"Строительство КЛ-10 кВ от ТП-475 до БКТП-465","I ) Город","1) траншея","1) одножильный","2) бумажная","4) от 200 до 250 квадратных мм включительно","2) два","2) 1 - 10  кВ",{"$f":"Титульный!$D$10-2","v":2023},0.76800000000000002,6533000,8506510.416666666,"27, 27.1","Инвестиционная программа"]
[null," X ",23,"3.1.1.1.3.4","С 3.1.1.1.3.4, 0,4 кВ и ниже",{"$f":"IFERROR(LOWER(\"кабельные линии\"&IF($I35=\"6) метод горизонтального наклонного бурения\",VLOOKUP($I35,'1.1Назв. объ. эл. сетевого хоз.'!$D$2:$E$34,2,0)&\" \"&VLOOKUP($J35,'1.1Назв. объ. эл. сетевого хоз.'!$D$2:$E$34,2,0)&\" c \"&VLOOKUP($K35,'1.1Назв. объ. эл. сетевого хоз.'!$D$2:$E$34,2,0)&\" изоляцией \"&\"сечением провода \"&VLOOKUP($L35,'1.1Назв. объ. эл. сетевого хоз.'!$D$2:$E$34,2,0)&\" \"&IF($M35=\"5) более четырех\",\"с количеством \"&IF($I35=\"6) метод горизонтального наклонного бурения\",VLOOKUP($M35,'1.1Назв. объ. эл. сетевого хоз.'!$D$2:$F$34,3,0),VLOOKUP($M35,'1.1Назв. объ. эл. сетевого хоз.'!$D$2:$E$34,2,0)),IF($I35=\"6) метод горизонтального наклонного бурения\",VLOOKUP($M35,'1.1Назв. объ. эл. сетевого хоз.'!$D$2:$F$34,3,0),VLOOKUP($M35,'1.1Назв. объ. эл. сетевого хоз.'!$D$2:$E$34,2,0))),VLOOKUP($I35,'1.1Назв. объ. эл. сетевого хоз.'!$D$2:$E$34,2,0)&\" \"&VLOOKUP($J35,'1.1Назв. объ. эл. сетевого хоз.'!$D$2:$E$34,2,0)&\" c \"&VLOOKUP($K35,'1.1Назв. объ. эл. сетевого хоз.'!$D$2:$E$34,2,0)&\" изоляцией \"&\"сечением провода \"&VLOOKUP($L35,'1.1Назв. объ. эл. сетевого хоз.'!$D$2:$E$34,2,0)&\" \"&IF($M35=\"5) более четырех\",\"с количеством \"&IF($I35=\"6) метод горизонтального наклонного бурения\",VLOOKUP($M35,'1.1Назв. объ. эл. сетевого хоз.'!$D$2:$F$34,3,0),VLOOKUP($M35,'1.1Назв. объ. эл. сетевого хоз.'!$D$2:$E$34,2,0)),IF($I35=\"6) метод горизонтального наклонного бурения\",VLOOKUP($M35,'1.1Назв. объ. эл. сетевого хоз.'!$D$2:$F$34,3,0),VLOOKUP($M35,'1.1Назв. объ. эл. сетевого хоз.'!$D$2:$E$34,2,0)))&\" \"&VLOOKUP($I35,'1.1Назв. объ. эл. сетевого хоз.'!$D$2:$F$34,3,0))),\"Заполните все столбцы\")","v":"кабельные линии в траншеях одножильные c резиновой или пластмассовой изоляцией сечением провода от 100 до 200 квадратных мм включительно с четырьмя кабелями в траншее"},"Строительство КЛ-0,4 кВ ТП-3 2х2500 кВА мкр. Марьина гора до ж/д №22 ВРУ-1","I ) Город","1) траншея","1) одножильный","1) резиновая или пластмассовая","3) от 100 до 200 квадратных мм включительно","4) четыре","1) 0,4 кВ и ниже",{"$f":"Титульный!$D$10-2","v":2023},0.42799999999999999,712388,1664457.9439252338,28,"Инвестиционная программа"]
[null," X ",24,"3.1.1.1.3.2","С 3.1.1.1.3.2, 0,4 кВ и ниже",{"$f":"IFERROR(LOWER(\"кабельные линии\"&IF($I36=\"6) метод горизонтального наклонного бурения\",VLOOKUP($I36,'1.1Назв. объ. эл. сетевого хоз.'!$D$2:$E$34,2,0)&\" \"&VLOOKUP($J36,'1.1Назв. объ. эл. сетевого хоз.'!$D$2:$E$34,2,0)&\" c \"&VLOOKUP($K36,'1.1Назв. объ. эл. сетевого хоз.'!$D$2:$E$34,2,0)&\" изоляцией \"&\"сечением провода \"&VLOOKUP($L36,'1.1Назв. объ. эл. сетевого хоз.'!$D$2:$E$34,2,0)&\" \"&IF($M36=\"5) более четырех\",\"с количеством \"&IF($I36=\"6) метод горизонтального наклонного бурения\",VLOOKUP($M36,'1.1Назв. объ. эл. сетевого хоз.'!$D$2:$F$34,3,0),VLOOKUP($M36,'1.1Назв. объ. эл. сетевого хоз.'!$D$2:$E$34,2,0)),IF($I36=\"6) метод горизонтального наклонного бурения\",VLOOKUP($M36,'1.1Назв. объ. эл. сетевого хоз.'!$D$2:$F$34,3,0),VLOOKUP($M36,'1.1Назв. объ. эл. сетевого хоз.'!$D$2:$E$34,2,0))),VLOOKUP($I36,'1.1Назв. объ. эл. сетевого хоз.'!$D$2:$E$34,2,0)&\" \"&VLOOKUP($J36,'1.1Назв. объ. эл. сетевого хоз.'!$D$2:$E$34,2,0)&\" c \"&VLOOKUP($K36,'1.1Назв. объ. эл. сетевого хоз.'!$D$2:$E$34,2,0)&\" изоляцией \"&\"сечением провода \"&VLOOKUP($L36,'1.1Назв. объ. эл. сетевого хоз.'!$D$2:$E$34,2,0)&\" \"&IF($M36=\"5) более четырех\",\"с количеством \"&IF($I36=\"6) метод горизонтального наклонного бурения\",VLOOKUP($M36,'1.1Назв. объ. эл. сетевого хоз.'!$D$2:$F$34,3,0),VLOOKUP($M36,'1.1Назв. объ. эл. сетевого хоз.'!$D$2:$E$34,2,0)),IF($I36=\"6) метод горизонтального наклонного бурения\",VLOOKUP($M36,'1.1Назв. объ. эл. сетевого хоз.'!$D$2:$F$34,3,0),VLOOKUP($M36,'1.1Назв. объ. эл. сетевого хоз.'!$D$2:$E$34,2,0)))&\" \"&VLOOKUP($I36,'1.1Назв. объ. эл. сетевого хоз.'!$D$2:$F$34,3,0))),\"Заполните все столбцы\")","v":"кабельные линии в траншеях одножильные c резиновой или пластмассовой изоляцией сечением провода от 100 до 200 квадратных мм включительно с двумя кабелями в траншее"},"Строительство КЛ-0,4 кВ ТП-3 2х2500 кВА мкр. Марьина гора до ж/д №22 ВРУ-2","I ) Город","1) траншея","1) одножильный","1) резиновая или пластмассовая","3) от 100 до 200 квадратных мм включительно","2) два","1) 0,4 кВ и ниже",{"$f":"Титульный!$D$10-2","v":2023},0.214,323283,1510668.2242990655,28,"Инвестиционная программа"]
[null," X ",25,"3.1.1.1.2.4","С 3.1.1.1.2.4, 0,4 кВ и ниже",{"$f":"IFERROR(LOWER(\"кабельные линии\"&IF($I37=\"6) метод горизонтального наклонного бурения\",VLOOKUP($I37,'1.1Назв. объ. эл. сетевого хоз.'!$D$2:$E$34,2,0)&\" \"&VLOOKUP($J37,'1.1Назв. объ. эл. сетевого хоз.'!$D$2:$E$34,2,0)&\" c \"&VLOOKUP($K37,'1.1Назв. объ. эл. сетевого хоз.'!$D$2:$E$34,2,0)&\" изоляцией \"&\"сечением провода \"&VLOOKUP($L37,'1.1Назв. объ. эл. сетевого хоз.'!$D$2:$E$34,2,0)&\" \"&IF($M37=\"5) более четырех\",\"с количеством \"&IF($I37=\"6) метод горизонтального наклонного бурения\",VLOOKUP($M37,'1.1Назв. объ. эл. сетевого хоз.'!$D$2:$F$34,3,0),VLOOKUP($M37,'1.1Назв. объ. эл. сетевого хоз.'!$D$2:$E$34,2,0)),IF($I37=\"6) метод горизонтального наклонного бурения\",VLOOKUP($M37,'1.1Назв. объ. эл. сетевого хоз.'!$D$2:$F$34,3,0),VLOOKUP($M37,'1.1Назв. объ. эл. сетевого хоз.'!$D$2:$E$34,2,0))),VLOOKUP($I37,'1.1Назв. объ. эл. сетевого хоз.'!$D$2:$E$34,2,0)&\" \"&VLOOKUP($J37,'1.1Назв. объ. эл. сетевого хоз.'!$D$2:$E$34,2,0)&\" c \"&VLOOKUP($K37,'1.1Назв. объ. эл. сетевого хоз.'!$D$2:$E$34,2,0)&\" изоляцией \"&\"сечением провода \"&VLOOKUP($L37,'1.1Назв. объ. эл. сетевого хоз.'!$D$2:$E$34,2,0)&\" \"&IF($M37=\"5) более четырех\",\"с количеством \"&IF($I37=\"6) метод горизонтального наклонного бурения\",VLOOKUP($M37,'1.1Назв. объ. эл. сетевого хоз.'!$D$2:$F$34,3,0),VLOOKUP($M37,'1.1Назв. объ. эл. сетевого хоз.'!$D$2:$E$34,2,0)),IF($I37=\"6) метод горизонтального наклонного бурения\",VLOOKUP($M37,'1.1Назв. объ. эл. сетевого хоз.'!$D$2:$F$34,3,0),VLOOKUP($M37,'1.1Назв. объ. эл. сетевого хоз.'!$D$2:$E$34,2,0)))&\" \"&VLOOKUP($I37,'1.1Назв. объ. эл. сетевого хоз.'!$D$2:$F$34,3,0))),\"Заполните все столбцы\")","v":"кабельные линии в траншеях одножильные c резиновой или пластмассовой изоляцией сечением провода  от 50 до 100 квадратных мм включительно с четырьмя кабелями в траншее"},"Строительство КЛ-0,4 кВ РП(ТП)-2х1600 кВА мкр. 39 до ж/д № 3.1 ВРУ-1","I ) Город","1) траншея","1) одножильный","1) резиновая или пластмассовая","2)  от 50 до 100 квадратных мм включительно","4) четыре","1) 0,4 кВ и ниже",{"$f":"Титульный!$D$10-2","v":2023},0.66,938936.68,1422631.3333333333,29,"Инвестиционная программа"]
[null," X ",26,"3.1.1.1.3.2","С 3.1.1.1.3.2, 0,4 кВ и ниже",{"$f":"IFERROR(LOWER(\"кабельные линии\"&IF($I38=\"6) метод горизонтального наклонного бурения\",VLOOKUP($I38,'1.1Назв. объ. эл. сетевого хоз.'!$D$2:$E$34,2,0)&\" \"&VLOOKUP($J38,'1.1Назв. объ. эл. сетевого хоз.'!$D$2:$E$34,2,0)&\" c \"&VLOOKUP($K38,'1.1Назв. объ. эл. сетевого хоз.'!$D$2:$E$34,2,0)&\" изоляцией \"&\"сечением провода \"&VLOOKUP($L38,'1.1Назв. объ. эл. сетевого хоз.'!$D$2:$E$34,2,0)&\" \"&IF($M38=\"5) более четырех\",\"с количеством \"&IF($I38=\"6) метод горизонтального наклонного бурения\",VLOOKUP($M38,'1.1Назв. объ. эл. сетевого хоз.'!$D$2:$F$34,3,0),VLOOKUP($M38,'1.1Назв. объ. эл. сетевого хоз.'!$D$2:$E$34,2,0)),IF($I38=\"6) метод горизонтального наклонного бурения\",VLOOKUP($M38,'1.1Назв. объ. эл. сетевого хоз.'!$D$2:$F$34,3,0),VLOOKUP($M38,'1.1Назв. объ. эл. сетевого хоз.'!$D$2:$E$34,2,0))),VLOOKUP($I38,'1.1Назв. объ. эл. сетевого хоз.'!$D$2:$E$34,2,0)&\" \"&VLOOKUP($J38,'1.1Назв. объ. эл. сетевого хоз.'!$D$2:$E$34,2,0)&\" c \"&VLOOKUP($K38,'1.1Назв. объ. эл. сетевого хоз.'!$D$2:$E$34,2,0)&\" изоляцией \"&\"сечением провода \"&VLOOKUP($L38,'1.1Назв. объ. эл. сетевого хоз.'!$D$2:$E$34,2,0)&\" \"&IF($M38=\"5) более четырех\",\"с количеством \"&IF($I38=\"6) метод горизонтального наклонного бурения\",VLOOKUP($M38,'1.1Назв. объ. эл. сетевого хоз.'!$D$2:$F$34,3,0),VLOOKUP($M38,'1.1Назв. объ. эл. сетевого хоз.'!$D$2:$E$34,2,0)),IF($I38=\"6) метод горизонтального наклонного бурения\",VLOOKUP($M38,'1.1Назв. объ. эл. сетевого хоз.'!$D$2:$F$34,3,0),VLOOKUP($M38,'1.1Назв. объ. эл. сетевого хоз.'!$D$2:$E$34,2,0)))&\" \"&VLOOKUP($I38,'1.1Назв. объ. эл. сетевого хоз.'!$D$2:$F$34,3,0))),\"Заполните все столбцы\")","v":"кабельные линии в траншеях одножильные c резиновой или пластмассовой изоляцией сечением провода от 100 до 200 квадратных мм включительно с двумя кабелями в траншее"},"Строительство КЛ-0,4 кВ РП(ТП)-2х1600 кВА мкр. 39 до ж/д № 3.1 ВРУ-2","I ) Город","1) траншея","1) одножильный","1) резиновая или пластмассовая","3) от 100 до 200 квадратных мм включительно","2) два","1) 0,4 кВ и ниже",{"$f":"Титульный!$D$10-2","v":2023},0.40200000000000002,621630.79,1546345.2487562189,29,"Инвестиционная программа"]
[null," X ",27,"3.1.1.1.2.4","С 3.1.1.1.2.4, 0,4 кВ и ниже",{"$f":"IFERROR(LOWER(\"кабельные линии\"&IF($I39=\"6) метод горизонтального наклонного бурения\",VLOOKUP($I39,'1.1Назв. объ. эл. сетевого хоз.'!$D$2:$E$34,2,0)&\" \"&VLOOKUP($J39,'1.1Назв. объ. эл. сетевого хоз.'!$D$2:$E$34,2,0)&\" c \"&VLOOKUP($K39,'1.1Назв. объ. эл. сетевого хоз.'!$D$2:$E$34,2,0)&\" изоляцией \"&\"сечением провода \"&VLOOKUP($L39,'1.1Назв. объ. эл. сетевого хоз.'!$D$2:$E$34,2,0)&\" \"&IF($M39=\"5) более четырех\",\"с количеством \"&IF($I39=\"6) метод горизонтального наклонного бурения\",VLOOKUP($M39,'1.1Назв. объ. эл. сетевого хоз.'!$D$2:$F$34,3,0),VLOOKUP($M39,'1.1Назв. объ. эл. сетевого хоз.'!$D$2:$E$34,2,0)),IF($I39=\"6) метод горизонтального наклонного бурения\",VLOOKUP($M39,'1.1Назв. объ. эл. сетевого хоз.'!$D$2:$F$34,3,0),VLOOKUP($M39,'1.1Назв. объ. эл. сетевого хоз.'!$D$2:$E$34,2,0))),VLOOKUP($I39,'1.1Назв. объ. эл. сетевого хоз.'!$D$2:$E$34,2,0)&\" \"&VLOOKUP($J39,'1.1Назв. объ. эл. сетевого хоз.'!$D$2:$E$34,2,0)&\" c \"&VLOOKUP($K39,'1.1Назв. объ. эл. сетевого хоз.'!$D$2:$E$34,2,0)&\" изоляцией \"&\"сечением провода \"&VLOOKUP($L39,'1.1Назв. объ. эл. сетевого хоз.'!$D$2:$E$34,2,0)&\" \"&IF($M39=\"5) более четырех\",\"с количеством \"&IF($I39=\"6) метод горизонтального наклонного бурения\",VLOOKUP($M39,'1.1Назв. объ. эл. сетевого хоз.'!$D$2:$F$34,3,0),VLOOKUP($M39,'1.1Назв. объ. эл. сетевого хоз.'!$D$2:$E$34,2,0)),IF($I39=\"6) метод горизонтального наклонного бурения\",VLOOKUP($M39,'1.1Назв. объ. эл. сетевого хоз.'!$D$2:$F$34,3,0),VLOOKUP($M39,'1.1Назв. объ. эл. сетевого хоз.'!$D$2:$E$34,2,0)))&\" \"&VLOOKUP($I39,'1.1Назв. объ. эл. сетевого хоз.'!$D$2:$F$34,3,0))),\"Заполните все столбцы\")","v":"кабельные линии в траншеях одножильные c резиновой или пластмассовой изоляцией сечением провода  от 50 до 100 квадратных мм включительно с четырьмя кабелями в траншее"},"Строительство КЛ-0,4 кВ РП(ТП)-2х1600 кВА мкр. 39 до ж/д № 3.2 ВРУ-1","I ) Город","1) траншея","1) одножильный","1) резиновая или пластмассовая","2)  от 50 до 100 квадратных мм включительно","4) четыре","1) 0,4 кВ и ниже",{"$f":"Титульный!$D$10-2","v":2023},1.048,1677218.88,1600399.6946564885,29,"Инвестиционная программа"]
[null," X ",28,"3.1.1.1.2.2","С 3.1.1.1.2.2, 0,4 кВ и ниже",{"$f":"IFERROR(LOWER(\"кабельные линии\"&IF($I40=\"6) метод горизонтального наклонного бурения\",VLOOKUP($I40,'1.1Назв. объ. эл. сетевого хоз.'!$D$2:$E$34,2,0)&\" \"&VLOOKUP($J40,'1.1Назв. объ. эл. сетевого хоз.'!$D$2:$E$34,2,0)&\" c \"&VLOOKUP($K40,'1.1Назв. объ. эл. сетевого хоз.'!$D$2:$E$34,2,0)&\" изоляцией \"&\"сечением провода \"&VLOOKUP($L40,'1.1Назв. объ. эл. сетевого хоз.'!$D$2:$E$34,2,0)&\" \"&IF($M40=\"5) более четырех\",\"с количеством \"&IF($I40=\"6) метод горизонтального наклонного бурения\",VLOOKUP($M40,'1.1Назв. объ. эл. сетевого хоз.'!$D$2:$F$34,3,0),VLOOKUP($M40,'1.1Назв. объ. эл. сетевого хоз.'!$D$2:$E$34,2,0)),IF($I40=\"6) метод горизонтального наклонного бурения\",VLOOKUP($M40,'1.1Назв. объ. эл. сетевого хоз.'!$D$2:$F$34,3,0),VLOOKUP($M40,'1.1Назв. объ. эл. сетевого хоз.'!$D$2:$E$34,2,0))),VLOOKUP($I40,'1.1Назв. объ. эл. сетевого хоз.'!$D$2:$E$34,2,0)&\" \"&VLOOKUP($J40,'1.1Назв. объ. эл. сетевого хоз.'!$D$2:$E$34,2,0)&\" c \"&VLOOKUP($K40,'1.1Назв. объ. эл. сетевого хоз.'!$D$2:$E$34,2,0)&\" изоляцией \"&\"сечением провода \"&VLOOKUP($L40,'1.1Назв. объ. эл. сетевого хоз.'!$D$2:$E$34,2,0)&\" \"&IF($M40=\"5) более четырех\",\"с количеством \"&IF($I40=\"6) метод горизонтального наклонного бурения\",VLOOKUP($M40,'1.1Назв. объ. эл. сетевого хоз.'!$D$2:$F$34,3,0),VLOOKUP($M40,'1.1Назв. объ. эл. сетевого хоз.'!$D$2:$E$34,2,0)),IF($I40=\"6) метод горизонтального наклонного бурения\",VLOOKUP($M40,'1.1Назв. объ. эл. сетевого хоз.'!$D$2:$F$34,3,0),VLOOKUP($M40,'1.1Назв. объ. эл. сетевого хоз.'!$D$2:$E$34,2,0)))&\" \"&VLOOKUP($I40,'1.1Назв. объ. эл. сетевого хоз.'!$D$2:$F$34,3,0))),\"Заполните все столбцы\")","v":"кабельные линии в траншеях одножильные c резиновой или пластмассовой изоляцией сечением провода  от 50 до 100 квадратных мм включительно с двумя кабелями в траншее"},"Строительство КЛ-0,4 кВ РП(ТП)-2х1600 кВА мкр. 39 до ж/д № 3.2 ВРУ-2","I ) Город","1) траншея","1) одножильный","1) резиновая или пластмассовая","2)  от 50 до 100 квадратных мм включительно","2) два","1) 0,4 кВ и ниже",{"$f":"Титульный!$D$10-2","v":2023},0.61399999999999999,1004752.32,1636404.4299674267,29,"Инвестиционная программа"]
[null," X ",29,"3.1.1.2.2.2","С 3.1.1.2.2.2, 1 - 10  кВ",{"$f":"IFERROR(LOWER(\"кабельные линии\"&IF($I41=\"6) метод горизонтального наклонного бурения\",VLOOKUP($I41,'1.1Назв. объ. эл. сетевого хоз.'!$D$2:$E$34,2,0)&\" \"&VLOOKUP($J41,'1.1Назв. объ. эл. сетевого хоз.'!$D$2:$E$34,2,0)&\" c \"&VLOOKUP($K41,'1.1Назв. объ. эл. сетевого хоз.'!$D$2:$E$34,2,0)&\" изоляцией \"&\"сечением провода \"&VLOOKUP($L41,'1.1Назв. объ. эл. сетевого хоз.'!$D$2:$E$34,2,0)&\" \"&IF($M41=\"5) более четырех\",\"с количеством \"&IF($I41=\"6) метод горизонтального наклонного бурения\",VLOOKUP($M41,'1.1Назв. объ. эл. сетевого хоз.'!$D$2:$F$34,3,0),VLOOKUP($M41,'1.1Назв. объ. эл. сетевого хоз.'!$D$2:$E$34,2,0)),IF($I41=\"6) метод горизонтального наклонного бурения\",VLOOKUP($M41,'1.1Назв. объ. эл. сетевого хоз.'!$D$2:$F$34,3,0),VLOOKUP($M41,'1.1Назв. объ. эл. сетевого хоз.'!$D$2:$E$34,2,0))),VLOOKUP($I41,'1.1Назв. объ. эл. сетевого хоз.'!$D$2:$E$34,2,0)&\" \"&VLOOKUP($J41,'1.1Назв. объ. эл. сетевого хоз.'!$D$2:$E$34,2,0)&\" c \"&VLOOKUP($K41,'1.1Назв. объ. эл. сетевого хоз.'!$D$2:$E$34,2,0)&\" изоляцией \"&\"сечением провода \"&VLOOKUP($L41,'1.1Назв. объ. эл. сетевого хоз.'!$D$2:$E$34,2,0)&\" \"&IF($M41=\"5) более четырех\",\"с количеством \"&IF($I41=\"6) метод горизонтального наклонного бурения\",VLOOKUP($M41,'1.1Назв. объ. эл. сетевого хоз.'!$D$2:$F$34,3,0),VLOOKUP($M41,'1.1Назв. объ. эл. сетевого хоз.'!$D$2:$E$34,2,0)),IF($I41=\"6) метод горизонтального наклонного бурения\",VLOOKUP($M41,'1.1Назв. объ. эл. сетевого хоз.'!$D$2:$F$34,3,0),VLOOKUP($M41,'1.1Назв. объ. эл. сетевого хоз.'!$D$2:$E$34,2,0)))&\" \"&VLOOKUP($I41,'1.1Назв. объ. эл. сетевого хоз.'!$D$2:$F$34,3,0))),\"Заполните все столбцы\")","v":"кабельные линии в траншеях одножильные c бумажной изоляцией сечением провода  от 50 до 100 квадратных мм включительно с двумя кабелями в траншее"},"Строительство КЛ-6 кВ от КТПН №1 2х1000 кВА ПСТ-30 \"Дорожник\" до КТПН №2 2х1000 кВА ПСТ-30 \"Дорожник\"","I ) Город","1) траншея","1) одножильный","2) бумажная","2)  от 50 до 100 квадратных мм включительно","2) два","2) 1 - 10  кВ",{"$f":"Титульный!$D$10-2","v":2023},0.96199999999999997,4153922.31,4318006.5592515599,30,"Инвестиционная программа"]
[null,"TAG",null,null,null,null,"Добавить строки"]

{"sheet":"Ставка 4.1.-4.3.","index":5,"n_rows":17,"n_cols":17,"rows_kept":17,"cut":false,"hidden":false,"merged":[[5,2,5,16],[1,2,3,16]]}
[]
[null,null,"Расходы на строительство введенных в эксплуатацию объектов электросетевого хозяйства для целей технологического присоединения и для целей реализации иных мероприятий инвестиционной программы территориальной сетевой организации"]
[]
[]
[]
[null,null,"ДЛЯ НАСЕЛЕННЫХ ПУНКТОВ ВСЕХ ТЕРРИТОРИЙ"]
[]
[null,null,"N п/п","Технический код ставки","Обозначение ставки","Наименование ставки","Объект электросетевого хозяйства","Территория","Техническое исполнение","Номинальный ток","Напряжение","Год ввода объекта","Количество пунктов секционирования, \nшт.","Общие расходы на строительство объекта, руб. \n(без НДС)","Расходы на строительство единицы, руб./шт.","Наименование папки","Источник финансирования"]
[null,null,1,{"$f":"C$9+1","v":2},{"$f":"D$9+1","v":3},4,5,6,7,8,9,10,11,{"$f":"M9+1","v":12},13,14,15]
[null,null,"4.",null,null,null,null,null,null,null,"Реклоузеры, линейные разъединители, выключатели нагрузки"]
[null," X ",{"$f":"ROW($C11)-12","v":-1},{"$f":"IF(OR($I11=\"\",$J11=\"\",$K11=\"\"),\"Заполните все столбцы\",\"4.\"&LEFT($I11,1)&\".\"&LEFT($J11,1))","v":"Заполните все столбцы"},{"$f":"IFERROR(\"С \"&(MID($D11,1,LEN($D11)))&\",\"&(RIGHT($K11,LEN($K11)-2)),\"Заполните все столбцы\")","v":"Заполните все столбцы"},{"$f":"IFERROR(VLOOKUP($I11,'1.1Назв. объ. эл. сетевого хоз.'!$H$2:$J$33,2,0)&\" номинальным током \"&VLOOKUP($J11,'1.1Назв. объ. эл. сетевого хоз.'!$H$2:$J$33,2,0),\"Заполните все столбцы\")","v":"Заполните все столбцы"},"Название объекта",null,null,null,null,{"$f":"Титульный!$D$10-2","v":2023},null,null,{"$f":"IF(AND(N11<>0,M11<>0),N11/M11,0)","v":0}]
[null,"TAG",null,null,null,null,"Добавить строки"]
[null,null,{"$f":"ROW($C13)-12","v":1},{"$f":"IF(OR($I13=\"\",$J13=\"\",$K13=\"\"),\"Заполните все столбцы\",\"4.\"&LEFT($I13,1)&\".\"&LEFT($J13,1))","v":"Заполните все столбцы"},{"$f":"IFERROR(\"С \"&(MID($D13,1,LEN($D13)))&\",\"&(RIGHT($K13,LEN($K13)-2)),\"Заполните все столбцы\")","v":"Заполните все столбцы"},{"$f":"IFERROR(VLOOKUP($I13,'1.1Назв. объ. эл. сетевого хоз.'!$H$2:$J$33,2,0)&\" номинальным током \"&VLOOKUP($J13,'1.1Назв. объ. эл. сетевого хоз.'!$H$2:$J$33,2,0),\"Заполните все столбцы\")","v":"Заполните все столбцы"},"Название объекта",null,null,null,null,{"$f":"Титульный!$D$10-2","v":2023},null,null,{"$f":"IF(AND(N13<>0,M13<>0),N13/M13,0)","v":0}]
[null,null,{"$f":"ROW($C14)-12","v":2},"Заполните все столбцы","Заполните все столбцы",{"$f":"IFERROR(VLOOKUP($I14,'1.1Назв. объ. эл. сетевого хоз.'!$H$2:$J$33,2,0)&\" номинальным током \"&VLOOKUP($J14,'1.1Назв. объ. эл. сетевого хоз.'!$H$2:$J$33,2,0),\"Заполните все столбцы\")","v":"Заполните все столбцы"},"Название объекта",null,null,null,null,{"$f":"Титульный!$D$10-2","v":2023},null,null,{"$f":"IF(AND(N14<>0,M14<>0),N14/M14,0)","v":0}]
[null,null,{"$f":"ROW($C15)-12","v":3},"Заполните все столбцы","Заполните все столбцы",{"$f":"IFERROR(VLOOKUP($I15,'1.1Назв. объ. эл. сетевого хоз.'!$H$2:$J$33,2,0)&\" номинальным током \"&VLOOKUP($J15,'1.1Назв. объ. эл. сетевого хоз.'!$H$2:$J$33,2,0),\"Заполните все столбцы\")","v":"Заполните все столбцы"},"Название объекта",null,null,null,null,{"$f":"Титульный!$D$10-2","v":2023},null,null,{"$f":"IF(AND(N15<>0,M15<>0),N15/M15,0)","v":0}]
[null,null,{"$f":"ROW($C16)-12","v":4},"Заполните все столбцы","Заполните все столбцы",{"$f":"IFERROR(VLOOKUP($I16,'1.1Назв. объ. эл. сетевого хоз.'!$H$2:$J$33,2,0)&\" номинальным током \"&VLOOKUP($J16,'1.1Назв. объ. эл. сетевого хоз.'!$H$2:$J$33,2,0),\"Заполните все столбцы\")","v":"Заполните все столбцы"},"Название объекта",null,null,null,null,{"$f":"Титульный!$D$10-2","v":2023},null,null,{"$f":"IF(AND(N16<>0,M16<>0),N16/M16,0)","v":0}]
[null,"TAG",null,null,null,null,"Добавить строки"]

{"sheet":"Ставка 4.4.-4.6.","index":6,"n_rows":17,"n_cols":18,"rows_kept":17,"cut":false,"hidden":false,"merged":[[1,2,3,17],[5,2,5,17]]}
[]
[null,null,"Расходы на строительство введенных в эксплуатацию объектов электросетевого хозяйства для целей технологического присоединения и для целей реализации иных мероприятий инвестиционной программы территориальной сетевой организации"]
[]
[]
[]
[null,null,"ДЛЯ НАСЕЛЕННЫХ ПУНКТОВ ВСЕХ ТЕРРИТОРИЙ"]
[]
[null,null,"N п/п","Технический код ставки","Обозначение ставки","Наименование ставки","Объект электросетевого хозяйства","Территория","Техническое исполнение","Номинальный ток","Количество ячеек","Напряжение","Год ввода объекта","Количество распределительных пунктов (РП, КРН, КРУН, ПП), \nшт.","Общие расходы на строительство объекта, руб. \n(без НДС)","Расходы на строительство единицы, руб./шт.","Наименование папки","Источник финансирования"]
[null,null,1,{"$f":"C$9+1","v":2},{"$f":"D$9+1","v":3},4,5,6,7,8,9,10,11,12,13,14,15,16]
[null,null,"4.",null,null,null,"Распределительные пункты (РП), за исключением комплектных распределительных устройств наружной установки (КРН, КРУН),  комплектные распределительные устройства наружной установки (КРН, КРУН) , переключательные пункты"]
[null," X ",{"$f":"ROW($C11)-12","v":-1},{"$f":"IF(OR($I11=\"\",$J11=\"\",$K11=\"\",$L11=\"\"),\"Заполните все столбцы\",\"4.\"&LEFT($I11,1)&\".\"&LEFT($J11,1)&\".\"&LEFT($K11,1))","v":"Заполните все столбцы"},{"$f":"IFERROR(\"С \"&(MID($D11,1,LEN($D11)))&\",\"&(RIGHT($L11,LEN($L11)-2)),\"Заполните все столбцы\")","v":"Заполните все столбцы"},{"$f":"IFERROR(VLOOKUP($I11,'1.1Назв. объ. эл. сетевого хоз.'!$H$2:$J$33,2,0)&\" номинальным током \"&VLOOKUP($J11,'1.1Назв. объ. эл. сетевого хоз.'!$H$2:$J$33,2,0)&\" с количеством ячеек \"&VLOOKUP($K11,'1.1Назв. объ. эл. сетевого хоз.'!$H$2:$J$33,2,0),\"Заполните все столбцы\")","v":"Заполните все столбцы"},"Название объекта",null,null,null,null,null,{"$f":"Титульный!$D$10-2","v":2023},null,null,{"$f":"IF(AND(O11<>0,N11<>0),O11/N11,0)","v":0}]
[null,"TAG",null,null,null,null,"Добавить строки"]
[null,null,{"$f":"ROW($C13)-12","v":1},{"$f":"IF(OR($I13=\"\",$J13=\"\",$K13=\"\",$L13=\"\"),\"Заполните все столбцы\",\"4.\"&LEFT($I13,1)&\".\"&LEFT($J13,1)&\".\"&LEFT($K13,1))","v":"Заполните все столбцы"},{"$f":"IFERROR(\"С \"&(MID($D13,1,LEN($D13)))&\",\"&(RIGHT($L13,LEN($L13)-2)),\"Заполните все столбцы\")","v":"Заполните все столбцы"},{"$f":"IFERROR(VLOOKUP($I13,'1.1Назв. объ. эл. сетевого хоз.'!$H$2:$J$33,2,0)&\" номинальным током \"&VLOOKUP($J13,'1.1Назв. объ. эл. сетевого хоз.'!$H$2:$J$33,2,0)&\" с количеством ячеек \"&VLOOKUP($K13,'1.1Назв. объ. эл. сетевого хоз.'!$H$2:$J$33,2,0),\"Заполните все столбцы\")","v":"Заполните все столбцы"},"Название объекта",null,null,null,null,null,{"$f":"Титульный!$D$10-2","v":2023},null,null,{"$f":"IF(AND(O13<>0,N13<>0),O13/N13,0)","v":0}]
[null,null,{"$f":"ROW($C14)-12","v":2},"Заполните все столбцы","Заполните все столбцы",{"$f":"IFERROR(VLOOKUP($I14,'1.1Назв. объ. эл. сетевого хоз.'!$H$2:$J$33,2,0)&\" номинальным током \"&VLOOKUP($J14,'1.1Назв. объ. эл. сетевого хоз.'!$H$2:$J$33,2,0)&\" с количеством ячеек \"&VLOOKUP($K14,'1.1Назв. объ. эл. сетевого хоз.'!$H$2:$J$33,2,0),\"Заполните все столбцы\")","v":"Заполните все столбцы"},"Название объекта",null,null,null,null,null,{"$f":"Титульный!$D$10-2","v":2023},null,null,0]
[null,null,{"$f":"ROW($C15)-12","v":3},"Заполните все столбцы","Заполните все столбцы",{"$f":"IFERROR(VLOOKUP($I15,'1.1Назв. объ. эл. сетевого хоз.'!$H$2:$J$33,2,0)&\" номинальным током \"&VLOOKUP($J15,'1.1Назв. объ. эл. сетевого хоз.'!$H$2:$J$33,2,0)&\" с количеством ячеек \"&VLOOKUP($K15,'1.1Назв. объ. эл. сетевого хоз.'!$H$2:$J$33,2,0),\"Заполните все столбцы\")","v":"Заполните все столбцы"},"Название объекта",null,null,null,null,null,{"$f":"Титульный!$D$10-2","v":2023},null,null,0]
[null,null,{"$f":"ROW($C16)-12","v":4},"Заполните все столбцы","Заполните все столбцы",{"$f":"IFERROR(VLOOKUP($I16,'1.1Назв. объ. эл. сетевого хоз.'!$H$2:$J$33,2,0)&\" номинальным током \"&VLOOKUP($J16,'1.1Назв. объ. эл. сетевого хоз.'!$H$2:$J$33,2,0)&\" с количеством ячеек \"&VLOOKUP($K16,'1.1Назв. объ. эл. сетевого хоз.'!$H$2:$J$33,2,0),\"Заполните все столбцы\")","v":"Заполните все столбцы"},"Название объекта",null,null,null,null,null,{"$f":"Титульный!$D$10-2","v":2023},null,null,0]
[null,"TAG",null,null,null,null,"Добавить строки"]

{"sheet":"Ставка 5. (ТП без РТП)","index":7,"n_rows":47,"n_cols":18,"rows_kept":47,"cut":false,"hidden":false,"merged":[[1,2,3,17],[5,2,5,17]]}
[]
[null,null,"Расходы на строительство введенных в эксплуатацию объектов электросетевого хозяйства для целей технологического присоединения и для целей реализации иных мероприятий инвестиционной программы территориальной сетевой организации"]
[]
[]
[]
[null,null,"ДЛЯ НАСЕЛЕННЫХ ПУНКТОВ ВСЕХ ТЕРРИТОРИЙ"]
[]
[null,null,"N п/п","Технический код ставки","Обозначение ставки","Наименование ставки","Объект электросетевого хозяйства","Территория","Количество трансформаторов","Мощность трансформаторов","Тип исполнения","Напряжение","Год ввода объекта","Общая трансформаторная мощность, кВт","Расходы на строительство объекта, руб. \n(без НДС)","Расходы на строительство единицы, руб./кВт","Наименование папки","Источник финансирования"]
[null,null,1,{"$f":"C$9+1","v":2},{"$f":"D$9+1","v":3},4,5,6,7,8,9,10,11,12,13,14,15,16]
[null,null,"5.",null,null,null,"Трансформаторные подстанции (ТП), за исключением распределительных трансформаторных подстанций (РТП), с уровнем напряжения до 35 кВ"]
[null," X ",{"$f":"ROW($C11)-12","v":-1},{"$f":"IF(OR($I11=\"\",$J11=\"\",$K11=\"\",$L11=\"\"),\"Заполните все столбцы\",\"5.\"&LEFT($I11,1)&\".\"&LEFT($J11,2)&\".\"&LEFT($K11,1))","v":"Заполните все столбцы"},{"$f":"IFERROR(\"С \"&(MID($D11,1,LEN($D11)))&\",\"&(RIGHT($L11,LEN($L11)-2)),\"Заполните все столбцы\")","v":"Заполните все столбцы"},{"$f":"IFERROR(VLOOKUP($I11,'1.1Назв. объ. эл. сетевого хоз.'!$K$2:$L$35,2,0)&\" \"&VLOOKUP($J11,'1.1Назв. объ. эл. сетевого хоз.'!$K$2:$L$26,2,0)&\" \"&VLOOKUP($K11,'1.1Назв. объ. эл. сетевого хоз.'!$K$2:$L$26,2,0),\"Заполните все столбцы\")","v":"Заполните все столбцы"},null,null,null,null,null,null,{"$f":"Титульный!$D$10-2","v":2023},null,null,{"$f":"IF(AND(O11<>0,N11<>0),O11/N11,0)","v":0}]
[null,"TAG",null,null,null,null,"Добавить строки"]
[null,null,{"$f":"ROW($C13)-12","v":1},{"$f":"IF(OR($I13=\"\",$J13=\"\",$K13=\"\",$L13=\"\"),\"Заполните все столбцы\",\"5.\"&LEFT($I13,1)&\".\"&LEFT($J13,2)&\".\"&LEFT($K13,1))","v":"5.2.3..2"},{"$f":"IFERROR(\"С \"&(MID($D13,1,LEN($D13)))&\",\"&(RIGHT($L13,LEN($L13)-2)),\"Заполните все столбцы\")","v":"С 5.2.3..2, 10/0,4 кВ"},{"$f":"IFERROR(VLOOKUP($I13,'1.1Назв. объ. эл. сетевого хоз.'!$K$2:$L$35,2,0)&\" \"&VLOOKUP($J13,'1.1Назв. объ. эл. сетевого хоз.'!$K$2:$L$26,2,0)&\" \"&VLOOKUP($K13,'1.1Назв. объ. эл. сетевого хоз.'!$K$2:$L$26,2,0),\"Заполните все столбцы\")","v":"двухтрансформаторные и более подстанции (за исключением РТП) мощностью от 100 до 250 кВА включительно шкафного или киоскового типа"},"Строительство КТПН-2х160 кВА мкр. Черный Мыс","I ) Город","2) два","3.) от 100 до 250 кВА включительно","2) шкафного или киоскового ","2) 10/0,4 кВ",{"$f":"Титульный!$D$10-2","v":2023},128,4683057.53,{"$f":"IF(AND(O13<>0,N13<>0),O13/N13,0)","v":36586.386953125002},1,"Инвестиционная программа"]
[null,null,2,"5.1.5..2","С 5.1.5..2, 10/0,4 кВ",{"$f":"IFERROR(VLOOKUP($I14,'1.1Назв. объ. эл. сетевого хоз.'!$K$2:$L$35,2,0)&\" \"&VLOOKUP($J14,'1.1Назв. объ. эл. сетевого хоз.'!$K$2:$L$26,2,0)&\" \"&VLOOKUP($K14,'1.1Назв. объ. эл. сетевого хоз.'!$K$2:$L$26,2,0),\"Заполните все столбцы\")","v":"однотрансформаторные подстанции (за исключением РТП) мощностью от 400 до 630 кВА включительно шкафного или киоскового типа"},"Строительство КТПН-630 кВА Рынок ул. Инженерная","I ) Город","1) один","5.) от 400 до 630 кВА включительно","2) шкафного или киоскового ","2) 10/0,4 кВ",{"$f":"Титульный!$D$10-2","v":2023},504,4445393.1399999997,8820.224484126984,1,"Инвестиционная программа"]
[null,null,3,"5.1.3..2","С 5.1.3..2, 10/0,4 кВ",{"$f":"IFERROR(VLOOKUP($I15,'1.1Назв. объ. эл. сетевого хоз.'!$K$2:$L$35,2,0)&\" \"&VLOOKUP($J15,'1.1Назв. объ. эл. сетевого хоз.'!$K$2:$L$26,2,0)&\" \"&VLOOKUP($K15,'1.1Назв. объ. эл. сетевого хоз.'!$K$2:$L$26,2,0),\"Заполните все столбцы\")","v":"однотрансформаторные подстанции (за исключением РТП) мощностью от 100 до 250 кВА включительно шкафного или киоскового типа"},"Строительство КТПН № 2 250 кВА 8ПУ Восточная группа скважин","I ) Город","1) один","3.) от 100 до 250 кВА включительно","2) шкафного или киоскового ","2) 10/0,4 кВ",{"$f":"Титульный!$D$10-2","v":2023},200,2074733.5,10373.6675,8,"Инвестиционная программа"]
[null,null,4,"5.1.3..2","С 5.1.3..2, 10/0,4 кВ",{"$f":"IFERROR(VLOOKUP($I16,'1.1Назв. объ. эл. сетевого хоз.'!$K$2:$L$35,2,0)&\" \"&VLOOKUP($J16,'1.1Назв. объ. эл. сетевого хоз.'!$K$2:$L$26,2,0)&\" \"&VLOOKUP($K16,'1.1Назв. объ. эл. сетевого хоз.'!$K$2:$L$26,2,0),\"Заполните все столбцы\")","v":"однотрансформаторные подстанции (за исключением РТП) мощностью от 100 до 250 кВА включительно шкафного или киоскового типа"},"Строительство КТПН № 3 250 кВА 8ПУ Восточная группа скважин","I ) Город","1) один","3.) от 100 до 250 кВА включительно","2) шкафного или киоскового ","2) 10/0,4 кВ",{"$f":"Титульный!$D$10-2","v":2023},200,2074733.5,10373.6675,8,"Инвестиционная программа"]
[null," X ",5,{"$f":"IF(OR($I17=\"\",$J17=\"\",$K17=\"\",$L17=\"\"),\"Заполните все столбцы\",\"5.\"&LEFT($I17,1)&\".\"&LEFT($J17,2)&\".\"&LEFT($K17,1))","v":"5.1.3..2"},{"$f":"IFERROR(\"С \"&(MID($D17,1,LEN($D17)))&\",\"&(RIGHT($L17,LEN($L17)-2)),\"Заполните все столбцы\")","v":"С 5.1.3..2, 10/0,4 кВ"},{"$f":"IFERROR(VLOOKUP($I17,'1.1Назв. объ. эл. сетевого хоз.'!$K$2:$L$35,2,0)&\" \"&VLOOKUP($J17,'1.1Назв. объ. эл. сетевого хоз.'!$K$2:$L$26,2,0)&\" \"&VLOOKUP($K17,'1.1Назв. объ. эл. сетевого хоз.'!$K$2:$L$26,2,0),\"Заполните все столбцы\")","v":"однотрансформаторные подстанции (за исключением РТП) мощностью от 100 до 250 кВА включительно шкафного или киоскового типа"},"Строительство КТПН № 1 250 кВА 8ПУ Восточная группа скважин","I ) Город","1) один","3.) от 100 до 250 кВА включительно","2) шкафного или киоскового ","2) 10/0,4 кВ",{"$f":"Титульный!$D$10-2","v":2023},200,2074733.5,{"$f":"IF(AND(O17<>0,N17<>0),O17/N17,0)","v":10373.6675},8,"Инвестиционная программа"]
[null," X ",6,"5.1.5..2","С 5.1.5..2, 10/0,4 кВ",{"$f":"IFERROR(VLOOKUP($I18,'1.1Назв. объ. эл. сетевого хоз.'!$K$2:$L$35,2,0)&\" \"&VLOOKUP($J18,'1.1Назв. объ. эл. сетевого хоз.'!$K$2:$L$26,2,0)&\" \"&VLOOKUP($K18,'1.1Назв. объ. эл. сетевого хоз.'!$K$2:$L$26,2,0),\"Заполните все столбцы\")","v":"однотрансформаторные подстанции (за исключением РТП) мощностью от 400 до 630 кВА включительно шкафного или киоскового типа"},"Строительство КТПН -630 кВА пос. Медвежий угол","I ) Город","1) один","5.) от 400 до 630 кВА включительно","2) шкафного или киоскового ","2) 10/0,4 кВ",{"$f":"Титульный!$D$10-2","v":2023},504,4445393.58,{"$f":"IF(AND(O18<>0,N18<>0),O18/N18,0)","v":8820.2253571428573},"8, 8.1","Инвестиционная программа"]
[null," X ",7,"5.1.5..2","С 5.1.5..2, 10/0,4 кВ",{"$f":"IFERROR(VLOOKUP($I19,'1.1Назв. объ. эл. сетевого хоз.'!$K$2:$L$35,2,0)&\" \"&VLOOKUP($J19,'1.1Назв. объ. эл. сетевого хоз.'!$K$2:$L$26,2,0)&\" \"&VLOOKUP($K19,'1.1Назв. объ. эл. сетевого хоз.'!$K$2:$L$26,2,0),\"Заполните все столбцы\")","v":"однотрансформаторные подстанции (за исключением РТП) мощностью от 400 до 630 кВА включительно шкафного или киоскового типа"},"Строительство КТПН № 1 630 кВА ДНТ Белые росы","I ) Город","1) один","5.) от 400 до 630 кВА включительно","2) шкафного или киоскового ","2) 10/0,4 кВ",{"$f":"Титульный!$D$10-2","v":2023},504,4435350.55,{"$f":"IF(AND(O19<>0,N19<>0),O19/N19,0)","v":8800.2987103174601},2,"Инвестиционная программа"]
[null," X ",8,"5.1.5..2","С 5.1.5..2, 10/0,4 кВ",{"$f":"IFERROR(VLOOKUP($I20,'1.1Назв. объ. эл. сетевого хоз.'!$K$2:$L$35,2,0)&\" \"&VLOOKUP($J20,'1.1Назв. объ. эл. сетевого хоз.'!$K$2:$L$26,2,0)&\" \"&VLOOKUP($K20,'1.1Назв. объ. эл. сетевого хоз.'!$K$2:$L$26,2,0),\"Заполните все столбцы\")","v":"однотрансформаторные подстанции (за исключением РТП) мощностью от 400 до 630 кВА включительно шкафного или киоскового типа"},"Строительство КТПН № 2 630 кВА ДНТ Белые росы","I ) Город","1) один","5.) от 400 до 630 кВА включительно","2) шкафного или киоскового ","2) 10/0,4 кВ",{"$f":"Титульный!$D$10-2","v":2023},504,4435350.55,{"$f":"IF(AND(O20<>0,N20<>0),O20/N20,0)","v":8800.2987103174601},2,"Инвестиционная программа"]
[null," X ",9,"5.1.4..2","С 5.1.4..2, 10/0,4 кВ",{"$f":"IFERROR(VLOOKUP($I21,'1.1Назв. объ. эл. сетевого хоз.'!$K$2:$L$35,2,0)&\" \"&VLOOKUP($J21,'1.1Назв. объ. эл. сетевого хоз.'!$K$2:$L$26,2,0)&\" \"&VLOOKUP($K21,'1.1Назв. объ. эл. сетевого хоз.'!$K$2:$L$26,2,0),\"Заполните все столбцы\")","v":"однотрансформаторные подстанции (за исключением РТП) мощностью от 250 до 400 кВА включительно шкафного или киоскового типа"},"Строительство КТПН №1 - 400 кВА СПК \"Север\"","I ) Город","1) один","4.) от 250 до 400 кВА включительно","2) шкафного или киоскового ","2) 10/0,4 кВ",{"$f":"Титульный!$D$10-2","v":2023},320,2532505.58,{"$f":"IF(AND(O21<>0,N21<>0),O21/N21,0)","v":7914.0799375000006},"3, 3.1","Инвестиционная программа"]
[null," X ",10,"5.1.6..2","С 5.1.6..2, 10/0,4 кВ",{"$f":"IFERROR(VLOOKUP($I22,'1.1Назв. объ. эл. сетевого хоз.'!$K$2:$L$35,2,0)&\" \"&VLOOKUP($J22,'1.1Назв. объ. эл. сетевого хоз.'!$K$2:$L$26,2,0)&\" \"&VLOOKUP($K22,'1.1Назв. объ. эл. сетевого хоз.'!$K$2:$L$26,2,0),\"Заполните все столбцы\")","v":"однотрансформаторные подстанции (за исключением РТП) мощностью от 630 кВА до 1000 кВА шкафного или киоскового типа"},"Строительство КТПН №2 - 1000 кВА СПК \"Север\"","I ) Город","1) один","6.) от 630 кВА до 1000 кВА","2) шкафного или киоскового ","2) 10/0,4 кВ",{"$f":"Титульный!$D$10-2","v":2023},800,5184455.09,{"$f":"IF(AND(O22<>0,N22<>0),O22/N22,0)","v":6480.5688625000003},3,"Инвестиционная программа"]
[null," X ",11,"5.1.5..2","С 5.1.5..2, 10/0,4 кВ",{"$f":"IFERROR(VLOOKUP($I23,'1.1Назв. объ. эл. сетевого хоз.'!$K$2:$L$35,2,0)&\" \"&VLOOKUP($J23,'1.1Назв. объ. эл. сетевого хоз.'!$K$2:$L$26,2,0)&\" \"&VLOOKUP($K23,'1.1Назв. объ. эл. сетевого хоз.'!$K$2:$L$26,2,0),\"Заполните все столбцы\")","v":"однотрансформаторные подстанции (за исключением РТП) мощностью от 400 до 630 кВА включительно шкафного или киоскового типа"},"Строительство КТПН №1 - 630 кВА СТСН \"Север-1\"","I ) Город","1) один","5.) от 400 до 630 кВА включительно","2) шкафного или киоскового ","2) 10/0,4 кВ",{"$f":"Титульный!$D$10-2","v":2023},504,4435350.8,{"$f":"IF(AND(O23<>0,N23<>0),O23/N23,0)","v":8800.2992063492056},"3, 3.1","Инвестиционная программа"]
[null," X ",12,"5.1.4..2","С 5.1.4..2, 10/0,4 кВ",{"$f":"IFERROR(VLOOKUP($I24,'1.1Назв. объ. эл. сетевого хоз.'!$K$2:$L$35,2,0)&\" \"&VLOOKUP($J24,'1.1Назв. объ. эл. сетевого хоз.'!$K$2:$L$26,2,0)&\" \"&VLOOKUP($K24,'1.1Назв. объ. эл. сетевого хоз.'!$K$2:$L$26,2,0),\"Заполните все столбцы\")","v":"однотрансформаторные подстанции (за исключением РТП) мощностью от 250 до 400 кВА включительно шкафного или киоскового типа"},"Строительство КТПН №2 - 400 кВА СТСН \"Север-1\"","I ) Город","1) один","4.) от 250 до 400 кВА включительно","2) шкафного или киоскового ","2) 10/0,4 кВ",{"$f":"Титульный!$D$10-2","v":2023},320,2532505.58,{"$f":"IF(AND(O24<>0,N24<>0),O24/N24,0)","v":7914.0799375000006},"3, 3.1","Инвестиционная программа"]
[null," X ",13,"5.1.6..2","С 5.1.6..2, 10/0,4 кВ",{"$f":"IFERROR(VLOOKUP($I25,'1.1Назв. объ. эл. сетевого хоз.'!$K$2:$L$35,2,0)&\" \"&VLOOKUP($J25,'1.1Назв. объ. эл. сетевого хоз.'!$K$2:$L$26,2,0)&\" \"&VLOOKUP($K25,'1.1Назв. объ. эл. сетевого хоз.'!$K$2:$L$26,2,0),\"Заполните все столбцы\")","v":"однотрансформаторные подстанции (за исключением РТП) мощностью от 630 кВА до 1000 кВА шкафного или киоскового типа"},"Строительство КТПН №1 - 1000 кВА СПК \"Победит-1\"","I ) Город","1) один","6.) от 630 кВА до 1000 кВА","2) шкафного или киоскового ","2) 10/0,4 кВ",{"$f":"Титульный!$D$10-2","v":2023},800,5184455.09,{"$f":"IF(AND(O25<>0,N25<>0),O25/N25,0)","v":6480.5688625000003},4,"Инвестиционная программа"]
[null," X ",14,"5.1.6..2","С 5.1.6..2, 10/0,4 кВ",{"$f":"IFERROR(VLOOKUP($I26,'1.1Назв. объ. эл. сетевого хоз.'!$K$2:$L$35,2,0)&\" \"&VLOOKUP($J26,'1.1Назв. объ. эл. сетевого хоз.'!$K$2:$L$26,2,0)&\" \"&VLOOKUP($K26,'1.1Назв. объ. эл. сетевого хоз.'!$K$2:$L$26,2,0),\"Заполните все столбцы\")","v":"однотрансформаторные подстанции (за исключением РТП) мощностью от 630 кВА до 1000 кВА шкафного или киоскового типа"},"Строительство КТПН №3 - 1000 кВА СПК \"Победит-1\"","I ) Город","1) один","6.) от 630 кВА до 1000 кВА","2) шкафного или киоскового ","2) 10/0,4 кВ",{"$f":"Титульный!$D$10-2","v":2023},800,5184455.09,{"$f":"IF(AND(O26<>0,N26<>0),O26/N26,0)","v":6480.5688625000003},4,"Инвестиционная программа"]
[null," X ",15,"5.1.6..2","С 5.1.6..2, 10/0,4 кВ",{"$f":"IFERROR(VLOOKUP($I27,'1.1Назв. объ. эл. сетевого хоз.'!$K$2:$L$35,2,0)&\" \"&VLOOKUP($J27,'1.1Назв. объ. эл. сетевого хоз.'!$K$2:$L$26,2,0)&\" \"&VLOOKUP($K27,'1.1Назв. объ. эл. сетевого хоз.'!$K$2:$L$26,2,0),\"Заполните все столбцы\")","v":"однотрансформаторные подстанции (за исключением РТП) мощностью от 630 кВА до 1000 кВА шкафного или киоскового типа"},"Строительство КТПН №5 - 1000 кВА СПК \"Победит-1\"","I ) Город","1) один","6.) от 630 кВА до 1000 кВА","2) шкафного или киоскового ","2) 10/0,4 кВ",{"$f":"Титульный!$D$10-2","v":2023},800,5184455.09,{"$f":"IF(AND(O27<>0,N27<>0),O27/N27,0)","v":6480.5688625000003},4,"Инвестиционная программа"]
[null," X ",16,"5.1.6..2","С 5.1.6..2, 10/0,4 кВ",{"$f":"IFERROR(VLOOKUP($I28,'1.1Назв. объ. эл. сетевого хоз.'!$K$2:$L$35,2,0)&\" \"&VLOOKUP($J28,'1.1Назв. объ. эл. сетевого хоз.'!$K$2:$L$26,2,0)&\" \"&VLOOKUP($K28,'1.1Назв. объ. эл. сетевого хоз.'!$K$2:$L$26,2,0),\"Заполните все столбцы\")","v":"однотрансформаторные подстанции (за исключением РТП) мощностью от 630 кВА до 1000 кВА шкафного или киоскового типа"},"Строительство КТПН - 1000 кВА ТСН \"Крылья Сургута\"","I ) Город","1) один","6.) от 630 кВА до 1000 кВА","2) шкафного или киоскового ","2) 10/0,4 кВ",{"$f":"Титульный!$D$10-2","v":2023},800,5184455.09,{"$f":"IF(AND(O28<>0,N28<>0),O28/N28,0)","v":6480.5688625000003},5,"Инвестиционная программа"]
[null," X ",17,"5.1.6..2","С 5.1.6..2, 10/0,4 кВ",{"$f":"IFERROR(VLOOKUP($I29,'1.1Назв. объ. эл. сетевого хоз.'!$K$2:$L$35,2,0)&\" \"&VLOOKUP($J29,'1.1Назв. объ. эл. сетевого хоз.'!$K$2:$L$26,2,0)&\" \"&VLOOKUP($K29,'1.1Назв. объ. эл. сетевого хоз.'!$K$2:$L$26,2,0),\"Заполните все столбцы\")","v":"однотрансформаторные подстанции (за исключением РТП) мощностью от 630 кВА до 1000 кВА шкафного или киоскового типа"},"Строительство КТПН - 1000 кВА СТСН № 20 \"Магистраль\"","I ) Город","1) один","6.) от 630 кВА до 1000 кВА","2) шкафного или киоскового ","2) 10/0,4 кВ",{"$f":"Титульный!$D$10-2","v":2023},800,5184455.09,{"$f":"IF(AND(O29<>0,N29<>0),O29/N29,0)","v":6480.5688625000003},5,"Инвестиционная программа"]
[null," X ",18,"5.1.5..2","С 5.1.5..2, 10/0,4 кВ",{"$f":"IFERROR(VLOOKUP($I30,'1.1Назв. объ. эл. сетевого хоз.'!$K$2:$L$35,2,0)&\" \"&VLOOKUP($J30,'1.1Назв. объ. эл. сетевого хоз.'!$K$2:$L$26,2,0)&\" \"&VLOOKUP($K30,'1.1Назв. объ. эл. сетевого хоз.'!$K$2:$L$26,2,0),\"Заполните все столбцы\")","v":"однотрансформаторные подстанции (за исключением РТП) мощностью от 400 до 630 кВА включительно шкафного или киоскового типа"},"Строительство КТПН №2- 630 кВА ПСК \"Ветеран-2\"","I ) Город","1) один","5.) от 400 до 630 кВА включительно","2) шкафного или киоскового ","2) 10/0,4 кВ",{"$f":"Титульный!$D$10-2","v":2023},504,4435350.8,{"$f":"IF(AND(O30<>0,N30<>0),O30/N30,0)","v":8800.2992063492056},6,"Инвестиционная программа"]
[null," X ",19,"5.1.5..2","С 5.1.5..2, 10/0,4 кВ",{"$f":"IFERROR(VLOOKUP($I31,'1.1Назв. объ. эл. сетевого хоз.'!$K$2:$L$35,2,0)&\" \"&VLOOKUP($J31,'1.1Назв. объ. эл. сетевого хоз.'!$K$2:$L$26,2,0)&\" \"&VLOOKUP($K31,'1.1Назв. объ. эл. сетевого хоз.'!$K$2:$L$26,2,0),\"Заполните все столбцы\")","v":"однотрансформаторные подстанции (за исключением РТП) мощностью от 400 до 630 кВА включительно шкафного или киоскового типа"},"Строительство КТПН №1- 630 кВА СТ№38 \"Берендей\"","I ) Город","1) один","5.) от 400 до 630 кВА включительно","2) шкафного или киоскового ","2) 10/0,4 кВ",{"$f":"Титульный!$D$10-2","v":2023},504,4435350.8,{"$f":"IF(AND(O31<>0,N31<>0),O31/N31,0)","v":8800.2992063492056},6,"Инвестиционная программа"]
[null," X ",20,"5.1.6..2","С 5.1.6..2, 10/0,4 кВ",{"$f":"IFERROR(VLOOKUP($I32,'1.1Назв. объ. эл. сетевого хоз.'!$K$2:$L$35,2,0)&\" \"&VLOOKUP($J32,'1.1Назв. объ. эл. сетевого хоз.'!$K$2:$L$26,2,0)&\" \"&VLOOKUP($K32,'1.1Назв. объ. эл. сетевого хоз.'!$K$2:$L$26,2,0),\"Заполните все столбцы\")","v":"однотрансформаторные подстанции (за исключением РТП) мощностью от 630 кВА до 1000 кВА шкафного или киоскового типа"},"Строительство КТПН №2- 1000 кВА СТ№38 \"Берендей\"","I ) Город","1) один","6.) от 630 кВА до 1000 кВА","2) шкафного или киоскового ","2) 10/0,4 кВ",{"$f":"Титульный!$D$10-2","v":2023},800,5184455.09,{"$f":"IF(AND(O32<>0,N32<>0),O32/N32,0)","v":6480.5688625000003},6,"Инвестиционная программа"]
[null," X ",21,"5.1.4..2","С 5.1.4..2, 10/0,4 кВ",{"$f":"IFERROR(VLOOKUP($I33,'1.1Назв. объ. эл. сетевого хоз.'!$K$2:$L$35,2,0)&\" \"&VLOOKUP($J33,'1.1Назв. объ. эл. сетевого хоз.'!$K$2:$L$26,2,0)&\" \"&VLOOKUP($K33,'1.1Назв. объ. эл. сетевого хоз.'!$K$2:$L$26,2,0),\"Заполните все столбцы\")","v":"однотрансформаторные подстанции (за исключением РТП) мощностью от 250 до 400 кВА включительно шкафного или киоскового типа"},"Строительство КТПН- 400 кВА СНТСТ №28 \"Буровик\"","I ) Город","1) один","4.) от 250 до 400 кВА включительно","2) шкафного или киоскового ","2) 10/0,4 кВ",{"$f":"Титульный!$D$10-2","v":2023},320,2532505.58,{"$f":"IF(AND(O33<>0,N33<>0),O33/N33,0)","v":7914.0799375000006},7,"Инвестиционная программа"]
[null," X ",22,"5.1.4..2","С 5.1.4..2, 10/0,4 кВ",{"$f":"IFERROR(VLOOKUP($I34,'1.1Назв. объ. эл. сетевого хоз.'!$K$2:$L$35,2,0)&\" \"&VLOOKUP($J34,'1.1Назв. объ. эл. сетевого хоз.'!$K$2:$L$26,2,0)&\" \"&VLOOKUP($K34,'1.1Назв. объ. эл. сетевого хоз.'!$K$2:$L$26,2,0),\"Заполните все столбцы\")","v":"однотрансформаторные подстанции (за исключением РТП) мощностью от 250 до 400 кВА включительно шкафного или киоскового типа"},"Строительство КТПН- 400 кВА СТСН \"Тюльпан\"","I ) Город","1) один","4.) от 250 до 400 кВА включительно","2) шкафного или киоскового ","2) 10/0,4 кВ",{"$f":"Титульный!$D$10-2","v":2023},320,2532505.58,{"$f":"IF(AND(O34<>0,N34<>0),O34/N34,0)","v":7914.0799375000006},7,"Инвестиционная программа"]
[null," X ",23,"5.1.5..2","С 5.1.5..2, 10/0,4 кВ",{"$f":"IFERROR(VLOOKUP($I35,'1.1Назв. объ. эл. сетевого хоз.'!$K$2:$L$35,2,0)&\" \"&VLOOKUP($J35,'1.1Назв. объ. эл. сетевого хоз.'!$K$2:$L$26,2,0)&\" \"&VLOOKUP($K35,'1.1Назв. объ. эл. сетевого хоз.'!$K$2:$L$26,2,0),\"Заполните все столбцы\")","v":"однотрансформаторные подстанции (за исключением РТП) мощностью от 400 до 630 кВА включительно шкафного или киоскового типа"},"Строительство КТПН- 630 кВА СТ №47 \"Лайнер\"","I ) Город","1) один","5.) от 400 до 630 кВА включительно","2) шкафного или киоскового ","2) 10/0,4 кВ",{"$f":"Титульный!$D$10-2","v":2023},504,4435350.8,{"$f":"IF(AND(O35<>0,N35<>0),O35/N35,0)","v":8800.2992063492056},7,"Инвестиционная программа"]
[null," X ",24,"5.1.5..2","С 5.1.5..2, 10/0,4 кВ",{"$f":"IFERROR(VLOOKUP($I36,'1.1Назв. объ. эл. сетевого хоз.'!$K$2:$L$35,2,0)&\" \"&VLOOKUP($J36,'1.1Назв. объ. эл. сетевого хоз.'!$K$2:$L$26,2,0)&\" \"&VLOOKUP($K36,'1.1Назв. объ. эл. сетевого хоз.'!$K$2:$L$26,2,0),\"Заполните все столбцы\")","v":"однотрансформаторные подстанции (за исключением РТП) мощностью от 400 до 630 кВА включительно шкафного или киоскового типа"},"Строительство КТПН- 630 кВА ТСН №43 \"Полимер\"","I ) Город","1) один","5.) от 400 до 630 кВА включительно","2) шкафного или киоскового ","2) 10/0,4 кВ",{"$f":"Титульный!$D$10-2","v":2023},504,4435350.8,{"$f":"IF(AND(O36<>0,N36<>0),O36/N36,0)","v":8800.2992063492056},7,"Инвестиционная программа"]
[null," X ",25,"5.1.3..2","С 5.1.3..2, 10/0,4 кВ",{"$f":"IFERROR(VLOOKUP($I37,'1.1Назв. объ. эл. сетевого хоз.'!$K$2:$L$35,2,0)&\" \"&VLOOKUP($J37,'1.1Назв. объ. эл. сетевого хоз.'!$K$2:$L$26,2,0)&\" \"&VLOOKUP($K37,'1.1Назв. объ. эл. сетевого хоз.'!$K$2:$L$26,2,0),\"Заполните все столбцы\")","v":"однотрансформаторные подстанции (за исключением РТП) мощностью от 100 до 250 кВА включительно шкафного или киоскового типа"},"Строительство КТПН-250 кВА ТСН №44 \"Локомотив\"","I ) Город","1) один","3.) от 100 до 250 кВА включительно","2) шкафного или киоскового ","2) 10/0,4 кВ",{"$f":"Титульный!$D$10-2","v":2023},200,2064691.43,{"$f":"IF(AND(O37<>0,N37<>0),O37/N37,0)","v":10323.45715},7,"Инвестиционная программа"]
[null," X ",{"$f":"ROW($C38)-12","v":26},{"$f":"IF(OR($I38=\"\",$J38=\"\",$K38=\"\",$L38=\"\"),\"Заполните все столбцы\",\"5.\"&LEFT($I38,1)&\".\"&LEFT($J38,2)&\".\"&LEFT($K38,1))","v":"5.2.6..2"},{"$f":"IFERROR(\"С \"&(MID($D38,1,LEN($D38)))&\",\"&(RIGHT($L38,LEN($L38)-2)),\"Заполните все столбцы\")","v":"С 5.2.6..2, 10/0,4 кВ"},{"$f":"IFERROR(VLOOKUP($I38,'1.1Назв. объ. эл. сетевого хоз.'!$K$2:$L$35,2,0)&\" \"&VLOOKUP($J38,'1.1Назв. объ. эл. сетевого хоз.'!$K$2:$L$26,2,0)&\" \"&VLOOKUP($K38,'1.1Назв. объ. эл. сетевого хоз.'!$K$2:$L$26,2,0),\"Заполните все столбцы\")","v":"двухтрансформаторные и более подстанции (за исключением РТП) мощностью от 630 кВА до 1000 кВА шкафного или киоскового типа"},"Строительство КТПН №1 2х1000 кВА ПСТ-30 \"Дорожник\"","I ) Город","2) два","6.) от 630 кВА до 1000 кВА","2) шкафного или киоскового ","2) 10/0,4 кВ",{"$f":"Титульный!$D$10-2","v":2023},1600,8061397.4400000004,{"$f":"IF(AND(O38<>0,N38<>0),O38/N38,0)","v":5038.3734000000004},9,"Инвестиционная программа"]
[null," X ",27,"5.2.6..2","С 5.2.6..2, 10/0,4 кВ",{"$f":"IFERROR(VLOOKUP($I39,'1.1Назв. объ. эл. сетевого хоз.'!$K$2:$L$35,2,0)&\" \"&VLOOKUP($J39,'1.1Назв. объ. эл. сетевого хоз.'!$K$2:$L$26,2,0)&\" \"&VLOOKUP($K39,'1.1Назв. объ. эл. сетевого хоз.'!$K$2:$L$26,2,0),\"Заполните все столбцы\")","v":"двухтрансформаторные и более подстанции (за исключением РТП) мощностью от 630 кВА до 1000 кВА шкафного или киоскового типа"},"Строительство КТПН №2 2х1000 кВА ПСТ-30 \"Дорожник\"","I ) Город","2) два","6.) от 630 кВА до 1000 кВА","2) шкафного или киоскового ","2) 10/0,4 кВ",{"$f":"Титульный!$D$10-2","v":2023},1600,8194681.3200000003,{"$f":"IF(AND(O39<>0,N39<>0),O39/N39,0)","v":5121.6758250000003},9,"Инвестиционная программа"]
[null," X ",28,"5.2.10.3","С 5.2.10.3, 10/0,4 кВ",{"$f":"IFERROR(VLOOKUP($I40,'1.1Назв. объ. эл. сетевого хоз.'!$K$2:$L$35,2,0)&\" \"&VLOOKUP($J40,'1.1Назв. объ. эл. сетевого хоз.'!$K$2:$L$26,2,0)&\" \"&VLOOKUP($K40,'1.1Назв. объ. эл. сетевого хоз.'!$K$2:$L$26,2,0),\"Заполните все столбцы\")","v":"двухтрансформаторные и более подстанции (за исключением РТП) мощностью от 2000 кВА до 2500 кВА включительно блочного типа"},"Строительство ТП- 2х2500 кВА мкр. 7","I ) Город","2) два","10) от 2000 кВА до 2500 кВА включительно","3) блочного","2) 10/0,4 кВ",{"$f":"Титульный!$D$10-2","v":2023},4000,30780580.02,{"$f":"IF(AND(O40<>0,N40<>0),O40/N40,0)","v":7695.1450050000003},10,"Инвестиционная программа"]
[null," X ",29,"5.2.10.3","С 5.2.10.3, 10/0,4 кВ",{"$f":"IFERROR(VLOOKUP($I41,'1.1Назв. объ. эл. сетевого хоз.'!$K$2:$L$35,2,0)&\" \"&VLOOKUP($J41,'1.1Назв. объ. эл. сетевого хоз.'!$K$2:$L$26,2,0)&\" \"&VLOOKUP($K41,'1.1Назв. объ. эл. сетевого хоз.'!$K$2:$L$26,2,0),\"Заполните все столбцы\")","v":"двухтрансформаторные и более подстанции (за исключением РТП) мощностью от 2000 кВА до 2500 кВА включительно блочного типа"},"Строительство ТП- 2х2500 мкр. Пойма-5","I ) Город","2) два","10) от 2000 кВА до 2500 кВА включительно","3) блочного","2) 10/0,4 кВ",{"$f":"Титульный!$D$10-2","v":2023},4000,33695098,{"$f":"IF(AND(O41<>0,N41<>0),O41/N41,0)","v":8423.7744999999995},11,"Инвестиционная программа"]
[null," X ",30,"5.2.6..3","С 5.2.6..3, 10/0,4 кВ",{"$f":"IFERROR(VLOOKUP($I42,'1.1Назв. объ. эл. сетевого хоз.'!$K$2:$L$35,2,0)&\" \"&VLOOKUP($J42,'1.1Назв. объ. эл. сетевого хоз.'!$K$2:$L$26,2,0)&\" \"&VLOOKUP($K42,'1.1Назв. объ. эл. сетевого хоз.'!$K$2:$L$26,2,0),\"Заполните все столбцы\")","v":"двухтрансформаторные и более подстанции (за исключением РТП) мощностью от 630 кВА до 1000 кВА блочного типа"},"Строительство ТП 2х1000 кВА Пойма-5 д/с","I ) Город","2) два","6.) от 630 кВА до 1000 кВА","3) блочного","2) 10/0,4 кВ",{"$f":"Титульный!$D$10-2","v":2023},1600,8020114,{"$f":"IF(AND(O42<>0,N42<>0),O42/N42,0)","v":5012.57125},12,"Инвестиционная программа"]
[null," X ",31,"5.2.8..3","С 5.2.8..3, 10/0,4 кВ",{"$f":"IFERROR(VLOOKUP($I43,'1.1Назв. объ. эл. сетевого хоз.'!$K$2:$L$35,2,0)&\" \"&VLOOKUP($J43,'1.1Назв. объ. эл. сетевого хоз.'!$K$2:$L$26,2,0)&\" \"&VLOOKUP($K43,'1.1Назв. объ. эл. сетевого хоз.'!$K$2:$L$26,2,0),\"Заполните все столбцы\")","v":"двухтрансформаторные и более подстанции (за исключением РТП) мощностью от 1250 кВА до 1600 кВА включительно блочного типа"},"Строительство ТП 2х1600 кВА Восточный пром район","I ) Город","2) два","8.) от 1250 кВА до 1600 кВА включительно","3) блочного","2) 10/0,4 кВ",{"$f":"Титульный!$D$10-2","v":2023},2560,22202919.969999999,{"$f":"IF(AND(O43<>0,N43<>0),O43/N43,0)","v":8673.0156132812499},"31, 31.1","Инвестиционная программа"]
[null," X ",32,"5.2.6..3","С 5.2.6..3, 10/0,4 кВ",{"$f":"IFERROR(VLOOKUP($I44,'1.1Назв. объ. эл. сетевого хоз.'!$K$2:$L$35,2,0)&\" \"&VLOOKUP($J44,'1.1Назв. объ. эл. сетевого хоз.'!$K$2:$L$26,2,0)&\" \"&VLOOKUP($K44,'1.1Назв. объ. эл. сетевого хоз.'!$K$2:$L$26,2,0),\"Заполните все столбцы\")","v":"двухтрансформаторные и более подстанции (за исключением РТП) мощностью от 630 кВА до 1000 кВА блочного типа"},"Строительство здания ТП-2х1000 кВА мкр. 31А Станция переливания крови","I ) Город","2) два","6.) от 630 кВА до 1000 кВА","3) блочного","2) 10/0,4 кВ",{"$f":"Титульный!$D$10-2","v":2023},1600,5591749.1100000003,{"$f":"IF(AND(O44<>0,N44<>0),O44/N44,0)","v":3494.8431937500004},32,"Инвестиционная программа"]
[null," X ",33,"Заполните все столбцы","Заполните все столбцы",{"$f":"IFERROR(VLOOKUP($I45,'1.1Назв. объ. эл. сетевого хоз.'!$K$2:$L$35,2,0)&\" \"&VLOOKUP($J45,'1.1Назв. объ. эл. сетевого хоз.'!$K$2:$L$26,2,0)&\" \"&VLOOKUP($K45,'1.1Назв. объ. эл. сетевого хоз.'!$K$2:$L$26,2,0),\"Заполните все столбцы\")","v":"Заполните все столбцы"},null,null,null,null,null,null,{"$f":"Титульный!$D$10-2","v":2023},null,null,{"$f":"IF(AND(O45<>0,N45<>0),O45/N45,0)","v":0}]
[null," X ",34,"Заполните все столбцы","Заполните все столбцы",{"$f":"IFERROR(VLOOKUP($I46,'1.1Назв. объ. эл. сетевого хоз.'!$K$2:$L$35,2,0)&\" \"&VLOOKUP($J46,'1.1Назв. объ. эл. сетевого хоз.'!$K$2:$L$26,2,0)&\" \"&VLOOKUP($K46,'1.1Назв. объ. эл. сетевого хоз.'!$K$2:$L$26,2,0),\"Заполните все столбцы\")","v":"Заполните все столбцы"},null,null,null,null,null,null,{"$f":"Титульный!$D$10-2","v":2023},null,null,{"$f":"IF(AND(O46<>0,N46<>0),O46/N46,0)","v":0}]
[null,"TAG",null,null,null,null,"Добавить строки"]

{"sheet":"Ставка 6. (РТП)","index":8,"n_rows":17,"n_cols":18,"rows_kept":17,"cut":false,"hidden":false,"merged":[[5,2,5,17],[1,2,3,17]]}
[]
[null,null,"Расходы на строительство введенных в эксплуатацию объектов электросетевого хозяйства для целей технологического присоединения и для целей реализации иных мероприятий инвестиционной программы территориальной сетевой организации"]
[]
[]
[]
[null,null,"ДЛЯ НАСЕЛЕННЫХ ПУНКТОВ ВСЕХ ТЕРРИТОРИЙ"]
[]
[null,null,"N п/п","Технический код ставки","Обозначение ставки","Наименование ставки","Объект электросетевого хозяйства","Территория","Количество трансформаторов","Мощность трансформаторов","Тип исполнения","Напряжение","Год ввода объекта","Общая трансформаторная мощность, кВт","Расходы на строительство объекта, руб. \n(без НДС)","Расходы на строительство единицы, руб./кВт","Наименование папки","Источник финансирования"]
[null,null,1,{"$f":"C$9+1","v":2},{"$f":"D$9+1","v":3},4,5,6,7,8,{"$f":"J$9+1","v":9},{"$f":"K$9+1","v":10},11,12,13,14,15,16]
[null,null,"6.",null,null,null,"Распределительные трансформаторные подстанции (РТП) с уровнем напряжения до 35 кВ"]
[null," X ",{"$f":"ROW($C11)-12","v":-1},{"$f":"IF(OR($I11=\"\",$J11=\"\",$K11=\"\",$L11=\"\"),\"Заполните все столбцы\",\"6.\"&LEFT($I11,1)&\".\"&LEFT($J11,2)&\".\"&LEFT($K11,1)&\".\")","v":"Заполните все столбцы"},{"$f":"IFERROR(\"С \"&(MID($D11,1,LEN($D11)))&\",\"&(RIGHT($L11,LEN($L11)-2)),\"Заполните все столбцы\")","v":"Заполните все столбцы"},{"$f":"IFERROR(VLOOKUP($I11,'1.1Назв. объ. эл. сетевого хоз.'!$N$2:$O$36,2,0)&\" мощностью\"&VLOOKUP($J11,'1.1Назв. объ. эл. сетевого хоз.'!$N$2:$O$27,2,0)&VLOOKUP($K11,'1.1Назв. объ. эл. сетевого хоз.'!$N$2:$O$27,2,0),\"Заполните все столбцы\")","v":"Заполните все столбцы"},"Название объекта",null,null,null,null,null,{"$f":"Титульный!$D$10-2","v":2023},null,null,{"$f":"IF(AND(O11<>0,N11<>0),O11/N11,0)","v":0}]
[null,"TAG",null,null,null,null,"Добавить строки"]
[null,null,{"$f":"ROW($C13)-12","v":1},{"$f":"IF(OR($H13=\"\",$I13=\"\",$J13=\"\",$K13=\"\",$L13=\"\"),\"Заполните все столбцы\",LEFT($H13,2)&\".\"&\"6.\"&LEFT($I13,1)&\".\"&LEFT($J13,2)&\".\"&LEFT($K13,1)&\".\")","v":"I .6.2.10.2."},{"$f":"IFERROR(\"С \"&(MID($D13,4,LEN($D13)))&\" \"&(RIGHT($H13,LEN($H13)-3))&\",\"&(RIGHT($L13,LEN($L13)-2)),\"Заполните все столбцы\")","v":"С 6.2.10.2.  Город, 6(10)/0,4 кВ"},{"$f":"IFERROR(VLOOKUP($I13,'1.1Назв. объ. эл. сетевого хоз.'!$N$2:$O$36,2,0)&\" мощностью\"&VLOOKUP($J13,'1.1Назв. объ. эл. сетевого хоз.'!$N$2:$O$27,2,0)&VLOOKUP($K13,'1.1Назв. объ. эл. сетевого хоз.'!$N$2:$O$27,2,0),\"Заполните все столбцы\")","v":"распределительные двухтрансформаторные подстанции мощностью от 2000 кВА до 2500 кВА включительно закрытого типа "},"Строительство РП(ТП) -1 2х2500 кВА Пойма-5","I ) Город","2) два","10) от 2000 кВА до 2500 кВА включительно","2) закрытого ","1) 6(10)/0,4 кВ",{"$f":"Титульный!$D$10-2","v":2023},4000,42076594,{"$f":"IF(AND(O13<>0,N13<>0),O13/N13,0)","v":10519.148499999999},12,"Инвестиционная программа"]
[null,null,{"$f":"ROW($C14)-12","v":2},{"$f":"IF(OR($H14=\"\",$I14=\"\",$J14=\"\",$K14=\"\",$L14=\"\"),\"Заполните все столбцы\",LEFT($H14,2)&\".\"&\"6.\"&LEFT($I14,1)&\".\"&LEFT($J14,2)&\".\"&LEFT($K14,1)&\".\")","v":"I .6.2.8..2."},{"$f":"IFERROR(\"С \"&(MID($D14,4,LEN($D14)))&\" \"&(RIGHT($H14,LEN($H14)-3))&\",\"&(RIGHT($L14,LEN($L14)-2)),\"Заполните все столбцы\")","v":"С 6.2.8..2.  Город, 6(10)/0,4 кВ"},{"$f":"IFERROR(VLOOKUP($I14,'1.1Назв. объ. эл. сетевого хоз.'!$N$2:$O$36,2,0)&\" мощностью\"&VLOOKUP($J14,'1.1Назв. объ. эл. сетевого хоз.'!$N$2:$O$27,2,0)&VLOOKUP($K14,'1.1Назв. объ. эл. сетевого хоз.'!$N$2:$O$27,2,0),\"Заполните все столбцы\")","v":"распределительные двухтрансформаторные подстанции мощностью от 1250 кВА до 1600 кВА включительно закрытого типа "},"Строительство РП(ТП) - 2х1600 кВА мкр. 39","I ) Город","2) два","8.) от 1250 кВА до 1600 кВА включительно","2) закрытого ","1) 6(10)/0,4 кВ",{"$f":"Титульный!$D$10-2","v":2023},2560,34006748.020000003,13283.885945312501,13.33,"Инвестиционная программа"]
[null,null,{"$f":"ROW($C15)-12","v":3},{"$f":"IF(OR($H15=\"\",$I15=\"\",$J15=\"\",$K15=\"\",$L15=\"\"),\"Заполните все столбцы\",LEFT($H15,2)&\".\"&\"6.\"&LEFT($I15,1)&\".\"&LEFT($J15,2)&\".\"&LEFT($K15,1)&\".\")","v":"I .6.2.6..2."},{"$f":"IFERROR(\"С \"&(MID($D15,4,LEN($D15)))&\" \"&(RIGHT($H15,LEN($H15)-3))&\",\"&(RIGHT($L15,LEN($L15)-2)),\"Заполните все столбцы\")","v":"С 6.2.6..2.  Город, 6(10)/0,4 кВ"},{"$f":"IFERROR(VLOOKUP($I15,'1.1Назв. объ. эл. сетевого хоз.'!$N$2:$O$36,2,0)&\" мощностью\"&VLOOKUP($J15,'1.1Назв. объ. эл. сетевого хоз.'!$N$2:$O$27,2,0)&VLOOKUP($K15,'1.1Назв. объ. эл. сетевого хоз.'!$N$2:$O$27,2,0),\"Заполните все столбцы\")","v":"распределительные двухтрансформаторные подстанции мощностью от 630 кВА до 1000 кВА закрытого типа "},"Строительство РП(ТП) - 2х1000 кВА мкр. 5А","I ) Город","2) два","6.) от 630 кВА до 1000 кВА","2) закрытого ","1) 6(10)/0,4 кВ",{"$f":"Титульный!$D$10-2","v":2023},1600,28284858.02,17678.036262499998,"14, 14.1","Инвестиционная программа"]
[null,null,{"$f":"ROW($C16)-12","v":4},{"$f":"IF(OR($H16=\"\",$I16=\"\",$J16=\"\",$K16=\"\",$L16=\"\"),\"Заполните все столбцы\",LEFT($H16,2)&\".\"&\"6.\"&LEFT($I16,1)&\".\"&LEFT($J16,2)&\".\"&LEFT($K16,1)&\".\")","v":"I .6.2.6..2."},{"$f":"IFERROR(\"С \"&(MID($D16,4,LEN($D16)))&\" \"&(RIGHT($H16,LEN($H16)-3))&\",\"&(RIGHT($L16,LEN($L16)-2)),\"Заполните все столбцы\")","v":"С 6.2.6..2.  Город, 6(10)/0,4 кВ"},{"$f":"IFERROR(VLOOKUP($I16,'1.1Назв. объ. эл. сетевого хоз.'!$N$2:$O$36,2,0)&\" мощностью\"&VLOOKUP($J16,'1.1Назв. объ. эл. сетевого хоз.'!$N$2:$O$27,2,0)&VLOOKUP($K16,'1.1Назв. объ. эл. сетевого хоз.'!$N$2:$O$27,2,0),\"Заполните все столбцы\")","v":"распределительные двухтрансформаторные подстанции мощностью от 630 кВА до 1000 кВА закрытого типа "},"Строительство здания РП(ТП)-2х1000 кВА мкр. 31А Станция скорой медицинской помощи","I ) Город","2) два","6.) от 630 кВА до 1000 кВА","2) закрытого ","1) 6(10)/0,4 кВ",{"$f":"Титульный!$D$10-2","v":2023},1600,7192183.9299999997,4495.1149562499995,32,"Инвестиционная программа"]
[null,"TAG",null,null,null,null,"Добавить строки"]

{"sheet":"Ставка 7. (ТП>35)","index":9,"n_rows":17,"n_cols":18,"rows_kept":17,"cut":false,"hidden":false,"merged":[[5,2,5,17],[1,2,3,17]]}
[]
[null,null,"Расходы на строительство введенных в эксплуатацию объектов электросетевого хозяйства для целей технологического присоединения и для целей реализации иных мероприятий инвестиционной программы территориальной сетевой организации"]
[]
[]
[]
[null,null,"ДЛЯ НАСЕЛЕННЫХ ПУНКТОВ ВСЕХ ТЕРРИТОРИЙ"]
[]
[null,null,"N п/п","Технический код ставки","Обозначение ставки","Наименование ставки","Объект электросетевого хозяйства","Территория","Количество трансформаторов","Мощность трансформаторов","Тип исполнения","Напряжение","Год ввода объекта","Общая трансформаторная мощность, кВт","Расходы на строительство объекта, руб. \n(без НДС)","Расходы на строительство единицы, руб./кВт","Наименование папки","Источник финансирования"]
[null,null,1,{"$f":"C$9+1","v":2},{"$f":"D$9+1","v":3},4,5,6,7,8,{"$f":"J$9+1","v":9},{"$f":"K$9+1","v":10},11,12,13,14,15,16]
[null,null,"7.",null,null,null,null,null,"Подстанции уровнем напряжения 35 кВ и выше"]
[null," X ",{"$f":"ROW($C11)-12","v":-1},{"$f":"IF(OR($I11=\"\",$J11=\"\",$K11=\"\",$L11=\"\"),\"Заполните все столбцы\",\"7.\"&LEFT($I11,1)&\".\"&LEFT($J11,2)&\".\"&LEFT($K11,1))","v":"Заполните все столбцы"},{"$f":"IFERROR(\"С \"&(MID($D11,1,LEN($D11)))&\",\"&(RIGHT($L11,LEN($L11)-2)),\"Заполните все столбцы\")","v":"Заполните все столбцы"},{"$f":"IFERROR(VLOOKUP($I11,'1.1Назв. объ. эл. сетевого хоз.'!$Q$2:$R$33,2,0)&\" мощностью \"&VLOOKUP($J11,'1.1Назв. объ. эл. сетевого хоз.'!$Q$2:$R$33,2,0)&VLOOKUP($K11,'1.1Назв. объ. эл. сетевого хоз.'!$Q$2:$R$33,2,0),\"Заполните все столбцы\")","v":"Заполните все столбцы"},"Название объекта",null,null,null,null,null,{"$f":"Титульный!$D$10-2","v":2023},null,null,{"$f":"IF(AND(O11<>0,N11<>0),O11/N11,0)","v":0}]
[null,"TAG",null,null,null,null,"Добавить строки"]
[null,null,{"$f":"ROW($C13)-12","v":1},{"$f":"IF(OR($H13=\"\",$I13=\"\",$J13=\"\",$K13=\"\",$L13=\"\"),\"Заполните все столбцы\",LEFT($H13,2)&\".\"&\"7.\"&LEFT($I13,1)&\".\"&LEFT($J13,2)&\".\"&LEFT($K13,1))","v":"Заполните все столбцы"},{"$f":"IFERROR(\"С \"&(MID($D13,1,LEN($D13)))&\",\"&(RIGHT($L13,LEN($L13)-2)),\"Заполните все столбцы\")","v":"Заполните все столбцы"},{"$f":"IFERROR(VLOOKUP($I13,'1.1Назв. объ. эл. сетевого хоз.'!$Q$2:$R$33,2,0)&\" мощностью \"&VLOOKUP($J13,'1.1Назв. объ. эл. сетевого хоз.'!$Q$2:$R$33,2,0)&VLOOKUP($K13,'1.1Назв. объ. эл. сетевого хоз.'!$Q$2:$R$33,2,0),\"Заполните все столбцы\")","v":"Заполните все столбцы"},"Название объекта",null,null,null,null,null,{"$f":"Титульный!$D$10-2","v":2023},null,null,{"$f":"IF(AND(O13<>0,N13<>0),O13/N13,0)","v":0}]
[null,null,{"$f":"ROW($C14)-12","v":2},{"$f":"IF(OR($H14=\"\",$I14=\"\",$J14=\"\",$K14=\"\",$L14=\"\"),\"Заполните все столбцы\",LEFT($H14,2)&\".\"&\"7.\"&LEFT($I14,1)&\".\"&LEFT($J14,2)&\".\"&LEFT($K14,1))","v":"Заполните все столбцы"},"Заполните все столбцы",{"$f":"IFERROR(VLOOKUP($I14,'1.1Назв. объ. эл. сетевого хоз.'!$Q$2:$R$33,2,0)&\" мощностью \"&VLOOKUP($J14,'1.1Назв. объ. эл. сетевого хоз.'!$Q$2:$R$33,2,0)&VLOOKUP($K14,'1.1Назв. объ. эл. сетевого хоз.'!$Q$2:$R$33,2,0),\"Заполните все столбцы\")","v":"Заполните все столбцы"},"Название объекта",null,null,null,null,null,{"$f":"Титульный!$D$10-2","v":2023},null,null,0]
[null,null,{"$f":"ROW($C15)-12","v":3},{"$f":"IF(OR($H15=\"\",$I15=\"\",$J15=\"\",$K15=\"\",$L15=\"\"),\"Заполните все столбцы\",LEFT($H15,2)&\".\"&\"7.\"&LEFT($I15,1)&\".\"&LEFT($J15,2)&\".\"&LEFT($K15,1))","v":"Заполните все столбцы"},"Заполните все столбцы",{"$f":"IFERROR(VLOOKUP($I15,'1.1Назв. объ. эл. сетевого хоз.'!$Q$2:$R$33,2,0)&\" мощностью \"&VLOOKUP($J15,'1.1Назв. объ. эл. сетевого хоз.'!$Q$2:$R$33,2,0)&VLOOKUP($K15,'1.1Назв. объ. эл. сетевого хоз.'!$Q$2:$R$33,2,0),\"Заполните все столбцы\")","v":"Заполните все столбцы"},"Название объекта",null,null,null,null,null,{"$f":"Титульный!$D$10-2","v":2023},null,null,0]
[null,null,{"$f":"ROW($C16)-12","v":4},{"$f":"IF(OR($H16=\"\",$I16=\"\",$J16=\"\",$K16=\"\",$L16=\"\"),\"Заполните все столбцы\",LEFT($H16,2)&\".\"&\"7.\"&LEFT($I16,1)&\".\"&LEFT($J16,2)&\".\"&LEFT($K16,1))","v":"Заполните все столбцы"},"Заполните все столбцы",{"$f":"IFERROR(VLOOKUP($I16,'1.1Назв. объ. эл. сетевого хоз.'!$Q$2:$R$33,2,0)&\" мощностью \"&VLOOKUP($J16,'1.1Назв. объ. эл. сетевого хоз.'!$Q$2:$R$33,2,0)&VLOOKUP($K16,'1.1Назв. объ. эл. сетевого хоз.'!$Q$2:$R$33,2,0),\"Заполните все столбцы\")","v":"Заполните все столбцы"},"Название объекта",null,null,null,null,null,{"$f":"Титульный!$D$10-2","v":2023},null,null,{"$f":"IF(AND(O16<>0,N16<>0),O16/N16,0)","v":0}]
[null,"TAG",null,null,null,null,"Добавить строки"]

{"sheet":"Ставка 8. (ПУ)","index":10,"n_rows":17,"n_cols":17,"rows_kept":17,"cut":false,"hidden":false,"merged":[[5,2,5,16],[1,2,3,16]]}
[]
[null,null,"Расходы на строительство введенных в эксплуатацию объектов электросетевого хозяйства для целей технологического присоединения и для целей реализации иных мероприятий инвестиционной программы территориальной сетевой организации"]
[]
[]
[]
[null,null,"ДЛЯ НАСЕЛЕННЫХ ПУНКТОВ ВСЕХ ТЕРРИТОРИЙ"]
[]
[null,null,"N п/п","Технический код ставки","Обозначение ставки","Наименование ставки","Объект электросетевого хозяйства","Территория","Количество фаз","Способ подключения","Напряжение","Год ввода объекта","Количество точек учета, шт.","Общие расходы на обеспечение средствами коммерческого учета электрической энергии (мощности), руб. \n(без НДС)","Расходы на обеспечение средствами коммерческого учета электрической энергии (мощности), руб./шт.","Наименование папки","Источник финансирования"]
[null,null,1,{"$f":"C$9+1","v":2},{"$f":"D$9+1","v":3},4,5,6,7,8,9,10,11,{"$f":"M9+1","v":12},13,14,15]
[null,null,"8.",null,null,null,"Обеспечение средствами коммерческого учета электрической энергии (мощности)"]
[null," X ",{"$f":"ROW($C11)-12","v":-1},{"$f":"IF(OR($I11=\"\",$J11=\"\",$K11=\"\"),\"Заполните все столбцы\",\"8.\"&LEFT($I11,1)&\".\"&LEFT($J11,1))","v":"Заполните все столбцы"},{"$f":"IF(AND(OR(D11=\"8.1.1\",D11=\"8.2.1\"),OR(K11=\"4) 35 кВ\",K11=\"5) 110 кВ и выше\")),\"Заполните все столбцы\",IF(AND(OR(D11=\"8.1.3\",D11=\"8.2.3\"),OR(K11=\"1) 0,4 кВ и ниже\")),\"Заполните все столбцы\",IF(AND(OR(D11=\"8.1.1\",D11=\"8.1.2\",D11=\"8.2.1\",D11=\"8.2.2\"),OR(K11=\"2) 1 -10  кВ\",K11=\"3) 20 кВ\")),IFERROR(\"С \"&(MID($D11,1,LEN($D11)))&\",\"&\" 1-20 кВ\",\"Заполните все столбцы\"),IFERROR(\"С \"&(MID($D11,1,LEN($D11)))&\",\"&(RIGHT($K11,LEN($K11)-2)),\"Заполните все столбцы\"))))","v":"Заполните все столбцы"},{"$f":"IFERROR(\"средства коммерческого учета электрической энергии (мощности) \"&VLOOKUP($I11,'1.1Назв. объ. эл. сетевого хоз.'!$T$2:$U$33,2,0)&\" \"&VLOOKUP($J11,'1.1Назв. объ. эл. сетевого хоз.'!$T$2:$U$33,2,0),\"Заполните все столбцы\")","v":"Заполните все столбцы"},"Название объекта и(или) адрес",null,null,null,null,{"$f":"Титульный!$D$10-2","v":2023},null,null,{"$f":"IF(AND(N11<>0,M11<>0),N11/M11,0)","v":0}]
[null,"TAG",null,null,null,null,"Добавить строки"]
[null,null,{"$f":"ROW($C13)-12","v":1},{"$f":"IF(OR($I13=\"\",$J13=\"\",$K13=\"\"),\"Заполните все столбцы\",\"8.\"&LEFT($I13,1)&\".\"&LEFT($J13,1))","v":"Заполните все столбцы"},{"$f":"IF(AND(OR(D13=\"8.1.1\",D13=\"8.2.1\"),OR(K13=\"4) 35 кВ\",K13=\"5) 110 кВ и выше\")),\"Заполните все столбцы\",IF(AND(OR(D13=\"8.1.3\",D13=\"8.2.3\"),OR(K13=\"1) 0,4 кВ и ниже\")),\"Заполните все столбцы\",IF(AND(OR(D13=\"8.1.1\",D13=\"8.1.2\",D13=\"8.2.1\",D13=\"8.2.2\"),OR(K13=\"2) 1 -10  кВ\",K13=\"3) 20 кВ\")),IFERROR(\"С \"&(MID($D13,1,LEN($D13)))&\",\"&\" 1-20 кВ\",\"Заполните все столбцы\"),IFERROR(\"С \"&(MID($D13,1,LEN($D13)))&\",\"&(RIGHT($K13,LEN($K13)-2)),\"Заполните все столбцы\"))))","v":"Заполните все столбцы"},{"$f":"IFERROR(\"средства коммерческого учета электрической энергии (мощности) \"&VLOOKUP($I13,'1.1Назв. объ. эл. сетевого хоз.'!$T$2:$U$33,2,0)&\" \"&VLOOKUP($J13,'1.1Назв. объ. эл. сетевого хоз.'!$T$2:$U$33,2,0),\"Заполните все столбцы\")","v":"Заполните все столбцы"},"Название объекта и(или) адрес",null,null,null,null,{"$f":"Титульный!$D$10-2","v":2023},null,null,{"$f":"IF(AND(N13<>0,M13<>0),N13/M13,0)","v":0}]
[null,null,2,"Заполните все столбцы",{"$f":"IF(AND(OR(D14=\"8.1.1\",D14=\"8.2.1\"),OR(K14=\"4) 35 кВ\",K14=\"5) 110 кВ и выше\")),\"Заполните все столбцы\",IF(AND(OR(D14=\"8.1.3\",D14=\"8.2.3\"),OR(K14=\"1) 0,4 кВ и ниже\")),\"Заполните все столбцы\",IF(AND(OR(D14=\"8.1.1\",D14=\"8.1.2\",D14=\"8.2.1\",D14=\"8.2.2\"),OR(K14=\"2) 1 -10  кВ\",K14=\"3) 20 кВ\")),IFERROR(\"С \"&(MID($D14,1,LEN($D14)))&\",\"&\" 1-20 кВ\",\"Заполните все столбцы\"),IFERROR(\"С \"&(MID($D14,1,LEN($D14)))&\",\"&(RIGHT($K14,LEN($K14)-2)),\"Заполните все столбцы\"))))","v":"Заполните все столбцы"},{"$f":"IFERROR(\"средства коммерческого учета электрической энергии (мощности) \"&VLOOKUP($I14,'1.1Назв. объ. эл. сетевого хоз.'!$T$2:$U$33,2,0)&\" \"&VLOOKUP($J14,'1.1Назв. объ. эл. сетевого хоз.'!$T$2:$U$33,2,0),\"Заполните все столбцы\")","v":"Заполните все столбцы"},"Название объекта и(или) адрес",null,null,null,null,{"$f":"Титульный!$D$10-2","v":2023},null,null,{"$f":"IF(AND(N14<>0,M14<>0),N14/M14,0)","v":0}]
[null,null,3,"Заполните все столбцы","Заполните все столбцы",{"$f":"IFERROR(\"средства коммерческого учета электрической энергии (мощности) \"&VLOOKUP($I15,'1.1Назв. объ. эл. сетевого хоз.'!$T$2:$U$33,2,0)&\" \"&VLOOKUP($J15,'1.1Назв. объ. эл. сетевого хоз.'!$T$2:$U$33,2,0),\"Заполните все столбцы\")","v":"Заполните все столбцы"},"Название объекта и(или) адрес",null,null,null,null,{"$f":"Титульный!$D$10-2","v":2023},null,null,{"$f":"IF(AND(N15<>0,M15<>0),N15/M15,0)","v":0}]
[null,null,4,"Заполните все столбцы","Заполните все столбцы",{"$f":"IFERROR(\"средства коммерческого учета электрической энергии (мощности) \"&VLOOKUP($I16,'1.1Назв. объ. эл. сетевого хоз.'!$T$2:$U$33,2,0)&\" \"&VLOOKUP($J16,'1.1Назв. объ. эл. сетевого хоз.'!$T$2:$U$33,2,0),\"Заполните все столбцы\")","v":"Заполните все столбцы"},"Название объекта и(или) адрес",null,null,null,null,{"$f":"Титульный!$D$10-2","v":2023},null,null,{"$f":"IF(AND(N16<>0,M16<>0),N16/M16,0)","v":0}]
[null,"TAG",null,null,null,null,"Добавить строки"]

{"sheet":"Названия ТСО+Ист. фин. тех.лист","index":11,"n_rows":30,"n_cols":2,"rows_kept":30,"cut":false,"hidden":true,"merged":[]}
["Наименование сетевой организации, к которой непосредственно присоединен потребитель","Источник финансирования"]
["Филиал ОАО \"РЖД\" Трансэнерго Свердловская дирекция по энергообеспечению (по сетям Ишимской, Егоршинской, Серовской, Тюменской дистанций электроснабжения)","Инвестиционная программа"]
["АО \"Сибирско-Уральская энергетическая компания\"","Технологическое присоединение"]
["Филиал \"Уральский\" АО \"Оборонэнерго\""]
["ООО \"Агенство Интеллект-Сервис\""]
["ООО СК \"Восток\""]
["ООО \"Дорстрой\""]
["ООО \"Региональная энергетическая компания\""]
[" ООО \"Элеконт\""]
["АО \"Горэлектросеть\""]
["АО \"Ханты-Мансийские городские электрические сети\""]
["АО \"Россети Тюмень\""]
["АО \"Варьеганэнергонефть\""]
["Филиал ОАО «РЖД» Трансэнерго Свердловская дирекция по энергообеспечению (по сетям Сургутской дистанции электроснабжения)"]
["ПАО «Сургутнефтегаз»"]
["МУП «Сургутские районные электрические сети» муниципального образования Сургутский район"]
["ООО «РН-Юганскнефтегаз»"]
["ООО «Газпром энерго»"]
["ООО «Газпромнефть-Хантос»"]
["АО \"Югорская территориальная энергетическая компания - Региональные сети\""]
["АО \"ЮРЭСК\""]
["ООО \"Сургутские городские электрические сети\""]
["АО \"Черногорэнерго\""]
["ООО \"Энергонефть Томск\""]
["ООО «Газпромнефть Энергосистемы»"]
["АО «Энерго-Газ-Ноябрьск»"]
["АО «Губкинские городские электрические сети»"]
["МУП «Надымские городские электрические сети»"]
["АО \"Уренгойская электросетевая компания"]
["ООО \"СеверСетьРазвитие\""]

{"sheet":"Приложение","index":12,"n_rows":26,"n_cols":6,"rows_kept":26,"cut":false,"hidden":false,"merged":[[0,1,3,5]]}
[null,{"$f":"\"Расчет фактических расходов на выполнение мероприятий по технологическому присоединению, предусмотренных подпунктами 'а' и 'в' пункта 16 Методических указаний, за \" & Титульный!D10-2 & \"  г.\"&\n\"(выполняется отдельно по мероприятиям, \nпредусмотренным подпунктами 'а' и 'в' пункта 16 Методических указаний)\"","v":"Расчет фактических расходов на выполнение мероприятий по технологическому присоединению, предусмотренных подпунктами 'а' и 'в' пункта 16 Методических указаний, за 2023  г.(выполняется отдельно по мероприятиям, \nпредусмотренным подпунктами 'а' и 'в' пункта 16 Методических указаний)"}]
[]
[]
[]
[null,null,null,"руб."]
[null,"N п/п","Показатели",{"$f":"\"Данные за предыдущий период регулирования (n-2) \"& Титульный!D10-2 & \" год\"","v":"Данные за предыдущий период регулирования (n-2) 2023 год"},{"$f":"\"Данные за год (n-3), предшествующий предыдущему периоду регулирования \"\n& Титульный!D10-3 & \" год\"","v":"Данные за год (n-3), предшествующий предыдущему периоду регулирования 2022 год"},{"$f":"\"Данные за год (n-4), предшествующий году (n-3) \"\n& Титульный!D10-4 &\" год\"","v":"Данные за год (n-4), предшествующий году (n-3) 2021 год"}]
[null,1,2,3,4,5]
[null,"1.","Расходы по выполнению мероприятий по технологическому присоединению, всего",{"$f":"SUM(D9:D13)+D22","v":7028.8738700000004},{"$f":"SUM(E9:E13)","v":0},{"$f":"SUM(F9:F13)","v":0}]
[null,"1.1.","Вспомогательные материалы",6241]
[null,"1.2.","Энергия на хозяйственные нужды"]
[null,"1.3.","Оплата труда ППП",535.38598999999999]
[null,"1.4.","Отчисления на страховые взносы",152.08614]
[null,"1.5.","Прочие расходы, всего, в том числе:",{"$f":"SUM(D14:D16)","v":100.40173999999999}]
[null,"1.5.1.","- работы и услуги производственного характера"]
[null,"1.5.2.","- налоги и сборы, уменьшающие налогооблагаемую базу на прибыль организаций, всего"]
[null,"1.5.3.","- работы и услуги непроизводственного характера, в том числе:",{"$f":"SUM(D17:D21)","v":100.40173999999999}]
[null,"1.5.3.1.","услуги связи",{"$f":"+([1]Лист_1!$D$61+[1]Лист_1!$D$62+[1]Лист_1!$D$63+[1]Лист_1!$D$64+[1]Лист_1!$D$65)/1000","v":1.45817}]
[null,"1.5.3.2.","расходы на охрану и пожарную безопасность",{"$f":"+([1]Лист_1!$D$67+[1]Лист_1!$D$68)/1000","v":1.1571000000000002}]
[null,"1.5.3.3.","расходы на информационное обслуживание, иные услуги, связанные с деятельностью по технологическому присоединению",8.0823800000000006]
[null,"1.5.3.4.","плата за аренду имущества",2.0266700000000002]
[null,"1.5.3.5.","другие прочие расходы, связанные с производством и реализацией",87.677419999999984]
[null,"1.6.","Внереализационные расходы, всего",{"$f":"SUM(D23:D26)","v":0}]
[null,"1.6.1.","- расходы на услуги банков"]
[null,"1.6.2.","- % за пользование кредитом"]
[null,"1.6.3.","- прочие обоснованные расходы"]
[null,"1.6.4.","- денежные выплаты социального характера (по Коллективному договору)"]

{"sheet":"Наименования ставок","index":13,"n_rows":17,"n_cols":45,"rows_kept":17,"cut":false,"hidden":true,"merged":[[1,41,1,44],[1,2,1,8],[1,11,1,17],[1,19,1,23],[1,25,1,29],[1,31,1,34],[1,36,1,39]]}
[]
[null,null,"2. воздушные линии",null,null,null,null,null,null,null,null,"3. кабельные\n линии",null,null,null,null,null,null,null," 4. пункты секционирования (реклоузеры, распределительные пункты, переключательные пункты)",null,null,null,null,null," 5. трансформаторные подстанции (ТП), за исключением распределительных трансформаторных подстанций (РТП), с уровнем напряжения до 35 кВ",null,null,null,null,null,"6. распределительные трансформаторные подстанции (РТП) с уровнем напряжения до 35 кВ",null,null,null,null,"7. подстанции уровнем напряжения 35 кВ и выше",null,null,null,null,"8. обеспечение средствами коммерческого учета электрической энергии (мощности)"]
["Ст",null,"территория","опоры","изоляция","материал","сечение","количество цепей","напряжение",null,null,"территория","способ прокладки","вид жилы","изоляция","сечение","количество кабелей","напряжение",null,"территория","техническое исполнение","номинальный ток","Количество ячеек","напряжение",null,"территория","количество трансформаторов","мощность трансформаторов","тип исполнения","напряжение",null,"территория","количество трансформаторов","мощность трансформаторов","напряжение",null,"территория","количество трансформаторов","мощность трансформаторов","напряжение",null,"территория","количество фаз","способ подключения","напряжение"]
[1,null,"Городское","деревянных","изолированым","медным","до 50 квадратных мм включительно","1. Одноцепные ","1. 0,4 кВ и ниже",null,null,"город","траншея","одножильный"," резиновая или пластмассовая","до 50 квадратных мм включительно",1,"0,4 кВ и ниже",null,"город","реклоузер","до 100 А","от 5 до 10 включительно","0,4 кВ и ниже",null,"город","один","до 25 кВА включительно","столбового/мачтового","6/0,4 кВ",null,"город","один","до 25 кВА включительно","6(10)/0,4 кВ",null,"город","один","до 6,3 МВА включительно","35/6(10) кВ",null,"город","однофазные","прямого включения","0,4 кВ и ниже"]
[2,null,"Не городское","металлических","неизолированным","стальным","от 50 до 100 квадратных мм включительно","2. Двухцепные","2. 1 - 20  кВ",null,null,"не город","блоки","многожильный","бумажная"," от 50 до 100 квадратных мм включительно",2,"1 - 10  кВ",null,"не город","линейные разъединители","от 100 до 250 А включительно","от 10 до 15 включительно","1 - 20  кВ",null,"не город","два"," от 25 до 100 кВА включительно","шкафного или киоскового ","10/0,4 кВ",null,"не город","два"," от 25 до 100 кВА включительно","20/0,4 кВ",null,"не город","два","от 6,3 МВА до 10 МВА включительно","35/0,4 кВ",null,"не город","трехфазные","полукосвенного включения","1 - 20  кВ"]
[3,null,null,"металлических, за исключением многогранных",null,"сталеалюминиевым","от 100 до 200 квадратных мм включительно",null,"3. 27,5 - 60 кВ",null,null,null,"каналы",null,null,"от 100 до 200 квадратных мм включительно",3,"15 - 20 кВ",null,null,"выключатели нагрузки, устанавливаемые вне трансформаторных подстанций и распределительных и переключательных пунктов,","от 250 до 500 А включительно","свыше 15","35 кВ",null,null,null,"от 100 до 250 кВА включительно"," блочного","20/0,4 кВ",null,null,null,"от 100 до 250 кВА включительно",null,null,null,null,"от 10 МВА до 16 МВА включительно","110/35 кВ",null,null,null,"косвенного включения","35 кВ"]
[4,null,null,"металлических многогранных",null,"алюминиевым","от 200 до 500 квадратных мм включительно",null,"4. 110 кВ и выше",null,null,null,"туннели и коллекторы",null,null,"от 200 до 250 квадратных мм включительно",4,"27,5 - 60 кВ",null,null,"распределительные пункты (РП), за исключением комплектных распределительных устройств наружной установки (КРН, КРУН),","от 500 до 1000 А включительно",null,"110 кВ и выше",null,null,null,"от 250 до 400 кВА включительно",null,"6/10\n(10/6) кВ",null,null,null,"от 250 до 400 кВА включительно",null,null,null,null,"от 16 МВА до 25 МВА включительно","110/6(10) кВ",null,null,null,null,"110 кВ и выше"]
[5,null,null,"железобетонных",null,null,"от 500 до 800 квадратных мм включительно",null,null,null,null,null," галереи и эстакады",null,null,"от 250 до 300 квадратных мм включительно","более 4","110 кВ и выше",null,null,"комплектные распределительные устройства наружной установки (КРН, КРУН) "," свыше 1000 А",null,null,null,null,null,"от 400 до 1000 кВА включительно",null,"10/20\n(20/10) кВ",null,null,null,"от 400 до 1000 кВА включительно",null,null,null,null,"от 25 МВА до 32 МВА включительно","110/35/6(10) кВ"]
[6,null,null,null,null,null,"свыше 800 квадратных мм",null,null,null,null,null,"метод горизонтального наклонного бурения",null,null,"от 300 до 400 квадратных мм включительно",null,null,null,null,"переключательные пункты",null,null,null,null,null,null,"от 1000 кВА до 1250 кВА",null,"6/20\n(20/6) кВ",null,null,null,"от 1000 кВА до 1250 кВА",null,null,null,null,"от 32 МВА до 40 МВА включительно"]
[null,null,null,null,null,null,null,null,null,null,null,null,"подводная прокладка",null,null,"от 400 до 500 квадратных мм включительно",null,null,null,null,null,null,null,null,null,null,null,"от 1250 кВА до 1600 кВА включительно",null,null,null,null,null,"от 1250 кВА до 1600 кВА включительно",null,null,null,null,"от 40 МВА до 63 МВА включительно"]
[null,null,"территория","опоры","изоляция","материал","сечение","количество цепей","напряжение",null,null,null,null,null,null,"от 500 до 800 квадратных мм включительно",null,null,null,null,null,null,null,null,null,null,null,"от 1600 кВА до 2000 кВА включительно",null,null,null,null,null,"от 1600 кВА до 2000 кВА включительно",null,null,null,null,"от 63 МВА до 80 МВА включительно"]
[null,null,"город","деревянные","изолированый","медный","до 50 квадратных мм включительно","одноцепные ","0,4 кВ и ниже",null,null,null,null,null,null,"свыше 800 квадратных мм",null,null,null,null,null,null,null,null,null,null,null," от 2000 кВА до 2500 кВА включительно",null,null,null,null,null," от 2000 кВА до 2500 кВА включительно",null,null,null,null,"от 80 МВА до 100 МВА включительно"]
[null,null,"не город","металлические"," неизолированный","стальной"," от 50 до 100 квадратных мм включительно","двухцепные","1 - 20  кВ",null,null,null,null,null,null,null,null,null,null,null,null,null,null,null,null,null,null,"от 2500 кВА до 3150 кВА включительно",null,null,null,null,null,"от 2500 кВА до 3150 кВА включительно",null,null,null,null,"свыше 100 МВА"]
[null,null,null,"металлические, за исключением многогранных",null,"сталеалюминиевый","от 100 до 200 квадратных мм включительно",null,"27,5 - 60 кВ",null,null,null,null,null,null,null,null,null,null,null,null,null,null,null,null,null,null,"от 3150 кВА до 4000 кВА включительно",null,null,null,null,null,"от 3150 кВА до 4000 кВА включительно"]
[null,null,null,"металлические многогранные",null,"алюминиевый","от 200 до 500 квадратных мм включительно",null,"110 кВ и выше",null,null,null,null,null,null,null,null,null,null,null,null,null,null,null,null,null,null," свыше 4000 кВА",null,null,null,null,null," свыше 4000 кВА"]
[null,null,null,"железобетонные",null,null,"от 500 до 800 квадратных мм включительно"]
[null,null,null,null,null,null,"свыше 800 квадратных мм"]

{"sheet":"Teh_Sheet","index":14,"n_rows":16,"n_cols":48,"rows_kept":16,"cut":false,"hidden":true,"merged":[[1,44,1,47],[1,2,1,8],[1,12,1,18],[1,32,1,36],[1,38,1,42],[1,20,1,24],[1,26,1,30]]}
[]
[null,null,"2. воздушные линии",null,null,null,null,null,null,null,null,null,"3. кабельные\n линии",null,null,null,null,null,null,null," 4. пункты секционирования (реклоузеры, распределительные пункты, переключательные пункты)",null,null,null,null,null," 5. трансформаторные подстанции (ТП), за исключением распределительных трансформаторных подстанций (РТП), с уровнем напряжения до 35 кВ",null,null,null,null,null,"6. распределительные трансформаторные подстанции (РТП) с уровнем напряжения до 35 кВ",null,null,null,null,null,"7. подстанции уровнем напряжения 35 кВ и выше",null,null,null,null,null,"8. обеспечение средствами коммерческого учета электрической энергии (мощности)"]
["Ст",null,"территория","опоры","изоляция","материал","сечение","количество цепей","напряжение","напряжение 2)","напряжение 2.)",null,"территория","способ прокладки","вид жилы","изоляция","сечение","количество кабелей","напряжение",null,"территория","техническое исполнение","номинальный ток","Количество ячеек","напряжение",null,"Территория","Количество трансформаторов","Мощность трансформаторов","Тип исполнения","Напряжение",null,"Территория","Количество трансформаторов","Мощность трансформаторов","Тип исполнения","Напряжение",null,"территория","количество трансформаторов","Мощность трансформаторов","Тип исполнения","Напряжение",null,"территория","Количество фаз","Способ подключения","Напряжение"]
["1)",null,"I ) Город","1) Деревянные","1) Изолированый","1) Медный","1) до 50 квадратных мм включительно","1) Одноцепные ","1) 0,4 кВ и ниже","1) 0,4 кВ и ниже","3) 27,5 - 60 кВ",null,"I ) Город","1) траншея","1) одножильный","1) резиновая или пластмассовая","1) до 50 квадратных мм включительно","1) один","1) 0,4 кВ и ниже",null,"I ) Город","1) реклоузер","1) до 100 А","1) до 5 включительно","1) 0,4 кВ и ниже",null,"I ) Город","1) один","1.) до 25 кВА включительно","1) столбового/мачтового","1) 6/0,4 кВ",null,"I ) Город","1) один","1.) до 25 кВА включительно","1) открытого","1) 6(10)/0,4 кВ",null,"I ) Город","1) один","1.) до 6,3 МВА включительно","1) открытого","1) 35/6(10) кВ",null,"I ) Город","1) однофазные","1) прямого включения","1) 0,4 кВ и ниже"]
["2)",null,"II) Не город","2) Металлические","2) Неизолированный","2) Стальной","2) от 50 до 100 квадратных мм включительно","2) Двухцепные","2) 1 - 20  кВ","2) 1 - 20  кВ","4) 110 кВ и выше",null,"II) Не город","2) блоки","2) многожильный","2) бумажная","2)  от 50 до 100 квадратных мм включительно","2) два","2) 1 - 10  кВ",null,"II) Не город","2) линейные разъединители","2) от 100 до 250 А включительно","2) от 5 до 10 включительно","2) 1 - 20  кВ",null,"II) Не город","2) два","2.) от 25 до 100 кВА включительно","2) шкафного или киоскового ","2) 10/0,4 кВ",null,"II) Не город","1) два","2.) от 25 до 100 кВА включительно","2) закрытого ","2) 20/0,4 кВ",null,"II) Не город","2) два","2.) от 6,3 МВА до 10 МВА включительно","2) закрытого ","2) 35/0,4 кВ",null,"II) Не город","2) трехфазные","2) полукосвенного включения","2) 1 -10  кВ"]
["3)",null,null,"2.1) Металлические, за исключением многогранных",null,"3) Сталеалюминиевый","3) от 100 до 200 квадратных мм включительно",null,"3) 27,5 - 60 кВ",null,null,null,null,"3) каналы",null,null,"3) от 100 до 200 квадратных мм включительно","3) три","3) 15 - 20 кВ",null,null,"3) выключатели нагрузки","3) от 250 до 500 А включительно","3) от 10 до 15 включительно","3) 35 кВ",null,null,null,"3.) от 100 до 250 кВА включительно","3) блочного","3) 20/0,4 кВ",null,null,null,"3.) от 100 до 250 кВА включительно",null,null,null,null,null,"3.) от 10 МВА до 16 МВА включительно",null,"3) 110/35 кВ",null,null,null,"3) косвенного включения","3) 20 кВ"]
["4)",null,null,"2.2) Металлические многогранные",null,"4) Алюминиевый","4) от 200 до 500 квадратных мм включительно",null,"4) 110 кВ и выше",null,null,null,null,"4) туннели и коллекторы",null,null,"4) от 200 до 250 квадратных мм включительно","4) четыре","4) 27,5 - 60 кВ",null,null,"4) распределительные пункты, за исключением КРН, КРУН","4) от 500 до 1000 А включительно","4) свыше 15","4) 110 кВ и выше",null,null,null,"4.) от 250 до 400 кВА включительно","4) встроенного","4) 6/10\n(10/6) кВ",null,null,null,"4.) от 250 до 400 кВА включительно",null,null,null,null,null,"4.) от 16 МВА до 25 МВА включительно",null,"4) 110/6(10) кВ",null,null,null,null,"4) 35 кВ"]
["5)",null,null,"3) Железобетонные",null,null,"5) от 500 до 800 квадратных мм включительно",null,null,null,null,null,null,"5) галереи и эстакады",null,null,"5) от 250 до 300 квадратных мм включительно","5) более четырех","5) 110 кВ и выше",null,null,"5) КРН, КРУН","5) свыше 1000 А",null,null,null,null,null,"5.) от 400 до 630 кВА включительно",null,"5) 10/20\n(20/10) кВ",null,null,null,"5.) от 400 до 630 кВА включительно",null,null,null,null,null,"5.) от 25 МВА до 32 МВА включительно",null,"5) 110/35/6(10) кВ",null,null,null,null,"5) 110 кВ и выше"]
["6)",null,null,null,null,null,"6) свыше 800 квадратных мм",null,null,null,null,null,null,"6) метод горизонтального наклонного бурения",null,null,"6) от 300 до 400 квадратных мм включительно",null,null,null,null,"6) переключательные пункты",null,null,null,null,null,null,"6.) от 630 кВА до 1000 кВА",null,"6) 6/20\n(20/6) кВ",null,null,null,"6.) от 630 кВА до 1000 кВА",null,null,null,null,null,"6.) от 32 МВА до 40 МВА включительно"]
["7)",null,null,null,null,null,null,null,null,null,null,null,null,"7) подводная прокладка",null,null,"7) от 400 до 500 квадратных мм включительно",null,null,null,null,null,null,null,null,null,null,null,"7.) от 1000 кВА до 1250 кВА",null,null,null,null,null,"7.) от 1000 кВА до 1250 кВА",null,null,null,null,null,"7.) от 40 МВА до 63 МВА включительно"]
["8)",null,null,null,null,null,null,null,null,null,null,null,null,null,null,null,"8) от 500 до 800 квадратных мм включительно",null,null,null,null,null,null,null,null,null,null,null,"8.) от 1250 кВА до 1600 кВА включительно",null,null,null,null,null,"8.) от 1250 кВА до 1600 кВА включительно",null,null,null,null,null,"8.) от 63 МВА до 80 МВА включительно"]
["9)",null,null,null,null,null,null,null,null,null,null,null,null,null,null,null,"9) свыше 800 квадратных мм",null,null,null,null,null,null,null,null,null,null,null,"9.) от 1600 кВА до 2000 кВА включительно",null,null,null,null,null,"9.) от 1600 кВА до 2000 кВА включительно",null,null,null,null,null,"9.) от 80 МВА до 100 МВА включительно"]
["10)",null,null,null,null,null,null,null,null,null,null,null,null,null,null,null,null,null,null,null,null,null,null,null,null,null,null,null,"10) от 2000 кВА до 2500 кВА включительно",null,null,null,null,null,"10) от 2000 кВА до 2500 кВА включительно",null,null,null,null,null,"10) свыше 100 МВА"]
["11)",null,null,null,null,null,null,null,null,null,null,null,null,null,null,null,null,null,null,null,null,null,null,null,null,null,null,null,"11) от 2500 кВА до 3150 кВА включительно",null,null,null,null,null,"11) от 2500 кВА до 3150 кВА включительно"]
["12)",null,null,null,null,null,null,null,null,null,null,null,null,null,null,null,null,null,null,null,null,null,null,null,null,null,null,null,"12) от 3150 кВА до 4000 кВА включительно",null,null,null,null,null,"12) свыше 3150 кВА"]
["13)",null,null,null,null,null,null,null,null,null,null,null,null,null,null,null,null,null,null,null,null,null,null,null,null,null,null,null,"13) свыше 4000 кВА"]

{"sheet":"1.1Назв. объ. эл. сетевого хоз.","index":15,"n_rows":31,"n_cols":21,"rows_kept":31,"cut":false,"hidden":true,"merged":[[0,13,0,14],[0,16,0,17],[0,19,0,20],[0,0,0,1],[0,7,0,8],[0,3,0,5],[0,10,0,11]]}
["2. ВЛ",null,null,"3. КЛ",null,null,null,"4. Реклоузеры, линейные разъединители, выключатели нагрузки + распределительные пункты (РП), за исключением комплектных распределительных устройств наружной установки (КРН, КРУН),  комплектные распределительные устройства наружной установки (КРН, КРУН) , переключательные пункты",null,null," 5. трансформаторные подстанции (ТП), за исключением распределительных трансформаторных подстанций (РТП), с уровнем напряжения до 35 кВ",null,null,"6. распределительные трансформаторные подстанции (РТП) с уровнем напряжения до 35 кВ",null,null,"7. подстанции уровнем напряжения 35 кВ и выше",null,null,"8. обеспечение средствами коммерческого учета электрической энергии (мощности)"]
["1) Деревянные","деревянных опорах",null,"1) траншея"," в траншеях","в траншее",null,"1) реклоузер","реклоузеры",null,"1) один","однотрансформаторные подстанции (за исключением РТП)",null,"1) один","распределительные однотрансформаторные подстанции",null,"1.) до 6,3 МВА включительно","до 6,3 МВА включительно",null,"1) однофазные","однофазные"]
["2) Металлические","металлических опорах",null,"2) блоки"," в блоках","в блоке",null,"2) линейные разъединители","линейные разъединители",null,"2) два","двухтрансформаторные и более подстанции (за исключением РТП)",null,"2) два","распределительные двухтрансформаторные подстанции",null,"2.) от 6,3 МВА до 10 МВА включительно","от 6,3 МВА до 10 МВА включительно",null,"2) трехфазные","трехфазные"]
["2.1) Металлические, за исключением многогранных","металлических опорах, за исключением многогранных",null,"3) каналы"," в каналах","в канале",null,"3) выключатели нагрузки","выключатели нагрузки, устанавливаемые вне трансформаторных подстанций и распределительных и переключательных пунктов,",null,"1.) до 25 кВА включительно","мощностью до 25 кВА включительно",null,"1.) до 25 кВА включительно","до 25 кВА включительно",null,"3.) от 10 МВА до 16 МВА включительно","от 10 МВА до 16 МВА включительно",null,"1) прямого включения","прямого включения"]
["2.2) Металлические многогранные","многогранных металлических опорах",null,"4) туннели и коллекторы"," в туннелях и коллекторах","в туннеле или коллекторе",null,"4) распределительные пункты, за исключением КРН, КРУН","распределительные пункты (РП), за исключением комплектных распределительных устройств наружной установки (КРН, КРУН),",null,"2.) от 25 до 100 кВА включительно","мощностью от 25 до 100 кВА включительно",null,"2.) от 25 до 100 кВА включительно"," от 25 до 100 кВА включительно",null,"4.) от 16 МВА до 25 МВА включительно","от 16 МВА до 25 МВА включительно",null,"2) полукосвенного включения","полукосвенного включения"]
["3) Железобетонные","железобетонных опорах",null,"5) галереи и эстакады"," в галереях и эстакадах","в галерее или на эстакаде",null,"5) КРН, КРУН","комплектные распределительные устройства наружной установки (КРН, КРУН),",null,"3.) от 100 до 250 кВА включительно","мощностью от 100 до 250 кВА включительно",null,"3.) от 100 до 250 кВА включительно"," от 100 до 250 кВА включительно",null,"5.) от 25 МВА до 32 МВА включительно","от 25 МВА до 32 МВА включительно",null,"3) косвенного включения","косвенного включения"]
["1) Изолированый","изолированым",null,"6) метод горизонтального наклонного бурения",", прокладываемые методом горизонтального наклонного бурения",null,null,"6) переключательные пункты","переключательные пункты",null,"4.) от 250 до 400 кВА включительно","мощностью от 250 до 400 кВА включительно",null,"4.) от 250 до 400 кВА включительно"," от 250 до 400 кВА включительно",null,"6.) от 32 МВА до 40 МВА включительно","от 32 МВА до 40 МВА включительно"]
["2) Неизолированный","неизолированным",null,"7) подводная прокладка"," подводной прокладки,"," подводной прокладки,",null,"1) до 100 А","до 100 А включительно",null,"5.) от 400 до 630 кВА включительно","мощностью от 400 до 630 кВА включительно",null,"5.) от 400 до 630 кВА включительно"," от 400 до 630 кВА включительно",null,"7.) от 40 МВА до 63 МВА включительно","от 40 МВА до 63 МВА включительно"]
["1) Медный","медным",null,"1) одножильный","одножильные",null,null,"2) от 100 до 250 А включительно","от 100 до 250 А включительно",null,"6.) от 630 кВА до 1000 кВА","мощностью от 630 кВА до 1000 кВА",null,"6.) от 630 кВА до 1000 кВА"," от 630 кВА до 1000 кВА",null,"8.) от 63 МВА до 80 МВА включительно","от 63 МВА до 80 МВА включительно"]
["2) Стальной","стальным",null,"2) многожильный","многожильные",null,null,"3) от 250 до 500 А включительно","от 250 до 500 А включительно",null,"7.) от 1000 кВА до 1250 кВА","мощностью от 1000 кВА до 1250 кВА",null,"7.) от 1000 кВА до 1250 кВА"," от 1000 кВА до 1250 кВА",null,"9.) от 80 МВА до 100 МВА включительно","от 80 МВА до 100 МВА включительно"]
["3) Сталеалюминиевый","сталеалюминиевым",null,"1) резиновая или пластмассовая","резиновой или пластмассовой",null,null,"4) от 500 до 1000 А включительно","от 500 до 1000 А включительно",null,"8.) от 1250 кВА до 1600 кВА включительно","мощностью от 1250 кВА до 1600 кВА включительно",null,"8.) от 1250 кВА до 1600 кВА включительно"," от 1250 кВА до 1600 кВА включительно",null,"10) свыше 100 МВА"," свыше 100 МВА"]
["4) Алюминиевый","алюминиевым",null,"2) бумажная","бумажной",null,null,"5) свыше 1000 А","свыше 1000 А",null,"9.) от 1600 кВА до 2000 кВА включительно","мощностью от 1600 кВА до 2000 кВА включительно",null,"9.) от 1600 кВА до 2000 кВА включительно"," от 1600 кВА до 2000 кВА включительно",null,"1) 35/6(10) кВ","35/6(10) кВ"]
["1) до 50 квадратных мм включительно","до 50 квадратных мм включительно",null,"1) до 50 квадратных мм включительно","до 50 квадратных мм включительно",null,null,"1) до 5 включительно","до 5 включительно",null,"10) от 2000 кВА до 2500 кВА включительно","мощностью от 2000 кВА до 2500 кВА включительно",null,"10) от 2000 кВА до 2500 кВА включительно"," от 2000 кВА до 2500 кВА включительно",null,"2) 35/0,4 кВ","35/0,4 кВ"]
["2) от 50 до 100 квадратных мм включительно","от 50 до 100 квадратных мм включительно",null,"2)  от 50 до 100 квадратных мм включительно"," от 50 до 100 квадратных мм включительно",null,null,"2) от 5 до 10 включительно","от 5 до 10 включительно",null,"11) от 2500 кВА до 3150 кВА включительно","мощностью  от 2500 кВА до 3150 кВА включительно",null,"11) от 2500 кВА до 3150 кВА включительно"," от 2500 кВА до 3150 кВА включительно",null,"3) 110/35 кВ","110/35 кВ"]
["3) от 100 до 200 квадратных мм включительно","от 100 до 200 квадратных мм включительно",null,"3) от 100 до 200 квадратных мм включительно","от 100 до 200 квадратных мм включительно",null,null,"3) от 10 до 15 включительно","от 10 до 15 включительно",null,"12) от 3150 кВА до 4000 кВА включительно","мощностью  от 3150 кВА до 4000 кВА включительно",null,"12) свыше 3150 кВА"," свыше 3150 кВА",null,"4) 110/6(10) кВ","110/6(10) кВ"]
["4) от 200 до 500 квадратных мм включительно","от 200 до 500 квадратных мм включительно",null,"4) от 200 до 250 квадратных мм включительно","от 200 до 250 квадратных мм включительно",null,null,"4) свыше 15","свыше 15",null,"13) свыше 4000 кВА","мощностью свыше 4000 кВА",null,"1) открытого"," открытого типа",null,"5) 110/35/6(10) кВ","110/35/6(10) кВ"]
["5) от 500 до 800 квадратных мм включительно","от 500 до 800 квадратных мм включительно",null,"5) от 250 до 300 квадратных мм включительно","от 250 до 300 квадратных мм включительно",null,null,"1) 0,4 кВ и ниже","0,4 кВ и ниже",null,"1) столбового/мачтового","столбового/мачтового типа",null,"2) закрытого "," закрытого типа ",null,"1) один","однотрансформаторные подстанции"]
["6) свыше 800 квадратных мм","свыше 800 квадратных мм",null,"6) от 300 до 400 квадратных мм включительно","от 300 до 400 квадратных мм включительно",null,null,"2) 1 - 20  кВ","1 - 20  кВ",null,"2) шкафного или киоскового ","шкафного или киоскового типа",null,"1) 6(10)/0,4 кВ","6(10)/0,4 кВ",null,"2) два","двухтрансформаторные подстанции"]
["1) Одноцепные ","одноцепные ",null,"7) от 400 до 500 квадратных мм включительно","от 400 до 500 квадратных мм включительно",null,null,"3) 35 кВ","35 кВ",null,"3) блочного","блочного типа",null,"2) 20/0,4 кВ","20/0,4 кВ",null,"1) открытого"," открытого типа"]
["2) Двухцепные","двухцепные",null,"8) от 500 до 800 квадратных мм включительно","от 500 до 800 квадратных мм включительно",null,null,"4) 110 кВ и выше","110 кВ и выше",null,"4) встроенного","встроенного типа",null,null,null,null,"2) закрытого "," закрытого типа "]
["1) 0,4 кВ и ниже",0.4,null,"9) свыше 800 квадратных мм","свыше 800 квадратных мм",null,null,null,null,null,"1) 6/0,4 кВ","6/0,4 кВ"]
["2) 1 - 20  кВ","1 - 20",null,"1) один","с одним кабелем","с одной трубой в скважине",null,null,null,null,"2) 10/0,4 кВ","10/0,4 кВ"]
["3) 27,5 - 60 кВ","27,5 - 60",null,"2) два","с двумя кабелями","с двумя трубами в скважине",null,null,null,null,"3) 20/0,4 кВ","20/0,4 кВ"]
["4) 110 кВ и выше",110,null,"3) три","с тремя кабелями","с тремя трубами в скважине",null,null,null,null,"4) 6/10\n(10/6) кВ","6/10\n(10/6) кВ"]
[null,null,null,"4) четыре","с четырьмя кабелями","с четырьмя трубами в скважине",null,null,null,null,"5) 10/20\n(20/10) кВ","10/20\n(20/10) кВ"]
[null,null,null,"5) более четырех","кабелей более четырех","труб более четырех",null,null,null,null,"6) 6/20\n(20/6) кВ","6/20\n(20/6) кВ"]
[null,null,null,"1) 0,4 кВ и ниже","0,4 кВ и ниже"]
[null,null,null,"2) 1 - 10  кВ","1 - 10  кВ"]
[null,null,null,"3) 15 - 20 кВ","15 - 20 кВ"]
[null,null,null,"4) 27,5 - 60 кВ","27,5 - 60 кВ"]
[null,null,null,"5) 110 кВ и выше","110 кВ и выше"]